account_party,address,code,date,document_number,expense_code_name,expense_code_name_short,id,party_cell,party_cell_code,party_cell_geoobject,purpose,source_bank_account_number,source_bank_account_type,sum,target_legal_personality,target_legal_personality_code,target_type
ГРОМАДЯНСЬКА ПОЗИЦІЯ,"Київ, вулиця Андріївська, 2/12",70,2017-12-29,87777072,Банківські послуги,Інші витрати,139135,Київська міська організація,37615584,Київ,комісія по рахунку,26009337001200,current,209.00,"АТ ""Укрсиббанк""",09807750,юридична особа
ГРОМАДЯНСЬКА ПОЗИЦІЯ,"Київ, вулиця Миколи Лєскова, 9",70,2017-12-28,bn,Банківські послуги,Інші витрати,139177,Львівська обласна організація,37277596,Львівська область,Комісія за користування пакетом,26005314012,current,100.00,"АТ ""Райффайзен банк Аваль""",14305909,юридична особа
ГРОМАДЯНСЬКА ПОЗИЦІЯ,"Київ, вулиця Миколи Лєскова, 9",70,2017-12-28,bn,Банківські послуги,Інші витрати,139176,Львівська обласна організація,37277596,Львівська область,Комісія за за вихідні перекази,26005314012,current,100.00,"АТ ""Райффайзен банк Аваль""",14305909,юридична особа
ГРОМАДЯНСЬКА ПОЗИЦІЯ,"Київ, вулиця Миколи Лєскова, 9",70,2017-12-28,bn,Банківські послуги,Інші витрати,139175,Львівська обласна організація,37277596,Львівська область,Комісія за надання виписки,26005314012,current,50.00,"АТ ""Райффайзен банк Аваль""",14305909,юридична особа
ГРОМАДЯНСЬКА ПОЗИЦІЯ,"Київ, вулиця Академіка Туполєва, 28А",63,2017-12-28,57,Податок на доходи,Податкові платежі,138978,Центральний офіс,33492420,Україна,Податки до держбюджету,26009000000569,current,72.00,УДКСУ у Шевченківському районі м. Києва,37995466,юридична особа
ГРОМАДЯНСЬКА ПОЗИЦІЯ,"Київ, вулиця Академіка Туполєва, 28А",63,2017-12-28,56,Податок на доходи,Податкові платежі,138977,Центральний офіс,33492420,Україна,Податки до держбюджету,26009000000569,current,900.00,УДКСУ у Шевченківському районі м. Києва,37995466,юридична особа
ГРОМАДЯНСЬКА ПОЗИЦІЯ,Київ,60,2017-12-28,55,Інші податки,Податкові платежі,138976,Центральний офіс,33492420,Україна,Податки до держбюджету,26009000000569,current,1600.00,ДПІ у Шевченківському районі у м. Києві,38728711,юридична особа
ГРОМАДЯНСЬКА ПОЗИЦІЯ,"Київ, вулиця Антоновича, 127",70,2017-12-28,58,Банківські послуги,Інші витрати,138975,Центральний офіс,33492420,Україна,Послуги банку,26009000000569,current,38.64,"АТ ""Укрексімбанк""",00032112,юридична особа
ГРОМАДЯНСЬКА ПОЗИЦІЯ,"Київ, вулиця Магнітогорська, 1",76,2017-12-28,53,Послуги зв’язку,Послуги зв’язку,138974,Центральний офіс,33492420,Україна,Оплата послуг,26009000000569,current,183.40,"ТОВ ""Воля-кабель""",30777913,юридична особа
ГРОМАДЯНСЬКА ПОЗИЦІЯ,"Київ, вулиця Антоновича, 127",70,2017-12-28,143924,Банківські послуги,Інші витрати,138973,Центральний офіс,33492420,Україна,Послуги банку,26009000000569,current,96.00,"АТ ""Укрексімбанк""",00032112,юридична особа
ГРОМАДЯНСЬКА ПОЗИЦІЯ,Київ,48,2017-12-28,54,Публікування матеріалів у мережі Інтернет,Реклама в інтернеті,138972,Центральний офіс,33492420,Україна,Оплата послуг,26009000000569,current,1200.00,"ТОВ ""ГІГАЦЕНТР""",37956851,юридична особа
ГРОМАДЯНСЬКА ПОЗИЦІЯ,Київ,48,2017-12-28,52,Публікування матеріалів у мережі Інтернет,Реклама в інтернеті,138971,Центральний офіс,33492420,Україна,Оплата послуг,26009000000569,current,800.00,"ТОВ ""ГІГАТРАНС""",34603204,юридична особа
ГРОМАДЯНСЬКА ПОЗИЦІЯ,"Київ, вулиця Антоновича, 127",70,2017-12-28,149237,Банківські послуги,Інші витрати,138970,Центральний офіс,33492420,Україна,Послуги банку,26009000000569,current,250.00,"АТ ""Укрексімбанк""",00032112,юридична особа
ГРОМАДЯНСЬКА ПОЗИЦІЯ,,84,2017-12-28,58,"Заробітна плата, премії","Заробітна плата, лікарняні, вагітності, відрядження, компенсації",138942,Центральний офіс,33492420,Україна,ЗП 2017р.,26009000000569,current,2576.00,Царьов Ігор Анатолійович,,фізична особа
ГРОМАДЯНСЬКА ПОЗИЦІЯ,,84,2017-12-28,58,"Заробітна плата, премії","Заробітна плата, лікарняні, вагітності, відрядження, компенсації",138941,Центральний офіс,33492420,Україна,ЗП 2017р.,26009000000569,current,644.00,Комарова Ганна Георгіївна,,фізична особа
ГРОМАДЯНСЬКА ПОЗИЦІЯ,,84,2017-12-28,58,"Заробітна плата, премії","Заробітна плата, лікарняні, вагітності, відрядження, компенсації",138940,Центральний офіс,33492420,Україна,ЗП 2017р.,26009000000569,current,644.00,Павлик Зоя Борисівна,,фізична особа
ГРОМАДЯНСЬКА ПОЗИЦІЯ,"Київ, вулиця Андріївська, 2/12",70,2017-12-27,1656836756,Банківські послуги,Інші витрати,139134,Київська міська організація,37615584,Київ,комісія по рахунку,26009337001200,current,3.00,"АТ ""Укрсиббанк""",09807750,юридична особа
ГРОМАДЯНСЬКА ПОЗИЦІЯ,,66,2017-12-27,3,Повернення внесків приватних внесків (донорам),Повернення приватних внесків (донорам),139130,Київська міська організація,37615584,Київ,Повернення помилково перерахованих коштів,26009337001200,current,120.00,Бібік Сергій,,фізична особа
ГРОМАДЯНСЬКА ПОЗИЦІЯ,"Волинська область, Луцьк, вулиця Стрілецька, 4А",61,2017-12-27,70,Військовий збір,Податкові платежі,139126,Волинська обласна організація,37204512,Волинська область,"вiйськовий збiр 1,5% з заробiтної плати за грудень 2017",2600805509013,current,450.00,УДКСУ у м. Луцьку,38009628,юридична особа
ГРОМАДЯНСЬКА ПОЗИЦІЯ,"Волинська область, Луцьк, Київський майдан, 4",62,2017-12-27,72,Сплата ЄСВ,Податкові платежі,139125,Волинська обласна організація,37204512,Волинська область,*;201;37204512; ЄСВ нарахований на заробiтну плату за грудень 2017,2600805509013,current,550.00,Луцька ОДПІ ГУ ДФС у Волинській обл.,39497665,юридична особа
ГРОМАДЯНСЬКА ПОЗИЦІЯ,"Волинська область, Луцьк, вулиця Стрілецька, 4А",61,2017-12-27,71,Військовий збір,Податкові платежі,139124,Волинська обласна організація,37204512,Волинська область,"вiйськовий збiр 1,5% з заробiтної плати за грудень 2017",2600805509013,current,37.50,УДКСУ у м. Луцьку,38009628,юридична особа
ГРОМАДЯНСЬКА ПОЗИЦІЯ,"Київ, вулиця Михайла Грушевського, 1Д",70,2017-12-27,CRO0NJTT8Y,Банківські послуги,Інші витрати,139123,Волинська обласна організація,37204512,Волинська область,"Комiсiя за виконання платежiв в нацiональнiй валютi, згiдно з вiдкритою офертою банку N б/н вiд 2015-08-03 та тарифiв банку",2600805509013,current,3.00,"ПАТ КБ ""Приватбанк""",14360570,юридична особа
ГРОМАДЯНСЬКА ПОЗИЦІЯ,"Київ, вулиця Михайла Грушевського, 1Д",70,2017-12-27,CRO0NJTTFY,Банківські послуги,Інші витрати,139122,Волинська обласна організація,37204512,Волинська область,"Комiсiя за виконання платежiв в нацiональнiй валютi, згiдно з вiдкритою офертою банку N б/н вiд 2015-08-03 та тарифiв банку",2600805509013,current,3.00,"ПАТ КБ ""Приватбанк""",14360570,юридична особа
ГРОМАДЯНСЬКА ПОЗИЦІЯ,"Київ, вулиця Михайла Грушевського, 1Д",70,2017-12-27,CRO0NGJBGY,Банківські послуги,Інші витрати,139121,Волинська обласна організація,37204512,Волинська область,"Комiсiя за виконання платежiв в нацiональнiй валютi, згiдно з вiдкритою офертою банку N б/н вiд 2015-08-03 та тарифiв банку",2600805509013,current,3.00,"ПАТ КБ ""Приватбанк""",14360570,юридична особа
ГРОМАДЯНСЬКА ПОЗИЦІЯ,,84,2017-12-27,73,"Заробітна плата, премії","Заробітна плата, лікарняні, вагітності, відрядження, компенсації",139024,Волинська обласна організація,37204512,Волинська область,Заробітна плата за грудень 2017,2600805509013,current,2012.50,Ковальчук Оксана Олександрівна,,фізична особа
ГРОМАДЯНСЬКА ПОЗИЦІЯ,,58,2017-12-15,163,"Виготовлення друкованих матеріалів (плакатів, листівок, буклетів та інших агітаційних матеріалів)",Друкована агітація,139145,Львівська обласна організація,37277596,Львівська область,друк інформаційних лістівок,26005314012,current,1749.60,Осадчий Олексій Миколайович,,фізична особа
ГРОМАДЯНСЬКА ПОЗИЦІЯ,,58,2017-12-14,162,"Виготовлення друкованих матеріалів (плакатів, листівок, буклетів та інших агітаційних матеріалів)",Друкована агітація,139144,Львівська обласна організація,37277596,Львівська область,друк брошури,26005314012,current,500.00,Войтович Андрій Петрович,,фізична особа
ГРОМАДЯНСЬКА ПОЗИЦІЯ,"Київ, вулиця Михайла Грушевського, 1Д",43,2017-12-14,H12147ENWC,Інші витрати,Інші витрати,139120,Волинська обласна організація,37204512,Волинська область,Оплата за товари та послуги 2017-12-14 11:16:00 по картцi 5169330513964384,2600805509013,current,143.45,"ПАТ КБ ""Приватбанк""",14360570,юридична особа
ГРОМАДЯНСЬКА ПОЗИЦІЯ,"Київ, вулиця Михайла Грушевського, 1Д",43,2017-12-14,H12147ELVX,Інші витрати,Інші витрати,139119,Волинська обласна організація,37204512,Волинська область,Оплата за товари та послуги 2017-12-14 11:13:02 по картцi 5169330513964384,2600805509013,current,148.75,"ПАТ КБ ""Приватбанк""",14360570,юридична особа
ГРОМАДЯНСЬКА ПОЗИЦІЯ,,58,2017-12-14,69,"Виготовлення друкованих матеріалів (плакатів, листівок, буклетів та інших агітаційних матеріалів)",Друкована агітація,139023,Волинська обласна організація,37204512,Волинська область,Рахунок СФ-0000232. За агiтацiйну продукцi. Без ПДВ,2600805509013,current,1350.00,Джусюк Сергій Вʼячеславович,,фізична особа
ГРОМАДЯНСЬКА ПОЗИЦІЯ,"Київ, вулиця Михайла Грушевського, 1Д",70,2017-12-08,C8O0LSOF2A,Банківські послуги,Інші витрати,139118,Волинська обласна організація,37204512,Волинська область,Комiсiя за поповнення карток для виплат та нецiльовi платежi,2600805509013,current,2.44,"ПАТ КБ ""Приватбанк""",14360570,юридична особа
ГРОМАДЯНСЬКА ПОЗИЦІЯ,"Волинська область, Луцьк, вулиця Стрілецька, 4А",61,2017-12-08,65,Військовий збір,Податкові платежі,139117,Волинська обласна організація,37204512,Волинська область,"*;101;37204512; вiйськовий збiр 1,5% з заробiтної плати за листопад 2017",2600805509013,current,450.00,УДКСУ у м. Луцьку,38009628,юридична особа
ГРОМАДЯНСЬКА ПОЗИЦІЯ,"Волинська область, Луцьк, Київський майдан, 4",62,2017-12-08,63,Сплата ЄСВ,Податкові платежі,139116,Волинська обласна організація,37204512,Волинська область,*;201;37204512; ЄСВ нарахований на заробiтну плату за листопад 2017,2600805509013,current,550.00,Луцька ОДПІ ГУ ДФС у Волинській обл.,39497665,юридична особа
ГРОМАДЯНСЬКА ПОЗИЦІЯ,"Волинська область, Луцьк, вулиця Стрілецька, 4А",61,2017-12-08,64,Військовий збір,Податкові платежі,139115,Волинська обласна організація,37204512,Волинська область,"*;101;37204512; вiйськовий збiр 1,5% з заробiтної плати за листопад 2017",2600805509013,current,37.50,УДКСУ у м. Луцьку,38009628,юридична особа
ГРОМАДЯНСЬКА ПОЗИЦІЯ,"Київ, вулиця Михайла Грушевського, 1Д",70,2017-12-08,C8O0LSM1OY,Банківські послуги,Інші витрати,139114,Волинська обласна організація,37204512,Волинська область,"Комiсiя за виконання платежiв в нацiональнiй валютi, згiдно з вiдкритою офертою банку N б/н вiд 2015-08-03 та тарифiв банку",2600805509013,current,3.00,"ПАТ КБ ""Приватбанк""",14360570,юридична особа
ГРОМАДЯНСЬКА ПОЗИЦІЯ,"Київ, вулиця Михайла Грушевського, 1Д",70,2017-12-08,C8O0LSM25Y,Банківські послуги,Інші витрати,139113,Волинська обласна організація,37204512,Волинська область,"Комiсiя за виконання платежiв в нацiональнiй валютi, згiдно з вiдкритою офертою банку N б/н вiд 2015-08-03 та тарифiв банку",2600805509013,current,3.00,"ПАТ КБ ""Приватбанк""",14360570,юридична особа
ГРОМАДЯНСЬКА ПОЗИЦІЯ,"Київ, вулиця Михайла Грушевського, 1Д",70,2017-12-08,C8O0LSM2JY,Банківські послуги,Інші витрати,139112,Волинська обласна організація,37204512,Волинська область,"Комiсiя за виконання платежiв в нацiональнiй валютi, згiдно з вiдкритою офертою банку N б/н вiд 2015-08-03 та тарифiв банку",2600805509013,current,3.00,"ПАТ КБ ""Приватбанк""",14360570,юридична особа
ГРОМАДЯНСЬКА ПОЗИЦІЯ,,83,2017-12-08,68,"Виплати працівникам (не зарплата): лікарняні, вагітності, відрядження, компенсації ","Заробітна плата, лікарняні, вагітності, відрядження, компенсації",139022,Волинська обласна організація,37204512,Волинська область,Відрядні витрати за листопад 2017,2600805509013,current,975.00,Ковальчук Оксана Олександрівна,,фізична особа
ГРОМАДЯНСЬКА ПОЗИЦІЯ,,84,2017-12-08,66,"Заробітна плата, премії","Заробітна плата, лікарняні, вагітності, відрядження, компенсації",139021,Волинська обласна організація,37204512,Волинська область,Заробітна плата за листопад 2017,2600805509013,current,2012.50,Ковальчук Оксана Олександрівна,,фізична особа
ГРОМАДЯНСЬКА ПОЗИЦІЯ,,82,2017-12-06,62,"Гонорари, в тому числі за надані консультаційні послуги","Гонорари, в тому числі за надані консультаційні послуги",139020,Волинська обласна організація,37204512,Волинська область,Рахунок вiд 28-11-2017. За вчинення Нотарiальних дiй. Без ПДВ,2600805509013,current,100.00,Красневич Олександр Анатолійович,,фізична особа
ГРОМАДЯНСЬКА ПОЗИЦІЯ,"Київ, вулиця Антоновича, 127",70,2017-12-05,145200,Банківські послуги,Інші витрати,138969,Центральний офіс,33492420,Україна,Послуги банку,26009000000569,current,96.00,"АТ ""Укрексімбанк""",00032112,юридична особа
ГРОМАДЯНСЬКА ПОЗИЦІЯ,"Київ, вулиця Михайла Грушевського, 1Д",70,2017-12-01,AS7bu7x1пp,Банківські послуги,Інші витрати,139252,Дніпропетровська обласна організація,37006888,Дніпропетровська область,Комісія за обслуговування рахунку,26005050226940,current,100.00,"ПАТ КБ ""Приватбанк""",14360570,юридична особа
ГРОМАДЯНСЬКА ПОЗИЦІЯ,"Київ, вулиця Госпітальна, 12Г",70,2017-12-01,6342025621,Банківські послуги,Інші витрати,139233,Харківська обласна організація,37188240,Харківська область,Абонплата,26004300641612,current,49.00,"АТ ""Ощадбанк""",00032129,юридична особа
ГРОМАДЯНСЬКА ПОЗИЦІЯ,"Київ, вулиця Михайла Грушевського, 1Д",70,2017-12-01,AS7bu5svzp,Банківські послуги,Інші витрати,139111,Волинська обласна організація,37204512,Волинська область,"Комiсiя за обслуговування рахунку вересень 2017р. згiдно договору банкiвського рахунку вiд 2015-08-03, без ПДВ",2600805509013,current,100.00,"ПАТ КБ ""Приватбанк""",14360570,юридична особа
ГРОМАДЯНСЬКА ПОЗИЦІЯ,"Київ, вулиця Госпітальна, 12Г",70,2017-11-30,68706441,Банківські послуги,Інші витрати,139271,Тернопільська обласна організація,37016189,Тернопільська область,Комісія за розрахункове обслуговування рахунку,26002300597395,current,10.00,"АТ ""Ощадбанк""",00032129,юридична особа
ГРОМАДЯНСЬКА ПОЗИЦІЯ,,58,2017-11-30,4,"Виготовлення друкованих матеріалів (плакатів, листівок, буклетів та інших агітаційних матеріалів)",Друкована агітація,139226,Харківська обласна організація,37188240,Харківська область,Поліграфічна продукція без ПДВ згідно рахунку № ЛН 0000133 від 28 листопада 2017 р.,26004300641612,current,4600.00,Лошкаєва Наталя Вячеславівна,,фізична особа
ГРОМАДЯНСЬКА ПОЗИЦІЯ,"Київ, вулиця Госпітальна, 12Г",70,2017-11-30,82363816,Банківські послуги,Інші витрати,139143,Чернівецька обласна організація,37273083,Чернівецька область,Коміс..за розрах. обсл.рахунку 26005300480754,26005300480754,current,10.00,"АТ ""Ощадбанк""",00032129,юридична особа
ГРОМАДЯНСЬКА ПОЗИЦІЯ,"Київ, вулиця Госпітальна, 12Г",70,2017-11-30,82329102,Банківські послуги,Інші витрати,139142,Чернівецька обласна організація,37273083,Чернівецька область,Списання щомісячної плати за обслуговування ТП Моя справа за листопад 2017р,26005300480754,current,49.00,"АТ ""Ощадбанк""",00032129,юридична особа
ГРОМАДЯНСЬКА ПОЗИЦІЯ,"Київ, вулиця Миколи Лєскова, 9",70,2017-11-29,bn,Банківські послуги,Інші витрати,139174,Львівська обласна організація,37277596,Львівська область,Комісія за користування пакетом,26005314012,current,100.00,"АТ ""Райффайзен банк Аваль""",14305909,юридична особа
ГРОМАДЯНСЬКА ПОЗИЦІЯ,"Київ, вулиця Миколи Лєскова, 9",70,2017-11-29,bn,Банківські послуги,Інші витрати,139173,Львівська обласна організація,37277596,Львівська область,Комісія за за вихідні перекази,26005314012,current,50.00,"АТ ""Райффайзен банк Аваль""",14305909,юридична особа
ГРОМАДЯНСЬКА ПОЗИЦІЯ,"Київ, вулиця Миколи Лєскова, 9",70,2017-11-29,bn,Банківські послуги,Інші витрати,139172,Львівська обласна організація,37277596,Львівська область,Комісія за надання виписки,26005314012,current,50.00,"АТ ""Райффайзен банк Аваль""",14305909,юридична особа
ГРОМАДЯНСЬКА ПОЗИЦІЯ,"Київ, вулиця Госпітальна, 12Г",70,2017-11-29,84227846,Банківські послуги,Інші витрати,139141,Чернівецька обласна організація,37273083,Чернівецька область,Погаш.нарах.комісії за внесення готівки,26005300480754,current,5.00,"АТ ""Ощадбанк""",00032129,юридична особа
ГРОМАДЯНСЬКА ПОЗИЦІЯ,"Чернівецька область, Новоселицький район, Новоселиця",59,2017-11-29,84227803,Грошова застава,Грошова застава,139140,Чернівецька обласна організація,37273083,Чернівецька область,"Грошова застава організації партії, яка висунула кадидатів у депутати Новоселицької міської ради",26005300480754,current,1999.00,Новоселецька міська виборча комісія,34208336,юридична особа
ГРОМАДЯНСЬКА ПОЗИЦІЯ,"Київська обл., Білоцерківський район, Узин, вулиця Незалежності, 16",59,2017-11-29,52,Грошова застава,Грошова застава,138968,Центральний офіс,33492420,Україна,Грошова застава,26009000000569,current,1859.00,Узинська міська виборча комісія,34162941,юридична особа
ГРОМАДЯНСЬКА ПОЗИЦІЯ,"Київ, вулиця Академіка Туполєва, 28А",63,2017-11-29,56,Податок на доходи,Податкові платежі,138967,Центральний офіс,33492420,Україна,Податки до держбюджету,26009000000569,current,72.00,УДКСУ у Шевченківському районі м. Києва,37995466,юридична особа
ГРОМАДЯНСЬКА ПОЗИЦІЯ,"Київ, вулиця Академіка Туполєва, 28А",63,2017-11-29,55,Податок на доходи,Податкові платежі,138966,Центральний офіс,33492420,Україна,Податки до держбюджету,26009000000569,current,900.00,УДКСУ у Шевченківському районі м. Києва,37995466,юридична особа
ГРОМАДЯНСЬКА ПОЗИЦІЯ,Київ,60,2017-11-29,5,Інші податки,Податкові платежі,138965,Центральний офіс,33492420,Україна,Податки до держбюджету,26009000000569,current,1600.00,ДПІ у Шевченківському районі у м. Києві,38728711,юридична особа
ГРОМАДЯНСЬКА ПОЗИЦІЯ,"Київ, вулиця Антоновича, 127",70,2017-11-29,57,Банківські послуги,Інші витрати,138964,Центральний офіс,33492420,Україна,Послуги банку,26009000000569,current,38.64,"АТ ""Укрексімбанк""",00032112,юридична особа
ГРОМАДЯНСЬКА ПОЗИЦІЯ,"Київ, вулиця Магнітогорська, 1",76,2017-11-29,52,Послуги зв’язку,Послуги зв’язку,138963,Центральний офіс,33492420,Україна,Оплата послуг,26009000000569,current,183.40,"ТОВ ""Воля-кабель""",30777913,юридична особа
ГРОМАДЯНСЬКА ПОЗИЦІЯ,Київ,48,2017-11-29,53,Публікування матеріалів у мережі Інтернет,Реклама в інтернеті,138962,Центральний офіс,33492420,Україна,Оплата послуг,26009000000569,current,1200.00,"ТОВ ""ГІГАЦЕНТР""",37956851,юридична особа
ГРОМАДЯНСЬКА ПОЗИЦІЯ,Київ,48,2017-11-29,51,Публікування матеріалів у мережі Інтернет,Реклама в інтернеті,138961,Центральний офіс,33492420,Україна,Оплата послуг,26009000000569,current,800.00,"ТОВ ""ГІГАТРАНС""",34603204,юридична особа
ГРОМАДЯНСЬКА ПОЗИЦІЯ,,84,2017-11-29,57,"Заробітна плата, премії","Заробітна плата, лікарняні, вагітності, відрядження, компенсації",138939,Центральний офіс,33492420,Україна,ЗП 2017р.,26009000000569,current,2576.00,Царьов Ігор Анатолійович,,фізична особа
ГРОМАДЯНСЬКА ПОЗИЦІЯ,,84,2017-11-29,57,"Заробітна плата, премії","Заробітна плата, лікарняні, вагітності, відрядження, компенсації",138938,Центральний офіс,33492420,Україна,ЗП 2017р.,26009000000569,current,644.00,Комарова Ганна Георгіївна,,фізична особа
ГРОМАДЯНСЬКА ПОЗИЦІЯ,,84,2017-11-29,57,"Заробітна плата, премії","Заробітна плата, лікарняні, вагітності, відрядження, компенсації",138937,Центральний офіс,33492420,Україна,ЗП 2017р.,26009000000569,current,644.00,Павлик Зоя Борисівна,,фізична особа
ГРОМАДЯНСЬКА ПОЗИЦІЯ,"Волинська область, Луцьк, вулиця Стрілецька, 4А",60,2017-11-28,61,Інші податки,Податкові платежі,139110,Волинська обласна організація,37204512,Волинська область,Адмiнiстративний збiр за державну реєстрацiю змiн в громадських формуваннях зi статусом юридичної особи,2600805509013,current,480.00,УДКСУ у м. Луцьку,38009628,юридична особа
ГРОМАДЯНСЬКА ПОЗИЦІЯ,"Київ, вулиця Михайла Грушевського, 1Д",70,2017-11-28,BRO0KLPC3Y,Банківські послуги,Інші витрати,139109,Волинська обласна організація,37204512,Волинська область,"Комiсiя за виконання платежiв в нацiональнiй валютi, згiдно з вiдкритою офертою банку N б/н вiд 2015-08-03 та тарифiв банку",2600805509013,current,3.00,"ПАТ КБ ""Приватбанк""",14360570,юридична особа
ГРОМАДЯНСЬКА ПОЗИЦІЯ,"Київ, вулиця Бастіонна, 6",65,2017-11-28,59,Перерахування внесків приватних донорів до держбюджету,Перерахування внесків приватних донорів до держбюджету,138945,Центральний офіс,33492420,Україна,повернення коштів,26009000000569,current,200.00,ГУ ДКСУ,20055032,державний бюджет
ГРОМАДЯНСЬКА ПОЗИЦІЯ,Київ,69,2017-11-27,60,Організація заходів та інші організаційні послуги,Організація заходів та інші організаційні послуги,139108,Волинська обласна організація,37204512,Волинська область,Оренда конференц. залу 23-11-2017. Рахунок N 1786,2600805509013,current,320.00,"ТОВ ""ГОТЕЛЬ УКРАЇНА СЕРВІС""",40221737,юридична особа
ГРОМАДЯНСЬКА ПОЗИЦІЯ,"Київ, вулиця Госпітальна, 12Г",70,2017-11-27,95051051,Банківські послуги,Інші витрати,138993,Кіровоградська обласна організація,37297586,Кіровоградська область,щомісячна плата за обслуговування за серпень 2017 року,26007300684913,current,49.00,"АТ ""Ощадбанк""",00032129,юридична особа
ГРОМАДЯНСЬКА ПОЗИЦІЯ,"Кіровоградська область, Кропивницький, вулиця Шевченка, 54",79,2017-11-27,9,"Оренда будинків і приміщень та експлуатаційні витрати (прибирання, страхування орендованих будинків, охорона, сигналізація, ремонт, вивіз сміття, тощо)",Оренда нерухомості,138992,Кіровоградська обласна організація,37297586,Кіровоградська область,орендна плата за жовтень 2017 року,26007300684913,current,1426.54,"КП ""Поліграфія""",23098585,юридична особа
ГРОМАДЯНСЬКА ПОЗИЦІЯ,,66,2017-11-24,93,Повернення внесків приватних внесків (донорам),Повернення приватних внесків (донорам),139255,Тернопільська обласна організація,37016189,Тернопільська область,Часткове повернення безповоротної фінансової допомоги.,26002300597395,current,1439.00,Марчишак Арсен Романович,,фізична особа
ГРОМАДЯНСЬКА ПОЗИЦІЯ,"Львівська область, Львів, вулиця Шевченка, 2",59,2017-11-24,161,Грошова застава,Грошова застава,139171,Львівська обласна організація,37277596,Львівська область,Грошова застава за виборчий список,26005314012,current,1779.00,Камʼянка-Бузька міська виборча комісія,34028584,юридична особа
ГРОМАДЯНСЬКА ПОЗИЦІЯ,"Київ, вулиця Михайла Грушевського, 1Д",70,2017-11-23,1781300053,Банківські послуги,Інші витрати,139107,Волинська обласна організація,37204512,Волинська область,Погашення комiсiї за кас. обслуг. по зарахуванню на картки згiдно 17813000535 вiд 2017-08-14 р.,2600805509013,current,5.03,"ПАТ КБ ""Приватбанк""",14360570,юридична особа
ГРОМАДЯНСЬКА ПОЗИЦІЯ,"Київ, вулиця Бастіонна, 6",65,2017-11-23,49,Перерахування внесків приватних донорів до держбюджету,Перерахування внесків приватних донорів до держбюджету,138944,Центральний офіс,33492420,Україна,повернення коштів,26009000000569,current,120.00,ГУ ДКСУ,20055032,державний бюджет
ГРОМАДЯНСЬКА ПОЗИЦІЯ,"Київ, вулиця Бастіонна, 6",65,2017-11-23,50,Перерахування внесків приватних донорів до держбюджету,Перерахування внесків приватних донорів до держбюджету,138943,Центральний офіс,33492420,Україна,повернення коштів,26009000000569,current,200.00,ГУ ДКСУ,20055032,державний бюджет
ГРОМАДЯНСЬКА ПОЗИЦІЯ,"Волинська область, Луцьк, вулиця Стрілецька, 4А",61,2017-11-22,58,Військовий збір,Податкові платежі,139106,Волинська обласна організація,37204512,Волинська область,"*;101;37204512; вiйськовий збiр 1,5% з заробiтної плати за листопад 2017",2600805509013,current,450.00,УДКСУ у м. Луцьку,38009628,юридична особа
ГРОМАДЯНСЬКА ПОЗИЦІЯ,"Волинська область, Луцьк, Київський майдан, 4",62,2017-11-22,56,Сплата ЄСВ,Податкові платежі,139105,Волинська обласна організація,37204512,Волинська область,*;201;37204512; ЄСВ нарахований на заробiтну плату за листопад 2017,2600805509013,current,550.00,Луцька ОДПІ ГУ ДФС у Волинській обл.,39497665,юридична особа
ГРОМАДЯНСЬКА ПОЗИЦІЯ,"Волинська область, Луцьк, вулиця Стрілецька, 4А",61,2017-11-22,57,Військовий збір,Податкові платежі,139104,Волинська обласна організація,37204512,Волинська область,"*;101;37204512; вiйськовий збiр 1,5% з заробiтної плати за листопад 2017",2600805509013,current,37.50,УДКСУ у м. Луцьку,38009628,юридична особа
ГРОМАДЯНСЬКА ПОЗИЦІЯ,"Київ, вулиця Михайла Грушевського, 1Д",70,2017-11-22,BMO0K9TSHY,Банківські послуги,Інші витрати,139103,Волинська обласна організація,37204512,Волинська область,"Комiсiя за виконання платежiв в нацiональнiй валютi, згiдно з вiдкритою офертою банку N б/н вiд 2015-08-03 та тарифiв банку",2600805509013,current,3.00,"ПАТ КБ ""Приватбанк""",14360570,юридична особа
ГРОМАДЯНСЬКА ПОЗИЦІЯ,"Київ, вулиця Михайла Грушевського, 1Д",70,2017-11-22,BMO0K9TSXY,Банківські послуги,Інші витрати,139102,Волинська обласна організація,37204512,Волинська область,"Комiсiя за виконання платежiв в нацiональнiй валютi, згiдно з вiдкритою офертою банку N б/н вiд 2015-08-03 та тарифiв банку",2600805509013,current,3.00,"ПАТ КБ ""Приватбанк""",14360570,юридична особа
ГРОМАДЯНСЬКА ПОЗИЦІЯ,"Київ, вулиця Михайла Грушевського, 1Д",70,2017-11-22,BMO0K9TT9Y,Банківські послуги,Інші витрати,139101,Волинська обласна організація,37204512,Волинська область,"Комiсiя за виконання платежiв в нацiональнiй валютi, згiдно з вiдкритою офертою банку N б/н вiд 2015-08-03 та тарифiв банку",2600805509013,current,3.00,"ПАТ КБ ""Приватбанк""",14360570,юридична особа
ГРОМАДЯНСЬКА ПОЗИЦІЯ,,84,2017-11-22,59,"Заробітна плата, премії","Заробітна плата, лікарняні, вагітності, відрядження, компенсації",139019,Волинська обласна організація,37204512,Волинська область,Заробітна плата за листопад 2017,2600805509013,current,2012.50,Ковальчук Оксана Олександрівна,,фізична особа
ГРОМАДЯНСЬКА ПОЗИЦІЯ,"Київ, бульвар Тараса Шевченка, 18",76,2017-11-20,55,Послуги зв’язку,Послуги зв’язку,139100,Волинська обласна організація,37204512,Волинська область,"Рахунок-акт N 073300000002232017-10-71. за телекомунiкацiйнi послуги за жовтень 2017р. згiдно з договором N 55-6-05/1654 У сумi 465.50 грн., ПДВ - 20 % 93.10 г",2600805509013,current,558.60,"ПАТ ""Укртелеком""",21560766,юридична особа
ГРОМАДЯНСЬКА ПОЗИЦІЯ,"Київ, вулиця Михайла Грушевського, 1Д",70,2017-11-20,BKO0K0LXEY,Банківські послуги,Інші витрати,139099,Волинська обласна організація,37204512,Волинська область,"Комiсiя за виконання платежiв в нацiональнiй валютi, згiдно з вiдкритою офертою банку N б/н вiд 2015-08-03 та тарифiв банку",2600805509013,current,3.00,"ПАТ КБ ""Приватбанк""",14360570,юридична особа
ГРОМАДЯНСЬКА ПОЗИЦІЯ,"Волинська область, Луцьк, вулиця Драгоманова, 1А",79,2017-11-20,54,"Оренда будинків і приміщень та експлуатаційні витрати (прибирання, страхування орендованих будинків, охорона, сигналізація, ремонт, вивіз сміття, тощо)",Оренда нерухомості,139098,Волинська обласна організація,37204512,Волинська область,"Рахунок N 361 вiд 31-08-2017. Оренда за вересень 2017 вiдшкодування за серпень 2017. У сумi 2649.20 грн., ПДВ - 20 % 529.84 грн.",2600805509013,current,3222.24,"ТОВ ""ФРЕШ ТРЕЙД""",39808792,юридична особа
ГРОМАДЯНСЬКА ПОЗИЦІЯ,"Київ, вулиця Михайла Грушевського, 1Д",70,2017-11-15,1781300053,Банківські послуги,Інші витрати,139097,Волинська обласна організація,37204512,Волинська область,Погашення комiсiї за кас. обслуг. по зарахуванню на картки згiдно 17813000535 вiд 2017-08-14 р.,2600805509013,current,2.44,"ПАТ КБ ""Приватбанк""",14360570,юридична особа
ГРОМАДЯНСЬКА ПОЗИЦІЯ,"Чернігівська область, Чернігів",79,2017-11-10,9,"Оренда будинків і приміщень та експлуатаційні витрати (прибирання, страхування орендованих будинків, охорона, сигналізація, ремонт, вивіз сміття, тощо)",Оренда нерухомості,139302,Чернігівська обласна організація,40842758,Чернігівська область,Оплата за оренду приміщення зг. дог.25-17від 2017-03-01 Без ПДВ,26004000013238,current,2880.00,"ТОВ ""Новація Груп""",35305783,юридична особа
ГРОМАДЯНСЬКА ПОЗИЦІЯ,"Київ, вулиця Антоновича, 127",70,2017-11-10,344808,Банківські послуги,Інші витрати,139301,Чернігівська обласна організація,40842758,Чернігівська область,"Плата за переказ в нац. Вал. За плат.док. На папер. Носіях, отр.в опер.час, в меж. України згідно Договору і тарифів банку. Без ПДВ",26004000013238,current,10.00,"АТ ""Укрексімбанк""",00032112,юридична особа
ГРОМАДЯНСЬКА ПОЗИЦІЯ,"Київ, вулиця Антоновича, 127",70,2017-11-10,355427,Банківські послуги,Інші витрати,138960,Центральний офіс,33492420,Україна,Послуги банку,26009000000569,current,250.00,"АТ ""Укрексімбанк""",00032112,юридична особа
ГРОМАДЯНСЬКА ПОЗИЦІЯ,"Київ, вулиця Антоновича, 127",70,2017-11-08,279103,Банківські послуги,Інші витрати,139300,Чернігівська обласна організація,40842758,Чернігівська область,Плата за розрахункове обслуговування поточного рахунку у національній валюті за згідно Договору і тарифів Банку за період листопад 2017р. Без ПДВ,26004000013238,current,30.00,"АТ ""Укрексімбанк""",00032112,юридична особа
ГРОМАДЯНСЬКА ПОЗИЦІЯ,"Київ, вулиця Михайла Грушевського, 1Д",70,2017-11-08,1781300053,Банківські послуги,Інші витрати,139096,Волинська обласна організація,37204512,Волинська область,Погашення комiсiї за кас. обслуг. по зарахуванню на картки згiдно 17813000535 вiд 2017-08-14 р.,2600805509013,current,5.03,"ПАТ КБ ""Приватбанк""",14360570,юридична особа
ГРОМАДЯНСЬКА ПОЗИЦІЯ,"Київ, вулиця Михайла Грушевського, 1Д",70,2017-11-07,B7O0ITD0HA,Банківські послуги,Інші витрати,139095,Волинська обласна організація,37204512,Волинська область,Комiсiя за поповнення карток для виплат та нецiльовi платежi,2600805509013,current,2.44,"ПАТ КБ ""Приватбанк""",14360570,юридична особа
ГРОМАДЯНСЬКА ПОЗИЦІЯ,"Волинська область, Луцьк, вулиця Стрілецька, 4А",61,2017-11-07,49,Військовий збір,Податкові платежі,139094,Волинська обласна організація,37204512,Волинська область,"*;101;37204512; вiйськовий збiр 1,5% з заробiтної плати за жовтень 2017",2600805509013,current,450.00,УДКСУ у м. Луцьку,38009628,юридична особа
ГРОМАДЯНСЬКА ПОЗИЦІЯ,"Волинська область, Луцьк, Київський майдан, 4",62,2017-11-07,51,Сплата ЄСВ,Податкові платежі,139093,Волинська обласна організація,37204512,Волинська область,*;201;37204512; ЄСВ нарахований на заробiтну плату за жовтень 2017,2600805509013,current,550.00,Луцька ОДПІ ГУ ДФС у Волинській обл.,39497665,юридична особа
ГРОМАДЯНСЬКА ПОЗИЦІЯ,"Волинська область, Луцьк, вулиця Стрілецька, 4А",61,2017-11-07,50,Військовий збір,Податкові платежі,139092,Волинська обласна організація,37204512,Волинська область,"*;101;37204512; вiйськовий збiр 1,5% з заробiтної плати за жовтень 2017",2600805509013,current,37.50,УДКСУ у м. Луцьку,38009628,юридична особа
ГРОМАДЯНСЬКА ПОЗИЦІЯ,"Київ, вулиця Михайла Грушевського, 1Д",70,2017-11-07,B7O0ITCQXY,Банківські послуги,Інші витрати,139091,Волинська обласна організація,37204512,Волинська область,"Комiсiя за виконання платежiв в нацiональнiй валютi, згiдно з вiдкритою офертою банку N б/н вiд 2015-08-03 та тарифiв банку",2600805509013,current,3.00,"ПАТ КБ ""Приватбанк""",14360570,юридична особа
ГРОМАДЯНСЬКА ПОЗИЦІЯ,"Київ, вулиця Михайла Грушевського, 1Д",70,2017-11-07,B7O0ITCTLY,Банківські послуги,Інші витрати,139090,Волинська обласна організація,37204512,Волинська область,"Комiсiя за виконання платежiв в нацiональнiй валютi, згiдно з вiдкритою офертою банку N б/н вiд 2015-08-03 та тарифiв банку",2600805509013,current,3.00,"ПАТ КБ ""Приватбанк""",14360570,юридична особа
ГРОМАДЯНСЬКА ПОЗИЦІЯ,"Київ, вулиця Михайла Грушевського, 1Д",70,2017-11-07,B7O0ITCYAY,Банківські послуги,Інші витрати,139089,Волинська обласна організація,37204512,Волинська область,"Комiсiя за виконання платежiв в нацiональнiй валютi, згiдно з вiдкритою офертою банку N б/н вiд 2015-08-03 та тарифiв банку",2600805509013,current,3.00,"ПАТ КБ ""Приватбанк""",14360570,юридична особа
ГРОМАДЯНСЬКА ПОЗИЦІЯ,,84,2017-11-07,52,"Заробітна плата, премії","Заробітна плата, лікарняні, вагітності, відрядження, компенсації",139018,Волинська обласна організація,37204512,Волинська область,Заробітна плата за жовтень 2017,2600805509013,current,2012.50,Ковальчук Оксана Олександрівна,,фізична особа
ГРОМАДЯНСЬКА ПОЗИЦІЯ,,83,2017-11-07,53,"Виплати працівникам (не зарплата): лікарняні, вагітності, відрядження, компенсації ","Заробітна плата, лікарняні, вагітності, відрядження, компенсації",139017,Волинська обласна організація,37204512,Волинська область,Відрядні витрати за жовтень 2017,2600805509013,current,975.00,Ковальчук Оксана Олександрівна,,фізична особа
ГРОМАДЯНСЬКА ПОЗИЦІЯ,"Київ, вулиця Михайла Грушевського, 1Д",70,2017-11-01,AS7av6L2op,Банківські послуги,Інші витрати,139251,Дніпропетровська обласна організація,37006888,Дніпропетровська область,Комісія за обслуговування рахунку,26005050226940,current,100.00,"ПАТ КБ ""Приватбанк""",14360570,юридична особа
ГРОМАДЯНСЬКА ПОЗИЦІЯ,"Київ, вулиця Михайла Грушевського, 1Д",70,2017-11-01,AS7av6acwp,Банківські послуги,Інші витрати,139088,Волинська обласна організація,37204512,Волинська область,"Комiсiя за обслуговування рахунку вересень 2017р. згiдно договору банкiвського рахунку вiд 2015-08-03, без ПДВ",2600805509013,current,100.00,"ПАТ КБ ""Приватбанк""",14360570,юридична особа
ГРОМАДЯНСЬКА ПОЗИЦІЯ,"Київ, вулиця Госпітальна, 12Г",70,2017-10-31,67153976,Банківські послуги,Інші витрати,139270,Тернопільська обласна організація,37016189,Тернопільська область,Комісія за розрахункове обслуговування рахунку,26002300597395,current,40.00,"АТ ""Ощадбанк""",00032129,юридична особа
ГРОМАДЯНСЬКА ПОЗИЦІЯ,"Київ, вулиця Госпітальна, 12Г",70,2017-10-31,82363816,Банківські послуги,Інші витрати,139139,Чернівецька обласна організація,37273083,Чернівецька область,Коміс..за розрах. обсл.рахунку 26005300480754,26005300480754,current,10.00,"АТ ""Ощадбанк""",00032129,юридична особа
ГРОМАДЯНСЬКА ПОЗИЦІЯ,"Київ, вулиця Госпітальна, 12Г",70,2017-10-31,82329102,Банківські послуги,Інші витрати,139138,Чернівецька обласна організація,37273083,Чернівецька область,Списання щомісячної плати за обслуговування ТП Моя справа за жовтень 2017р,26005300480754,current,49.00,"АТ ""Ощадбанк""",00032129,юридична особа
ГРОМАДЯНСЬКА ПОЗИЦІЯ,"Київ, вулиця Академіка Туполєва, 28А",63,2017-10-31,47,Податок на доходи,Податкові платежі,138959,Центральний офіс,33492420,Україна,Податки до держбюджету,26009000000569,current,72.00,УДКСУ у Шевченківському районі м. Києва,37995466,юридична особа
ГРОМАДЯНСЬКА ПОЗИЦІЯ,"Київ, вулиця Академіка Туполєва, 28А",63,2017-10-31,46,Податок на доходи,Податкові платежі,138958,Центральний офіс,33492420,Україна,Податки до держбюджету,26009000000569,current,900.00,УДКСУ у Шевченківському районі м. Києва,37995466,юридична особа
ГРОМАДЯНСЬКА ПОЗИЦІЯ,Київ,60,2017-10-31,45,Інші податки,Податкові платежі,138957,Центральний офіс,33492420,Україна,Податки до держбюджету,26009000000569,current,1600.00,ДПІ у Шевченківському районі у м. Києві,38728711,юридична особа
ГРОМАДЯНСЬКА ПОЗИЦІЯ,"Київ, вулиця Антоновича, 127",70,2017-10-31,48,Банківські послуги,Інші витрати,138956,Центральний офіс,33492420,Україна,Послуги банку,26009000000569,current,38.64,"АТ ""Укрексімбанк""",00032112,юридична особа
ГРОМАДЯНСЬКА ПОЗИЦІЯ,"Київ, вулиця Магнітогорська, 1",76,2017-10-31,43,Послуги зв’язку,Послуги зв’язку,138955,Центральний офіс,33492420,Україна,Оплата послуг,26009000000569,current,183.40,"ТОВ ""Воля-кабель""",30777913,юридична особа
ГРОМАДЯНСЬКА ПОЗИЦІЯ,"Київ, вулиця Антоновича, 127",70,2017-10-31,133789,Банківські послуги,Інші витрати,138954,Центральний офіс,33492420,Україна,Послуги банку,26009000000569,current,96.00,"АТ ""Укрексімбанк""",00032112,юридична особа
ГРОМАДЯНСЬКА ПОЗИЦІЯ,Київ,48,2017-10-31,44,Публікування матеріалів у мережі Інтернет,Реклама в інтернеті,138953,Центральний офіс,33492420,Україна,Оплата послуг,26009000000569,current,1200.00,"ТОВ ""ГІГАЦЕНТР""",37956851,юридична особа
ГРОМАДЯНСЬКА ПОЗИЦІЯ,Київ,48,2017-10-31,42,Публікування матеріалів у мережі Інтернет,Реклама в інтернеті,138952,Центральний офіс,33492420,Україна,Оплата послуг,26009000000569,current,800.00,"ТОВ ""ГІГАТРАНС""",34603204,юридична особа
ГРОМАДЯНСЬКА ПОЗИЦІЯ,,84,2017-10-31,48,"Заробітна плата, премії","Заробітна плата, лікарняні, вагітності, відрядження, компенсації",138936,Центральний офіс,33492420,Україна,ЗП 2017р.,26009000000569,current,2576.00,Царьов Ігор Анатолійович,,фізична особа
ГРОМАДЯНСЬКА ПОЗИЦІЯ,,84,2017-10-31,48,"Заробітна плата, премії","Заробітна плата, лікарняні, вагітності, відрядження, компенсації",138935,Центральний офіс,33492420,Україна,ЗП 2017р.,26009000000569,current,644.00,Комарова Ганна Георгіївна,,фізична особа
ГРОМАДЯНСЬКА ПОЗИЦІЯ,,84,2017-10-31,48,"Заробітна плата, премії","Заробітна плата, лікарняні, вагітності, відрядження, компенсації",138934,Центральний офіс,33492420,Україна,ЗП 2017р.,26009000000569,current,644.00,Павлик Зоя Борисівна,,фізична особа
ГРОМАДЯНСЬКА ПОЗИЦІЯ,"Київ, вулиця Миколи Лєскова, 9",70,2017-10-30,bn,Банківські послуги,Інші витрати,139170,Львівська обласна організація,37277596,Львівська область,Комісія за за вихідні перекази,26005314012,current,200.00,"АТ ""Райффайзен банк Аваль""",14305909,юридична особа
ГРОМАДЯНСЬКА ПОЗИЦІЯ,"Київ, вулиця Миколи Лєскова, 9",70,2017-10-30,bn,Банківські послуги,Інші витрати,139169,Львівська обласна організація,37277596,Львівська область,Комісія за користування пакетом,26005314012,current,80.00,"АТ ""Райффайзен банк Аваль""",14305909,юридична особа
ГРОМАДЯНСЬКА ПОЗИЦІЯ,"Київ, вулиця Миколи Лєскова, 9",70,2017-10-30,bn,Банківські послуги,Інші витрати,139168,Львівська обласна організація,37277596,Львівська область,Комісія за надання виписки,26005314012,current,50.00,"АТ ""Райффайзен банк Аваль""",14305909,юридична особа
ГРОМАДЯНСЬКА ПОЗИЦІЯ,"Львівська область, Яворівський район, Яворів, площа Ринок, 14",58,2017-10-27,160,"Виготовлення друкованих матеріалів (плакатів, листівок, буклетів та інших агітаційних матеріалів)",Друкована агітація,139167,Львівська обласна організація,37277596,Львівська область,Друк газети,26005314012,current,1380.00,"ТОВ ""ВД ""Молода Галичина""",32148930,юридична особа
ГРОМАДЯНСЬКА ПОЗИЦІЯ,"Київ, вулиця Михайла Грушевського, 1Д",70,2017-10-26,1781300053,Банківські послуги,Інші витрати,139087,Волинська обласна організація,37204512,Волинська область,Погашення комiсiї за кас. обслуг. по зарахуванню на картки згiдно 17813000535 вiд 2017-08-14 р.,2600805509013,current,5.03,"ПАТ КБ ""Приватбанк""",14360570,юридична особа
ГРОМАДЯНСЬКА ПОЗИЦІЯ,,84,2017-10-25,48,"Заробітна плата, премії","Заробітна плата, лікарняні, вагітності, відрядження, компенсації",139016,Волинська обласна організація,37204512,Волинська область,Заробітна плата за жовтень 2017,2600805509013,current,2012.50,Ковальчук Оксана Олександрівна,,фізична особа
ГРОМАДЯНСЬКА ПОЗИЦІЯ,,80,2017-10-25,47,"Транспортні послуги (квитки, пасажирські перевезення і т.д.)","Транспортні послуги (квитки, пасажирські перевезення і т.д.)",139015,Волинська обласна організація,37204512,Волинська область,Рахунок N1 вiд 2017-10-19 р.Послуги з органiзацiї подорожуваннь. Без ПДВ,2600805509013,current,4680.00,Климчук Богдан Ярославович,,фізична особа
ГРОМАДЯНСЬКА ПОЗИЦІЯ,"Волинська область, Луцьк, вулиця Стрілецька, 4А",63,2017-10-24,46,Податок на доходи,Податкові платежі,139086,Волинська обласна організація,37204512,Волинська область,*:101::::податок з доходiв найманих працiвникiв з заробiтної плати за жовтень 2017 р. Без ПДВ,2600805509013,current,450.00,УДКСУ у м. Луцьку,38009628,юридична особа
ГРОМАДЯНСЬКА ПОЗИЦІЯ,"Київ, вулиця Михайла Грушевського, 1Д",70,2017-10-24,AOO0HKK5MY,Банківські послуги,Інші витрати,139085,Волинська обласна організація,37204512,Волинська область,"Комiсiя за виконання платежiв в нацiональнiй валютi, згiдно з вiдкритою офертою банку N б/н вiд 2015-08-03 та тарифiв банку",2600805509013,current,3.00,"ПАТ КБ ""Приватбанк""",14360570,юридична особа
ГРОМАДЯНСЬКА ПОЗИЦІЯ,"Волинська область, Луцьк, Київський майдан, 4",62,2017-10-24,44,Сплата ЄСВ,Податкові платежі,139084,Волинська обласна організація,37204512,Волинська область,*;201;37204512; ЄСВ нарахований на заробiтну плату за жовтень 2017,2600805509013,current,550.00,Луцька ОДПІ ГУ ДФС у Волинській обл.,39497665,юридична особа
ГРОМАДЯНСЬКА ПОЗИЦІЯ,"Київ, вулиця Михайла Грушевського, 1Д",70,2017-10-24,AOO0HKHTWY,Банківські послуги,Інші витрати,139083,Волинська обласна організація,37204512,Волинська область,"Комiсiя за виконання платежiв в нацiональнiй валютi, згiдно з вiдкритою офертою банку N б/н вiд 2015-08-03 та тарифiв банку",2600805509013,current,3.00,"ПАТ КБ ""Приватбанк""",14360570,юридична особа
ГРОМАДЯНСЬКА ПОЗИЦІЯ,"Волинська область, Луцьк, вулиця Стрілецька, 4А",61,2017-10-24,45,Військовий збір,Податкові платежі,139082,Волинська обласна організація,37204512,Волинська область,"*;101;37204512; вiйськовий збiр 1,5% з заробiтної плати за жовтень 2017",2600805509013,current,37.50,УДКСУ у м. Луцьку,38009628,юридична особа
ГРОМАДЯНСЬКА ПОЗИЦІЯ,"Київ, вулиця Михайла Грушевського, 1Д",70,2017-10-24,AOO0HKHPJY,Банківські послуги,Інші витрати,139081,Волинська обласна організація,37204512,Волинська область,"Комiсiя за виконання платежiв в нацiональнiй валютi, згiдно з вiдкритою офертою банку N б/н вiд 2015-08-03 та тарифiв банку",2600805509013,current,3.00,"ПАТ КБ ""Приватбанк""",14360570,юридична особа
ГРОМАДЯНСЬКА ПОЗИЦІЯ,,57,2017-10-20,43,Виготовлення брендованої продукції,"Виготовлення брендованої продукції (футболки, кепки, парасольки)",139014,Волинська обласна організація,37204512,Волинська область,Рахунок на оплату N 1018/1 вiд 18 жовтня 2017 р. За флагшток пластиковий.,2600805509013,current,1300.00,Орловська Тетяна Валеріївна,,фізична особа
ГРОМАДЯНСЬКА ПОЗИЦІЯ,"Київ, вулиця Госпітальна, 12Г",70,2017-10-19,73391274,Банківські послуги,Інші витрати,139221,Закарпатська обласна організація,37296975,Закарпатська область,Комісія банку,26003000588433,current,153.94,"АТ ""Ощадбанк""",00032129,юридична особа
ГРОМАДЯНСЬКА ПОЗИЦІЯ,"Закарпатська область, Ужгород, пл. Поштова, 3",61,2017-10-19,13,Військовий збір,Податкові платежі,139220,Закарпатська обласна організація,37296975,Закарпатська область,Військовий збір,26003000588433,current,48.00,УДКСУ у м. Ужгороді,38015610,юридична особа
ГРОМАДЯНСЬКА ПОЗИЦІЯ,"Закарпатська область, Ужгород, вулиця Загорська, 10",62,2017-10-19,16,Сплата ЄСВ,Податкові платежі,139219,Закарпатська обласна організація,37296975,Закарпатська область,ЄСВ,26003000588433,current,704.00,Ужгородська ОДПІ ГУ ДФС в Закарпатській області,39595916,юридична особа
ГРОМАДЯНСЬКА ПОЗИЦІЯ,"Закарпатська область, Ужгород, пл. Поштова, 3",63,2017-10-19,14,Податок на доходи,Податкові платежі,139218,Закарпатська обласна організація,37296975,Закарпатська область,ПДФО,26003000588433,current,576.00,УДКСУ у м. Ужгороді,38015610,юридична особа
ГРОМАДЯНСЬКА ПОЗИЦІЯ,"Закарпатська область, Ужгород, вулиця Загорська, 10",62,2017-10-19,17,Сплата ЄСВ,Податкові платежі,139217,Закарпатська обласна організація,37296975,Закарпатська область,ЄСВ,26003000588433,current,704.00,Ужгородська ОДПІ ГУ ДФС в Закарпатській області,39595916,юридична особа
ГРОМАДЯНСЬКА ПОЗИЦІЯ,"Закарпатська область, Ужгород, пл. Поштова, 3",61,2017-10-19,12,Військовий збір,Податкові платежі,139216,Закарпатська обласна організація,37296975,Закарпатська область,Військовий збір,26003000588433,current,48.00,УДКСУ у м. Ужгороді,38015610,юридична особа
ГРОМАДЯНСЬКА ПОЗИЦІЯ,"Закарпатська область, Ужгород, пл. Поштова, 3",63,2017-10-19,15,Податок на доходи,Податкові платежі,139215,Закарпатська обласна організація,37296975,Закарпатська область,ПДФО,26003000588433,current,576.00,УДКСУ у м. Ужгороді,38015610,юридична особа
ГРОМАДЯНСЬКА ПОЗИЦІЯ,"Київ, вулиця Госпітальна, 12Г",70,2017-10-19,АЗ2559257,Банківські послуги,Інші витрати,139214,Закарпатська обласна організація,37296975,Закарпатська область,Комісія банку,26003000588433,current,25.76,"АТ ""Ощадбанк""",00032129,юридична особа
ГРОМАДЯНСЬКА ПОЗИЦІЯ,"Київ, вулиця Госпітальна, 12Г",70,2017-10-19,АЗ2559256,Банківські послуги,Інші витрати,139213,Закарпатська обласна організація,37296975,Закарпатська область,Комісія банку,26003000588433,current,25.76,"АТ ""Ощадбанк""",00032129,юридична особа
ГРОМАДЯНСЬКА ПОЗИЦІЯ,"Київ, вулиця Госпітальна, 12Г",70,2017-10-19,73382702,Банківські послуги,Інші витрати,139212,Закарпатська обласна організація,37296975,Закарпатська область,Комісія банку,26003000588433,current,7.82,"АТ ""Ощадбанк""",00032129,юридична особа
ГРОМАДЯНСЬКА ПОЗИЦІЯ,"Київ, вулиця Госпітальна, 12Г",70,2017-10-19,73382241,Банківські послуги,Інші витрати,139211,Закарпатська обласна організація,37296975,Закарпатська область,Комісія банку,26003000588433,current,8.24,"АТ ""Ощадбанк""",00032129,юридична особа
ГРОМАДЯНСЬКА ПОЗИЦІЯ,,84,2017-10-19,АЗ2559256,"Заробітна плата, премії","Заробітна плата, лікарняні, вагітності, відрядження, компенсації",139183,Закарпатська обласна організація,37296975,Закарпатська область,Заробітна плата,26003000588433,current,2576.00,Цендра Роман Іванович,,фізична особа
ГРОМАДЯНСЬКА ПОЗИЦІЯ,,84,2017-10-19,АЗ2559257,"Заробітна плата, премії","Заробітна плата, лікарняні, вагітності, відрядження, компенсації",139182,Закарпатська обласна організація,37296975,Закарпатська область,Заробітна плата,26003000588433,current,2576.00,Цендра Роман Іванович,,фізична особа
ГРОМАДЯНСЬКА ПОЗИЦІЯ,"Кіровоградська область, Кропивницький, вулиця Шевченка, 54",79,2017-10-18,8,"Оренда будинків і приміщень та експлуатаційні витрати (прибирання, страхування орендованих будинків, охорона, сигналізація, ремонт, вивіз сміття, тощо)",Оренда нерухомості,138981,Кіровоградська обласна організація,37297586,Кіровоградська область,орендна плата за вересень 2017 року,26007300684913,current,1398.56,"КП ""Поліграфія""",23098585,юридична особа
ГРОМАДЯНСЬКА ПОЗИЦІЯ,"Кіровоградська область, Кропивницький, вулиця Шевченка, 54",79,2017-10-18,7,"Оренда будинків і приміщень та експлуатаційні витрати (прибирання, страхування орендованих будинків, охорона, сигналізація, ремонт, вивіз сміття, тощо)",Оренда нерухомості,138980,Кіровоградська обласна організація,37297586,Кіровоградська область,орендна плата за Серпень 2017 року,26007300684913,current,1399.97,"КП ""Поліграфія""",23098585,юридична особа
ГРОМАДЯНСЬКА ПОЗИЦІЯ,"Київ, вулиця Антоновича, 127",70,2017-10-17,525382,Банківські послуги,Інші витрати,139299,Чернігівська обласна організація,40842758,Чернігівська область,"плата за надання довідки пов.з РКО в нац.та ін. вал.(клоп.кл): архів.дані за пер. Від 5 бан. Днів до 1р, згідно Договору і таририфів Банку Без ПДВ",26004000013238,current,100.00,"АТ ""Укрексімбанк""",00032112,юридична особа
ГРОМАДЯНСЬКА ПОЗИЦІЯ,"Київ, вулиця Антоновича, 127",70,2017-10-17,139869,Банківські послуги,Інші витрати,138951,Центральний офіс,33492420,Україна,Послуги банку,26009000000569,current,219.39,"АТ ""Укрексімбанк""",00032112,юридична особа
ГРОМАДЯНСЬКА ПОЗИЦІЯ,"Київ, вулиця Андріївська, 2/12",70,2017-10-14,53748555,Банківські послуги,Інші витрати,139133,Київська міська організація,37615584,Київ,комісія по рахунку,26009337001200,current,209.00,"АТ ""Укрсиббанк""",09807750,юридична особа
ГРОМАДЯНСЬКА ПОЗИЦІЯ,"Чернігівська область, Чернігів",79,2017-10-13,8,"Оренда будинків і приміщень та експлуатаційні витрати (прибирання, страхування орендованих будинків, охорона, сигналізація, ремонт, вивіз сміття, тощо)",Оренда нерухомості,139298,Чернігівська обласна організація,40842758,Чернігівська область,Оплата за оренду приміщення зг. дог.25-17від 2017-03-01 Без ПДВ,26004000013238,current,2880.00,"ТОВ ""Новація Груп""",35305783,юридична особа
ГРОМАДЯНСЬКА ПОЗИЦІЯ,"Київ, вулиця Антоновича, 127",70,2017-10-13,468869,Банківські послуги,Інші витрати,139297,Чернігівська обласна організація,40842758,Чернігівська область,"Плата за переказ в нац. Вал. За плат. Док. На папер. Носіях, отр. В опер. Час, в межах України зг. Дог. І тариф.банку Без ПДВ",26004000013238,current,10.00,"АТ ""Укрексімбанк""",00032112,юридична особа
ГРОМАДЯНСЬКА ПОЗИЦІЯ,"Київ, вулиця Андріївська, 2/12",70,2017-10-13,1640669312,Банківські послуги,Інші витрати,139132,Київська міська організація,37615584,Київ,комісія по рахунку,26009337001200,current,3.00,"АТ ""Укрсиббанк""",09807750,юридична особа
ГРОМАДЯНСЬКА ПОЗИЦІЯ,"Київ, вулиця Андріївська, 2/12",70,2017-10-13,1640529853,Банківські послуги,Інші витрати,139131,Київська міська організація,37615584,Київ,комісія по рахунку,26009337001200,current,3.00,"АТ ""Укрсиббанк""",09807750,юридична особа
ГРОМАДЯНСЬКА ПОЗИЦІЯ,"Київ, вулиця Бастіонна, 6",65,2017-10-13,1,Перерахування внесків приватних донорів до держбюджету,Перерахування внесків приватних донорів до держбюджету,139129,Київська міська організація,37615584,Київ,Повернення помилково перерахованих коштів,26009337001200,current,240.00,ГУ ДКСУ,20055032,державний бюджет
ГРОМАДЯНСЬКА ПОЗИЦІЯ,,43,2017-10-13,2,Інші витрати,Інші витрати,139128,Київська міська організація,37615584,Київ,Сплата за ТМЦ,26009337001200,current,5473.60,Орловська Тетяна Валеріївна,,фізична особа
ГРОМАДЯНСЬКА ПОЗИЦІЯ,"Волинська область, Луцьк, вулиця Драгоманова, 1А",79,2017-10-13,74,"Оренда будинків і приміщень та експлуатаційні витрати (прибирання, страхування орендованих будинків, охорона, сигналізація, ремонт, вивіз сміття, тощо)",Оренда нерухомості,139127,Волинська обласна організація,37204512,Волинська область,"Рахунок на оплату вiд 30 вересня 2017. За оренду нежитлових примiщень жовтень 2017року. У сумi 2659.45 грн., ПДВ - 20 % 531.89 грн.",2600805509013,current,3191.34,"ТОВ ""ФРЕШ ТРЕЙД""",39808792,юридична особа
ГРОМАДЯНСЬКА ПОЗИЦІЯ,"Волинська область, Луцьк, вулиця Драгоманова, 1А",79,2017-10-13,42,"Оренда будинків і приміщень та експлуатаційні витрати (прибирання, страхування орендованих будинків, охорона, сигналізація, ремонт, вивіз сміття, тощо)",Оренда нерухомості,139080,Волинська обласна організація,37204512,Волинська область,"Рахунок N 361 вiд 31-08-2017. Оренда за вересень 2017 вiдшкодування за серпень 2017. У сумi 2649.20 грн., ПДВ - 20 % 529.84 грн.",2600805509013,current,3179.04,"ТОВ ""ФРЕШ ТРЕЙД""",39808792,юридична особа
ГРОМАДЯНСЬКА ПОЗИЦІЯ,,57,2017-10-13,41,Виготовлення брендованої продукції,"Виготовлення брендованої продукції (футболки, кепки, парасольки)",139013,Волинська обласна організація,37204512,Волинська область,Рахунок на оплату N 1011/2 вiд 11 жовтня 2017 р. За Прапори Без ПДВ,2600805509013,current,684.20,Орловська Тетяна Валеріївна,,фізична особа
ГРОМАДЯНСЬКА ПОЗИЦІЯ,"Київ, вулиця Антоновича, 127",70,2017-10-11,411855,Банківські послуги,Інші витрати,139296,Чернігівська обласна організація,40842758,Чернігівська область,Плата за розрахункове обслуговування поточного рахунку у національній валюті за згідно Договору і тарифів Банку за період жовтень 2017р. Без ПДВ,26004000013238,current,30.00,"АТ ""Укрексімбанк""",00032112,юридична особа
ГРОМАДЯНСЬКА ПОЗИЦІЯ,"Київ, вулиця Михайла Грушевського, 1Д",70,2017-10-11,1781300053,Банківські послуги,Інші витрати,139079,Волинська обласна організація,37204512,Волинська область,Погашення комiсiї за кас. обслуг. по зарахуванню на картки згiдно 17813000535 вiд 2017-08-14 р.,2600805509013,current,7.47,"ПАТ КБ ""Приватбанк""",14360570,юридична особа
ГРОМАДЯНСЬКА ПОЗИЦІЯ,"Дніпропетровська область, Кривий Ріг, проспект Миру, 44А",51,2017-10-10,22,Оплата ефірного часу на ТБ,Телереклама,139253,Дніпропетровська обласна організація,37006888,Дніпропетровська область,Розміщення інтервʼю,26005050226940,current,5600.82,"ТОВ ""Перший міський телеканал. Кривий Ріг""",39865405,юридична особа
ГРОМАДЯНСЬКА ПОЗИЦІЯ,"Київ, вулиця Михайла Грушевського, 1Д",70,2017-10-10,АА0007иг KУ,Банківські послуги,Інші витрати,139250,Дніпропетровська обласна організація,37006888,Дніпропетровська область,Комісія за дебетовий платіж,26005050226940,current,3.00,"ПАТ КБ ""Приватбанк""",14360570,юридична особа
ГРОМАДЯНСЬКА ПОЗИЦІЯ,,84,2017-10-10,38,"Заробітна плата, премії","Заробітна плата, лікарняні, вагітності, відрядження, компенсації",139012,Волинська обласна організація,37204512,Волинська область,Заробітна плата за вересень 2017,2600805509013,current,2012.50,Ковальчук Оксана Олександрівна,,фізична особа
ГРОМАДЯНСЬКА ПОЗИЦІЯ,"Київ, вулиця Михайла Грушевського, 1Д",70,2017-10-09,A9O0G751RA,Банківські послуги,Інші витрати,139078,Волинська обласна організація,37204512,Волинська область,Комiсiя за поповнення карток для виплат та нецiльовi платежi,2600805509013,current,2.44,"ПАТ КБ ""Приватбанк""",14360570,юридична особа
ГРОМАДЯНСЬКА ПОЗИЦІЯ,"Волинська область, Луцьк, вулиця Стрілецька, 4А",61,2017-10-09,33,Військовий збір,Податкові платежі,139077,Волинська обласна організація,37204512,Волинська область,"*;101;37204512; вiйськовий збiр 1,5% з заробiтної плати за вересень 2017",2600805509013,current,450.00,УДКСУ у м. Луцьку,38009628,юридична особа
ГРОМАДЯНСЬКА ПОЗИЦІЯ,"Київ, вулиця Михайла Грушевського, 1Д",70,2017-10-09,A9O0G74SWY,Банківські послуги,Інші витрати,139076,Волинська обласна організація,37204512,Волинська область,"Комiсiя за виконання платежiв в нацiональнiй валютi, згiдно з вiдкритою офертою банку N б/н вiд 2015-08-03 та тарифiв банку, без ПДВ.",2600805509013,current,3.00,"ПАТ КБ ""Приватбанк""",14360570,юридична особа
ГРОМАДЯНСЬКА ПОЗИЦІЯ,"Волинська область, Луцьк, Київський майдан, 4",62,2017-10-09,34,Сплата ЄСВ,Податкові платежі,139075,Волинська обласна організація,37204512,Волинська область,*;201;37204512; ЄСВ нарахований на заробiтну плату за вересень 2017,2600805509013,current,550.00,Луцька ОДПІ ГУ ДФС у Волинській обл.,39497665,юридична особа
ГРОМАДЯНСЬКА ПОЗИЦІЯ,"Київ, вулиця Михайла Грушевського, 1Д",70,2017-10-09,A9O0G74TRY,Банківські послуги,Інші витрати,139074,Волинська обласна організація,37204512,Волинська область,"Комiсiя за виконання платежiв в нацiональнiй валютi, згiдно з вiдкритою офертою банку N б/н вiд 2015-08-03 та тарифiв банку, без ПДВ.",2600805509013,current,3.00,"ПАТ КБ ""Приватбанк""",14360570,юридична особа
ГРОМАДЯНСЬКА ПОЗИЦІЯ,"Волинська область, Луцьк, вулиця Стрілецька, 4А",61,2017-10-09,35,Військовий збір,Податкові платежі,139073,Волинська обласна організація,37204512,Волинська область,"*;101;37204512; вiйськовий збiр 1,5% з заробiтної плати за вересень 2017",2600805509013,current,37.50,УДКСУ у м. Луцьку,38009628,юридична особа
ГРОМАДЯНСЬКА ПОЗИЦІЯ,"Київ, вулиця Михайла Грушевського, 1Д",70,2017-10-09,A9O0G74UBY,Банківські послуги,Інші витрати,139072,Волинська обласна організація,37204512,Волинська область,"Комiсiя за виконання платежiв в нацiональнiй валютi, згiдно з вiдкритою офертою банку N б/н вiд 2015-08-03 та тарифiв банку, без ПДВ.",2600805509013,current,3.00,"ПАТ КБ ""Приватбанк""",14360570,юридична особа
ГРОМАДЯНСЬКА ПОЗИЦІЯ,,83,2017-10-09,37,"Виплати працівникам (не зарплата): лікарняні, вагітності, відрядження, компенсації ","Заробітна плата, лікарняні, вагітності, відрядження, компенсації",139011,Волинська обласна організація,37204512,Волинська область,Відрядні витрати за вересень 2017,2600805509013,current,975.00,Ковальчук Оксана Олександрівна,,фізична особа
ГРОМАДЯНСЬКА ПОЗИЦІЯ,"Київ, вулиця Антоновича, 127",70,2017-10-09,40,Банківські послуги,Інші витрати,138950,Центральний офіс,33492420,Україна,Послуги банку,26009000000569,current,50.00,"АТ ""Укрексімбанк""",00032112,юридична особа
ГРОМАДЯНСЬКА ПОЗИЦІЯ,"Київ, вулиця Антоновича, 127",70,2017-10-09,40,Банківські послуги,Інші витрати,138949,Центральний офіс,33492420,Україна,Послуги банку,26009000000569,current,668.50,"АТ ""Укрексімбанк""",00032112,юридична особа
ГРОМАДЯНСЬКА ПОЗИЦІЯ,"Львівська область, Сокальський район, Великі Мости, вулиця Тараса Шевченка",59,2017-10-05,158,Грошова застава,Грошова застава,139166,Львівська обласна організація,37277596,Львівська область,Грошова застава за виборчий список,26005314012,current,1334.00,Великомостівська МВК,34105244,юридична особа
ГРОМАДЯНСЬКА ПОЗИЦІЯ,"Київ, вулиця Антоновича, 127",70,2017-10-05,41,Банківські послуги,Інші витрати,138948,Центральний офіс,33492420,Україна,Членський внесок,26009000000569,current,32.25,"АТ ""Укрексімбанк""",00032112,юридична особа
ГРОМАДЯНСЬКА ПОЗИЦІЯ,"Чернівецька область, Кіцманський район, Кіцмань, вулиця Незалежності, 57",59,2017-10-04,80533642,Грошова застава,Грошова застава,139137,Чернівецька обласна організація,37273083,Чернівецька область,"Грошова застава організації партії, яка висунула кадидатів у депутати Кіцманської міської ради",26005300480754,current,992.00,Кіцманська міська виборча комісія Кіцманського району Чернівецької області,34141551,юридична особа
ГРОМАДЯНСЬКА ПОЗИЦІЯ,"Кіровоградська область, Кропивницький",43,2017-10-04,6,Інші витрати,Інші витрати,138979,Кіровоградська обласна організація,37297586,Кіровоградська область,Згідно рахунку-фактури №К-0000070 від 28 вересня 2017 року,26007300684913,current,2395.00,Каліч Інна Миколаївна,,фізична особа
ГРОМАДЯНСЬКА ПОЗИЦІЯ,"Київ, вулиця Антоновича, 127",70,2017-10-04,183118,Банківські послуги,Інші витрати,138946,Центральний офіс,33492420,Україна,Послуги банку,26009000000569,current,250.00,"АТ ""Укрексімбанк""",00032112,юридична особа
ГРОМАДЯНСЬКА ПОЗИЦІЯ,"Тернопільська область, Зборівський район, Зборів, вулиця Богдана Хмельницького, 37",59,2017-10-03,92,Грошова застава,Грошова застава,139269,Тернопільська обласна організація,37016189,Тернопільська область,Грошова застава Зборівської районної організації,26002300597395,current,1663.00,Зборівська міська виборча комісія,34037830,юридична особа
ГРОМАДЯНСЬКА ПОЗИЦІЯ,"Тернопільська область, Гусятинський район, Хоростків, Князя Володимира, 17",59,2017-10-03,91,Грошова застава,Грошова застава,139268,Тернопільська обласна організація,37016189,Тернопільська область,Грошова застава Гусятинської районної організації,26002300597395,current,1439.00,Хоростківська МВК,33866157,юридична особа
ГРОМАДЯНСЬКА ПОЗИЦІЯ,"Тернопільська область, Гусятинський район, Хоростків, Князя Володимира, 17",59,2017-10-03,90,Грошова застава,Грошова застава,139267,Тернопільська обласна організація,37016189,Тернопільська область,Грошова застава Гусятинської районної організації,26002300597395,current,1439.00,Хоростківська МВК,33866157,юридична особа
ГРОМАДЯНСЬКА ПОЗИЦІЯ,"Тернопільська область, Лановецький район, Ланівці, вулиця Незалежності, 34",59,2017-10-03,89,Грошова застава,Грошова застава,139266,Тернопільська обласна організація,37016189,Тернопільська область,Грошова застава Лановецької районної організації,26002300597395,current,1194.00,Лановецька МВК,34039450,юридична особа
ГРОМАДЯНСЬКА ПОЗИЦІЯ,"Київ, вулиця Госпітальна, 12Г",70,2017-10-03,6975622321,Банківські послуги,Інші витрати,139232,Харківська обласна організація,37188240,Харківська область,Абонплата,26004300641612,current,49.00,"АТ ""Ощадбанк""",00032129,юридична особа
ГРОМАДЯНСЬКА ПОЗИЦІЯ,"Львівська область, Львів, вулиця Костя Левицького, 18",59,2017-10-03,158,Грошова застава,Грошова застава,139165,Львівська обласна організація,37277596,Львівська область,Грошова застава за виборчий список,26005314012,current,1334.00,ГУ ДКСУ у Львівській області,38008294,юридична особа
ГРОМАДЯНСЬКА ПОЗИЦІЯ,"Львівська область, Самбірський район, Рудки, площа Відродження, 1",59,2017-10-03,159,Грошова застава,Грошова застава,139164,Львівська обласна організація,37277596,Львівська область,Грошова застава за виборчий список,26005314012,current,1262.00,Рудківська МВК,34104586,юридична особа
ГРОМАДЯНСЬКА ПОЗИЦІЯ,"Київ, вулиця Михайла Грушевського, 1Д",70,2017-10-02,А879і7па1р,Банківські послуги,Інші витрати,139249,Дніпропетровська обласна організація,37006888,Дніпропетровська область,Комісія за обслуговування рахунку,26005050226940,current,100.00,"ПАТ КБ ""Приватбанк""",14360570,юридична особа
ГРОМАДЯНСЬКА ПОЗИЦІЯ,"Київ, вулиця Михайла Грушевського, 1Д",70,2017-10-02,AS79t5nzap,Банківські послуги,Інші витрати,139071,Волинська обласна організація,37204512,Волинська область,"Комiсiя за обслуговування рахунку вересень 2017р. згiдно договору банкiвського рахунку вiд 2015-08-03, без ПДВ",2600805509013,current,100.00,"ПАТ КБ ""Приватбанк""",14360570,юридична особа
ГРОМАДЯНСЬКА ПОЗИЦІЯ,"Київ, вулиця Михайла Грушевського, 1Д",70,2017-10-02,AS79t7zg4p,Банківські послуги,Інші витрати,138998,Черкаська обласна організація,37239608,Черкаська область,"Комісія за обслуговування рахунку за вереень 2017р. Згідно договору банківського рахунку від 2017-03-27, без ПДВ",26001051537726,current,100.00,"ПАТ КБ ""Приватбанк""",14360570,юридична особа
ГРОМАДЯНСЬКА ПОЗИЦІЯ,"Київ, вулиця Антоновича, 127",70,2017-09-29,140510,Банківські послуги,Інші витрати,139870,Центральний офіс,33492420,Україна,Послуги банку,26009000000569,current,96.00,"АТ ""Укрексімбанк""",00032112,юридична особа
ГРОМАДЯНСЬКА ПОЗИЦІЯ,"Київ, вулиця Госпітальна, 12Г",70,2017-09-29,65560553,Банківські послуги,Інші витрати,139265,Тернопільська обласна організація,37016189,Тернопільська область,Комісія за розрахункове обслуговування рахунку,26002300597395,current,10.00,"АТ ""Ощадбанк""",00032129,юридична особа
ГРОМАДЯНСЬКА ПОЗИЦІЯ,"Київ, вулиця Миколи Лєскова, 9",70,2017-09-28,bn,Банківські послуги,Інші витрати,139163,Львівська обласна організація,37277596,Львівська область,Комісія за користування пакетом,26005314012,current,100.00,"АТ ""Райффайзен банк Аваль""",14305909,юридична особа
ГРОМАДЯНСЬКА ПОЗИЦІЯ,"Київ, вулиця Миколи Лєскова, 9",70,2017-09-28,bn,Банківські послуги,Інші витрати,139162,Львівська обласна організація,37277596,Львівська область,Комісія за надання виписки,26005314012,current,50.00,"АТ ""Райффайзен банк Аваль""",14305909,юридична особа
ГРОМАДЯНСЬКА ПОЗИЦІЯ,"Київ, вулиця Антоновича, 127",70,2017-09-26,56,Банківські послуги,Інші витрати,139869,Центральний офіс,33492420,Україна,Послуги банку,26009000000569,current,38.64,"АТ ""Укрексімбанк""",00032112,юридична особа
ГРОМАДЯНСЬКА ПОЗИЦІЯ,"Київ, вулиця Академіка Туполєва, 28А",63,2017-09-26,55,Податок на доходи,Податкові платежі,139868,Центральний офіс,33492420,Україна,Податки до держбюджету,26009000000569,current,72.00,УДКСУ у Шевченківському районі м. Києва,37995466,юридична особа
ГРОМАДЯНСЬКА ПОЗИЦІЯ,"Київ, вулиця Академіка Туполєва, 28А",63,2017-09-26,54,Податок на доходи,Податкові платежі,139867,Центральний офіс,33492420,Україна,Податки до держбюджету,26009000000569,current,900.00,УДКСУ у Шевченківському районі м. Києва,37995466,юридична особа
ГРОМАДЯНСЬКА ПОЗИЦІЯ,Київ,60,2017-09-26,53,Інші податки,Податкові платежі,139866,Центральний офіс,33492420,Україна,Податки до держбюджету,26009000000569,current,1600.00,ДПІ у Шевченківському районі у м. Києві,38728711,юридична особа
ГРОМАДЯНСЬКА ПОЗИЦІЯ,Київ,48,2017-09-26,52,Публікування матеріалів у мережі Інтернет,Реклама в інтернеті,139865,Центральний офіс,33492420,Україна,Оплата послуг,26009000000569,current,1200.00,"ТОВ ""ГІГАЦЕНТР""",37956851,юридична особа
ГРОМАДЯНСЬКА ПОЗИЦІЯ,"Київ, вулиця Магнітогорська, 1",76,2017-09-26,51,Послуги зв’язку,Послуги зв’язку,139864,Центральний офіс,33492420,Україна,Оплата послуг,26009000000569,current,174.60,"ТОВ ""Воля-кабель""",30777913,юридична особа
ГРОМАДЯНСЬКА ПОЗИЦІЯ,Київ,48,2017-09-26,50,Публікування матеріалів у мережі Інтернет,Реклама в інтернеті,139863,Центральний офіс,33492420,Україна,Оплата послуг,26009000000569,current,800.00,"ТОВ ""ГІГАТРАНС""",34603204,юридична особа
ГРОМАДЯНСЬКА ПОЗИЦІЯ,"Київ, вулиця Антоновича, 127",70,2017-09-26,1021300,Банківські послуги,Інші витрати,139862,Центральний офіс,33492420,Україна,Послуги банку,26009000000569,current,2.50,"АТ ""Укрексімбанк""",00032112,юридична особа
ГРОМАДЯНСЬКА ПОЗИЦІЯ,"Київ, вулиця Антоновича, 127",70,2017-09-26,1021023,Банківські послуги,Інші витрати,139861,Центральний офіс,33492420,Україна,Послуги банку,26009000000569,current,2.50,"АТ ""Укрексімбанк""",00032112,юридична особа
ГРОМАДЯНСЬКА ПОЗИЦІЯ,"Київ, вулиця Антоновича, 127",70,2017-09-26,1021022,Банківські послуги,Інші витрати,139860,Центральний офіс,33492420,Україна,Послуги банку,26009000000569,current,2.50,"АТ ""Укрексімбанк""",00032112,юридична особа
ГРОМАДЯНСЬКА ПОЗИЦІЯ,"Київ, вулиця Антоновича, 127",70,2017-09-26,1021021,Банківські послуги,Інші витрати,139859,Центральний офіс,33492420,Україна,Послуги банку,26009000000569,current,2.50,"АТ ""Укрексімбанк""",00032112,юридична особа
ГРОМАДЯНСЬКА ПОЗИЦІЯ,"Київ, вулиця Антоновича, 127",70,2017-09-26,1021019,Банківські послуги,Інші витрати,139858,Центральний офіс,33492420,Україна,Послуги банку,26009000000569,current,2.50,"АТ ""Укрексімбанк""",00032112,юридична особа
ГРОМАДЯНСЬКА ПОЗИЦІЯ,"Київ, вулиця Антоновича, 127",70,2017-09-26,1021018,Банківські послуги,Інші витрати,139857,Центральний офіс,33492420,Україна,Послуги банку,26009000000569,current,2.50,"АТ ""Укрексімбанк""",00032112,юридична особа
ГРОМАДЯНСЬКА ПОЗИЦІЯ,"Київ, вулиця Антоновича, 127",70,2017-09-26,1021017,Банківські послуги,Інші витрати,139856,Центральний офіс,33492420,Україна,Послуги банку,26009000000569,current,2.50,"АТ ""Укрексімбанк""",00032112,юридична особа
ГРОМАДЯНСЬКА ПОЗИЦІЯ,,84,2017-09-26,56,"Заробітна плата, премії","Заробітна плата, лікарняні, вагітності, відрядження, компенсації",139818,Центральний офіс,33492420,Україна,ЗП за вересень 2017р.,26009000000569,current,2576.00,Царьов Ігор Анатолійович,,фізична особа
ГРОМАДЯНСЬКА ПОЗИЦІЯ,,84,2017-09-26,56,"Заробітна плата, премії","Заробітна плата, лікарняні, вагітності, відрядження, компенсації",139817,Центральний офіс,33492420,Україна,ЗП за вересень 2017р.,26009000000569,current,644.00,Комарова Ганна Георгіївна,,фізична особа
ГРОМАДЯНСЬКА ПОЗИЦІЯ,,84,2017-09-26,56,"Заробітна плата, премії","Заробітна плата, лікарняні, вагітності, відрядження, компенсації",139816,Центральний офіс,33492420,Україна,ЗП за вересень 2017р.,26009000000569,current,644.00,Павлик Зоя Борисівна,,фізична особа
ГРОМАДЯНСЬКА ПОЗИЦІЯ,,66,2017-09-26,21,Повернення внесків приватних внесків (донорам),Повернення приватних внесків (донорам),139240,Дніпропетровська обласна організація,37006888,Дніпропетровська область,Повернення помилково перечисленних коштів,26005050226940,current,100.00,Бобовніков Андрій Євгенович,,фізична особа
ГРОМАДЯНСЬКА ПОЗИЦІЯ,"Київ, вулиця Михайла Грушевського, 1Д",70,2017-09-26,9QO0F0RLOY,Банківські послуги,Інші витрати,138997,Черкаська обласна організація,37239608,Черкаська область,"Комісія за виконання платежів в національній валюті, згідно з відкритою офертою банку № б/н від 2017-03-27 та тарифів банку, без ПДВ",26001051537726,current,3.00,"ПАТ КБ ""Приватбанк""",14360570,юридична особа
ГРОМАДЯНСЬКА ПОЗИЦІЯ,,66,2017-09-26,1,Повернення внесків приватних внесків (донорам),Повернення приватних внесків (донорам),138994,Черкаська обласна організація,37239608,Черкаська область,помилково перераховані кошти Топтун Ірина Олександровна,26001051537726,current,2520.00,Топтун Ірина Олександрівна,,фізична особа
ГРОМАДЯНСЬКА ПОЗИЦІЯ,"Чернігівська область, Чернігів",79,2017-09-25,7,"Оренда будинків і приміщень та експлуатаційні витрати (прибирання, страхування орендованих будинків, охорона, сигналізація, ремонт, вивіз сміття, тощо)",Оренда нерухомості,139295,Чернігівська обласна організація,40842758,Чернігівська область,Оплата за оренду приміщення зг. дог.25-17від 2017-03-01 Без ПДВ,26004000013238,current,2880.00,"ТОВ ""Новація Груп""",35305783,юридична особа
ГРОМАДЯНСЬКА ПОЗИЦІЯ,"Київ, вулиця Антоновича, 127",70,2017-09-25,964006,Банківські послуги,Інші витрати,139294,Чернігівська обласна організація,40842758,Чернігівська область,"Плата за переказ в нац. Вал. За плат. Док. На папер. Носіях, отр. В опер. Час, в межах України зг. Дог. І тариф.банку Без ПДВ",26004000013238,current,10.00,"АТ ""Укрексімбанк""",00032112,юридична особа
ГРОМАДЯНСЬКА ПОЗИЦІЯ,"Тернопільська область, Тернопіль, майдан Волі, 4",69,2017-09-25,88,Організація заходів та інші організаційні послуги,Організація заходів та інші організаційні послуги,139264,Тернопільська обласна організація,37016189,Тернопільська область,Оренда залу,26002300597395,current,250.00,Тернопільська обласна спілка споживчих товариств,01767413,юридична особа
ГРОМАДЯНСЬКА ПОЗИЦІЯ,"Київ, вулиця Михайла Грушевського, 1Д",70,2017-09-23,1781300053,Банківські послуги,Інші витрати,139070,Волинська обласна організація,37204512,Волинська область,Погашення комiсiї за кас. обслуг. по зарахуванню на картки згiдно 17813000535 вiд 2017-08-14 р.,2600805509013,current,5.09,"ПАТ КБ ""Приватбанк""",14360570,юридична особа
ГРОМАДЯНСЬКА ПОЗИЦІЯ,"Київ, вулиця Антоновича, 127",70,2017-09-22,932282,Банківські послуги,Інші витрати,139293,Чернігівська обласна організація,40842758,Чернігівська область,Плата за розрахункове обслуговування поточного рахунку у національній валюті за згідно Договору і тарифів Банку за період вересень 2017р. Без ПДВ,26004000013238,current,30.00,"АТ ""Укрексімбанк""",00032112,юридична особа
ГРОМАДЯНСЬКА ПОЗИЦІЯ,,58,2017-09-22,3,"Виготовлення друкованих матеріалів (плакатів, листівок, буклетів та інших агітаційних матеріалів)",Друкована агітація,139225,Харківська обласна організація,37188240,Харківська область,Поліграфічна продукція без ПДВ згідно рахунку № ЛН 0000068 від 20 вересня 2017 р.,26004300641612,current,4600.00,Лошкаєва Наталя Вячеславівна,,фізична особа
ГРОМАДЯНСЬКА ПОЗИЦІЯ,"Волинська область, Луцьк, вулиця Стрілецька, 4А",61,2017-09-22,30,Військовий збір,Податкові платежі,139069,Волинська обласна організація,37204512,Волинська область,"*;101;37204512; вiйськовий збiр 1,5% з заробiтної плати за вересень 2017",2600805509013,current,450.00,УДКСУ у м. Луцьку,38009628,юридична особа
ГРОМАДЯНСЬКА ПОЗИЦІЯ,"Волинська область, Луцьк, Київський майдан, 4",62,2017-09-22,31,Сплата ЄСВ,Податкові платежі,139068,Волинська обласна організація,37204512,Волинська область,*;201;37204512; ЄСВ нарахований на заробiтну плату за вересень 2017,2600805509013,current,550.00,Луцька ОДПІ ГУ ДФС у Волинській обл.,39497665,юридична особа
ГРОМАДЯНСЬКА ПОЗИЦІЯ,"Волинська область, Луцьк, вулиця Стрілецька, 4А",61,2017-09-22,32,Військовий збір,Податкові платежі,139067,Волинська обласна організація,37204512,Волинська область,"*;101;37204512; вiйськовий збiр 1,5% з заробiтної плати за вересень 2017",2600805509013,current,37.50,УДКСУ у м. Луцьку,38009628,юридична особа
ГРОМАДЯНСЬКА ПОЗИЦІЯ,"Київ, вулиця Михайла Грушевського, 1Д",70,2017-09-22,9MO0ET4JSY,Банківські послуги,Інші витрати,139066,Волинська обласна організація,37204512,Волинська область,"Комiсiя за виконання платежiв в нацiональнiй валютi, згiдно з вiдкритою офертою банку N б/н вiд 2015-08-03 та тарифiв банку",2600805509013,current,3.00,"ПАТ КБ ""Приватбанк""",14360570,юридична особа
ГРОМАДЯНСЬКА ПОЗИЦІЯ,"Київ, вулиця Михайла Грушевського, 1Д",70,2017-09-22,9MO0ET4D6Y,Банківські послуги,Інші витрати,139065,Волинська обласна організація,37204512,Волинська область,"Комiсiя за виконання платежiв в нацiональнiй валютi, згiдно з вiдкритою офертою банку N б/н вiд 2015-08-03 та тарифiв банку",2600805509013,current,3.00,"ПАТ КБ ""Приватбанк""",14360570,юридична особа
ГРОМАДЯНСЬКА ПОЗИЦІЯ,"Київ, вулиця Михайла Грушевського, 1Д",70,2017-09-22,9MO0ET4EKY,Банківські послуги,Інші витрати,139064,Волинська обласна організація,37204512,Волинська область,"Комiсiя за виконання платежiв в нацiональнiй валютi, згiдно з вiдкритою офертою банку N б/н вiд 2015-08-03 та тарифiв банку",2600805509013,current,3.00,"ПАТ КБ ""Приватбанк""",14360570,юридична особа
ГРОМАДЯНСЬКА ПОЗИЦІЯ,"Київ, вулиця Михайла Грушевського, 1Д",70,2017-09-22,9MO0ESX00Y,Банківські послуги,Інші витрати,139063,Волинська обласна організація,37204512,Волинська область,"Комiсiя за виконання платежiв в нацiональнiй валютi, згiдно з вiдкритою офертою банку N б/н вiд 2015-08-03 та тарифiв банку",2600805509013,current,3.00,"ПАТ КБ ""Приватбанк""",14360570,юридична особа
ГРОМАДЯНСЬКА ПОЗИЦІЯ,,84,2017-09-22,29,"Заробітна плата, премії","Заробітна плата, лікарняні, вагітності, відрядження, компенсації",139010,Волинська обласна організація,37204512,Волинська область,Заробітна плата за вересень 2017,2600805509013,current,25.00,Чуріков Сергій Борисович,,фізична особа
ГРОМАДЯНСЬКА ПОЗИЦІЯ,,84,2017-09-22,29,"Заробітна плата, премії","Заробітна плата, лікарняні, вагітності, відрядження, компенсації",139009,Волинська обласна організація,37204512,Волинська область,Заробітна плата за вересень 2017,2600805509013,current,2012.50,Ковальчук Оксана Олександрівна,,фізична особа
ГРОМАДЯНСЬКА ПОЗИЦІЯ,,80,2017-09-22,28,"Транспортні послуги (квитки, пасажирські перевезення і т.д.)","Транспортні послуги (квитки, пасажирські перевезення і т.д.)",139008,Волинська обласна організація,37204512,Волинська область,Рахунок N 197 вiд 19-09-2017. Транспортнi послуги. Без ПДВ,2600805509013,current,2800.00,Михалюк Юрій Петрович,,фізична особа
ГРОМАДЯНСЬКА ПОЗИЦІЯ,"Дніпропетровська область, Дніпро́",66,2017-09-20,13722245,Повернення внесків приватних внесків (донорам),Повернення приватних внесків (донорам),139234,Дніпропетровська обласна організація,37006888,Дніпропетровська область,Повернення помилково перечисленних коштів,26005050226940,current,100.00,Бобовніков Андрій Євгенович,,фізична особа
ГРОМАДЯНСЬКА ПОЗИЦІЯ,"Київ, вулиця Антоновича, 127",70,2017-09-11,440561,Банківські послуги,Інші витрати,139855,Центральний офіс,33492420,Україна,Послуги банку,26009000000569,current,30.00,"АТ ""Укрексімбанк""",00032112,юридична особа
ГРОМАДЯНСЬКА ПОЗИЦІЯ,"Київ, вулиця Михайла Грушевського, 1Д",70,2017-09-09,1781300053,Банківські послуги,Інші витрати,139062,Волинська обласна організація,37204512,Волинська область,Погашення комiсiї за кас. обслуг. по зарахуванню на картки згiдно 17813000535 вiд 2017-08-14 р.,2600805509013,current,12.50,"ПАТ КБ ""Приватбанк""",14360570,юридична особа
ГРОМАДЯНСЬКА ПОЗИЦІЯ,"Київ, вулиця Михайла Грушевського, 1Д",70,2017-09-08,98O0DJPZPY,Банківські послуги,Інші витрати,139061,Волинська обласна організація,37204512,Волинська область,"Комiсiя за виконання платежiв в нацiональнiй валютi, згiдно з вiдкритою офертою банку N б/н вiд 2015-08-03 та тарифiв банку",2600805509013,current,3.00,"ПАТ КБ ""Приватбанк""",14360570,юридична особа
ГРОМАДЯНСЬКА ПОЗИЦІЯ,"Київ, вулиця Михайла Грушевського, 1Д",70,2017-09-08,98O0DGHJGA,Банківські послуги,Інші витрати,139060,Волинська обласна організація,37204512,Волинська область,Комiсiя за поповнення карток для виплат та нецiльовi платежi,2600805509013,current,2.31,"ПАТ КБ ""Приватбанк""",14360570,юридична особа
ГРОМАДЯНСЬКА ПОЗИЦІЯ,"Київ, вулиця Михайла Грушевського, 1Д",70,2017-09-08,97O0DGA3XY,Банківські послуги,Інші витрати,139058,Волинська обласна організація,37204512,Волинська область,"Комiсiя за виконання платежiв в нацiональнiй валютi, згiдно з вiдкритою офертою банку N б/н вiд 2015-08-03 та тарифiв банку",2600805509013,current,3.00,"ПАТ КБ ""Приватбанк""",14360570,юридична особа
ГРОМАДЯНСЬКА ПОЗИЦІЯ,"Волинська область, Луцьк, Київський майдан, 4",62,2017-09-08,22,Сплата ЄСВ,Податкові платежі,139057,Волинська обласна організація,37204512,Волинська область,*;201;37204512; ЄСВ нарахований на заробiтну плату за серпень 2017,2600805509013,current,1100.00,Луцька ОДПІ ГУ ДФС у Волинській обл.,39497665,юридична особа
ГРОМАДЯНСЬКА ПОЗИЦІЯ,"Київ, вулиця Михайла Грушевського, 1Д",70,2017-09-08,97O0DGA42Y,Банківські послуги,Інші витрати,139056,Волинська обласна організація,37204512,Волинська область,"Комiсiя за виконання платежiв в нацiональнiй валютi, згiдно з вiдкритою офертою банку N б/н вiд 2015-08-03 та тарифiв банку",2600805509013,current,3.00,"ПАТ КБ ""Приватбанк""",14360570,юридична особа
ГРОМАДЯНСЬКА ПОЗИЦІЯ,"Волинська область, Луцьк, вулиця Стрілецька, 4А",61,2017-09-08,23,Військовий збір,Податкові платежі,139055,Волинська обласна організація,37204512,Волинська область,"*;101;37204512; вiйськовий збiр 1,5% з заробiтної плати за серпень 2017",2600805509013,current,75.00,УДКСУ у м. Луцьку,38009628,юридична особа
ГРОМАДЯНСЬКА ПОЗИЦІЯ,"Київ, вулиця Михайла Грушевського, 1Д",70,2017-09-08,97O0DGA46Y,Банківські послуги,Інші витрати,139054,Волинська обласна організація,37204512,Волинська область,"Комiсiя за виконання платежiв в нацiональнiй валютi, згiдно з вiдкритою офертою банку N б/н вiд 2015-08-03 та тарифiв банку",2600805509013,current,3.00,"ПАТ КБ ""Приватбанк""",14360570,юридична особа
ГРОМАДЯНСЬКА ПОЗИЦІЯ,,80,2017-09-08,27,"Транспортні послуги (квитки, пасажирські перевезення і т.д.)","Транспортні послуги (квитки, пасажирські перевезення і т.д.)",139007,Волинська обласна організація,37204512,Волинська область,Рахунок N 193 вiд 05-09-2017. Транспортнi Послуги. Без ПДВ,2600805509013,current,6000.00,Михалюк Юрій Петрович,,фізична особа
ГРОМАДЯНСЬКА ПОЗИЦІЯ,,57,2017-09-08,26,Виготовлення брендованої продукції,"Виготовлення брендованої продукції (футболки, кепки, парасольки)",139006,Волинська обласна організація,37204512,Волинська область,Рахунок N СФ-0000008 вiд 07-09-2017 За прапори з нанесенням. Без ПДВ,2600805509013,current,1600.00,Джусюк Сергій Вʼячеславович,,фізична особа
ГРОМАДЯНСЬКА ПОЗИЦІЯ,,83,2017-09-08,25,"Виплати працівникам (не зарплата): лікарняні, вагітності, відрядження, компенсації ","Заробітна плата, лікарняні, вагітності, відрядження, компенсації",139005,Волинська обласна організація,37204512,Волинська область,Відрядні витрати за серпень 2017,2600805509013,current,925.00,Ковальчук Оксана Олександрівна,,фізична особа
ГРОМАДЯНСЬКА ПОЗИЦІЯ,,84,2017-09-08,24,"Заробітна плата, премії","Заробітна плата, лікарняні, вагітності, відрядження, компенсації",139004,Волинська обласна організація,37204512,Волинська область,Заробітна плата за серпень 2017,2600805509013,current,4075.00,Ковальчук Оксана Олександрівна,,фізична особа
ГРОМАДЯНСЬКА ПОЗИЦІЯ,,66,2017-09-07,19,Повернення внесків приватних внесків (донорам),Повернення приватних внесків (донорам),139239,Дніпропетровська обласна організація,37006888,Дніпропетровська область,Повернення помилково перечисленних коштів,26005050226940,current,100.00,Бобовніков Андрій Євгенович,,фізична особа
ГРОМАДЯНСЬКА ПОЗИЦІЯ,,66,2017-09-06,16,Повернення внесків приватних внесків (донорам),Повернення приватних внесків (донорам),139238,Дніпропетровська обласна організація,37006888,Дніпропетровська область,Повернення помилково перечисленних коштів,26005050226940,current,20.00,Лутаєнко Віктор Миколайович,,фізична особа
ГРОМАДЯНСЬКА ПОЗИЦІЯ,"Київ, вулиця Михайла Грушевського, 1Д",70,2017-09-01,А878у2шгкр,Банківські послуги,Інші витрати,139246,Дніпропетровська обласна організація,37006888,Дніпропетровська область,Комісія за обслуговування рахунку,26005050226940,current,100.00,"ПАТ КБ ""Приватбанк""",14360570,юридична особа
ГРОМАДЯНСЬКА ПОЗИЦІЯ,"Київ, вулиця Михайла Грушевського, 1Д",70,2017-09-01,AS78v7w1lp,Банківські послуги,Інші витрати,139053,Волинська обласна організація,37204512,Волинська область,"Комiсiя за обслуговування рахунку серпень 2017р. згiдно договору банкiвського рахунку вiд 2015-08-03, без ПДВ",2600805509013,current,100.00,"ПАТ КБ ""Приватбанк""",14360570,юридична особа
ГРОМАДЯНСЬКА ПОЗИЦІЯ,"Київ, вулиця Антоновича, 127",70,2017-08-31,147601,Банківські послуги,Інші витрати,139854,Центральний офіс,33492420,Україна,Послуги банку,26009000000569,current,96.00,"АТ ""Укрексімбанк""",00032112,юридична особа
ГРОМАДЯНСЬКА ПОЗИЦІЯ,"Київ, вулиця Антоновича, 127",70,2017-08-30,49,Банківські послуги,Інші витрати,139853,Центральний офіс,33492420,Україна,Послуги банку,26009000000569,current,38.64,"АТ ""Укрексімбанк""",00032112,юридична особа
ГРОМАДЯНСЬКА ПОЗИЦІЯ,"Київ, вулиця Академіка Туполєва, 28А",63,2017-08-30,48,Податок на доходи,Податкові платежі,139852,Центральний офіс,33492420,Україна,Податки до держбюджету,26009000000569,current,72.00,УДКСУ у Шевченківському районі м. Києва,37995466,юридична особа
ГРОМАДЯНСЬКА ПОЗИЦІЯ,"Київ, вулиця Академіка Туполєва, 28А",63,2017-08-30,47,Податок на доходи,Податкові платежі,139851,Центральний офіс,33492420,Україна,Податки до держбюджету,26009000000569,current,900.00,УДКСУ у Шевченківському районі м. Києва,37995466,юридична особа
ГРОМАДЯНСЬКА ПОЗИЦІЯ,Київ,60,2017-08-30,46,Інші податки,Податкові платежі,139850,Центральний офіс,33492420,Україна,Податки до держбюджету,26009000000569,current,1600.00,ДПІ у Шевченківському районі у м. Києві,38728711,юридична особа
ГРОМАДЯНСЬКА ПОЗИЦІЯ,Київ,48,2017-08-30,45,Публікування матеріалів у мережі Інтернет,Реклама в інтернеті,139849,Центральний офіс,33492420,Україна,Оплата послуг,26009000000569,current,1200.00,"ТОВ ""ГІГАЦЕНТР""",37956851,юридична особа
ГРОМАДЯНСЬКА ПОЗИЦІЯ,"Київ, вулиця Магнітогорська, 1",76,2017-08-30,44,Послуги зв’язку,Послуги зв’язку,139848,Центральний офіс,33492420,Україна,Оплата послуг,26009000000569,current,174.60,"ТОВ ""Воля-кабель""",30777913,юридична особа
ГРОМАДЯНСЬКА ПОЗИЦІЯ,Київ,48,2017-08-30,43,Публікування матеріалів у мережі Інтернет,Реклама в інтернеті,139847,Центральний офіс,33492420,Україна,Оплата послуг,26009000000569,current,800.00,"ТОВ ""ГІГАТРАНС""",34603204,юридична особа
ГРОМАДЯНСЬКА ПОЗИЦІЯ,"Київ, вулиця Антоновича, 127",70,2017-08-30,1198730,Банківські послуги,Інші витрати,139846,Центральний офіс,33492420,Україна,Послуги банку,26009000000569,current,2.50,"АТ ""Укрексімбанк""",00032112,юридична особа
ГРОМАДЯНСЬКА ПОЗИЦІЯ,"Київ, вулиця Антоновича, 127",70,2017-08-30,1197763,Банківські послуги,Інші витрати,139845,Центральний офіс,33492420,Україна,Послуги банку,26009000000569,current,2.50,"АТ ""Укрексімбанк""",00032112,юридична особа
ГРОМАДЯНСЬКА ПОЗИЦІЯ,"Київ, вулиця Антоновича, 127",70,2017-08-30,1197508,Банківські послуги,Інші витрати,139844,Центральний офіс,33492420,Україна,Послуги банку,26009000000569,current,2.50,"АТ ""Укрексімбанк""",00032112,юридична особа
ГРОМАДЯНСЬКА ПОЗИЦІЯ,"Київ, вулиця Антоновича, 127",70,2017-08-30,1197507,Банківські послуги,Інші витрати,139843,Центральний офіс,33492420,Україна,Послуги банку,26009000000569,current,2.50,"АТ ""Укрексімбанк""",00032112,юридична особа
ГРОМАДЯНСЬКА ПОЗИЦІЯ,"Київ, вулиця Антоновича, 127",70,2017-08-30,1197506,Банківські послуги,Інші витрати,139842,Центральний офіс,33492420,Україна,Послуги банку,26009000000569,current,2.50,"АТ ""Укрексімбанк""",00032112,юридична особа
ГРОМАДЯНСЬКА ПОЗИЦІЯ,"Київ, вулиця Антоновича, 127",70,2017-08-30,1197505,Банківські послуги,Інші витрати,139841,Центральний офіс,33492420,Україна,Послуги банку,26009000000569,current,2.50,"АТ ""Укрексімбанк""",00032112,юридична особа
ГРОМАДЯНСЬКА ПОЗИЦІЯ,"Київ, вулиця Антоновича, 127",70,2017-08-30,1197504,Банківські послуги,Інші витрати,139840,Центральний офіс,33492420,Україна,Послуги банку,26009000000569,current,2.50,"АТ ""Укрексімбанк""",00032112,юридична особа
ГРОМАДЯНСЬКА ПОЗИЦІЯ,,84,2017-08-30,49,"Заробітна плата, премії","Заробітна плата, лікарняні, вагітності, відрядження, компенсації",139815,Центральний офіс,33492420,Україна,ЗП за серпень 2017р.,26009000000569,current,2576.00,Царьов Ігор Анатолійович,,фізична особа
ГРОМАДЯНСЬКА ПОЗИЦІЯ,,84,2017-08-30,49,"Заробітна плата, премії","Заробітна плата, лікарняні, вагітності, відрядження, компенсації",139814,Центральний офіс,33492420,Україна,ЗП за серпень 2017р.,26009000000569,current,644.00,Комарова Ганна Георгіївна,,фізична особа
ГРОМАДЯНСЬКА ПОЗИЦІЯ,,84,2017-08-30,49,"Заробітна плата, премії","Заробітна плата, лікарняні, вагітності, відрядження, компенсації",139813,Центральний офіс,33492420,Україна,ЗП за серпень 2017р.,26009000000569,current,644.00,Павлик Зоя Борисівна,,фізична особа
ГРОМАДЯНСЬКА ПОЗИЦІЯ,"Київ, вулиця Миколи Лєскова, 9",70,2017-08-30,bn,Банківські послуги,Інші витрати,139161,Львівська обласна організація,37277596,Львівська область,Комісія за користування пакетом,26005314012,current,100.00,"АТ ""Райффайзен банк Аваль""",14305909,юридична особа
ГРОМАДЯНСЬКА ПОЗИЦІЯ,"Київ, вулиця Миколи Лєскова, 9",70,2017-08-30,bn,Банківські послуги,Інші витрати,139160,Львівська обласна організація,37277596,Львівська область,Комісія за надання виписки,26005314012,current,50.00,"АТ ""Райффайзен банк Аваль""",14305909,юридична особа
ГРОМАДЯНСЬКА ПОЗИЦІЯ,"Волинська область, Луцьк, вулиця Драгоманова, 1А",79,2017-08-29,20,"Оренда будинків і приміщень та експлуатаційні витрати (прибирання, страхування орендованих будинків, охорона, сигналізація, ремонт, вивіз сміття, тощо)",Оренда нерухомості,139052,Волинська обласна організація,37204512,Волинська область,"Рахунок на оплату вiд 30 червня. За оренду нежитлових примiщеннь липень 2017року. Компенсацiя - Липень 2017 У сумi 2652.20 грн., ПДВ - 20 % 530.44 грн.",2600805509013,current,3182.64,"ТОВ ""ФРЕШ ТРЕЙД""",39808792,юридична особа
ГРОМАДЯНСЬКА ПОЗИЦІЯ,"Волинська область, Луцьк, вулиця Драгоманова, 1А",79,2017-08-29,19,"Оренда будинків і приміщень та експлуатаційні витрати (прибирання, страхування орендованих будинків, охорона, сигналізація, ремонт, вивіз сміття, тощо)",Оренда нерухомості,139051,Волинська обласна організація,37204512,Волинська область,"Рахунок на оплату N 334 вiд 31 червня. За оренду нежитлових примiщеннь серпень 2017року. Вiдшкодування за липень 17 У сумi 2647.20 грн., ПДВ - 20 % 529.44 грн.",2600805509013,current,3176.64,"ТОВ ""ФРЕШ ТРЕЙД""",39808792,юридична особа
ГРОМАДЯНСЬКА ПОЗИЦІЯ,"Київ, вулиця Михайла Грушевського, 1Д",70,2017-08-29,LAF8300047,Банківські послуги,Інші витрати,139050,Волинська обласна організація,37204512,Волинська область,Погашення заборгованостi за розрахунково-касове обслуговування згiдно угоди РКО N б/н вiд 2015-08-03,2600805509013,current,75.78,"ПАТ КБ ""Приватбанк""",14360570,юридична особа
ГРОМАДЯНСЬКА ПОЗИЦІЯ,"Чернігівська область, Чернігів",79,2017-08-23,6,"Оренда будинків і приміщень та експлуатаційні витрати (прибирання, страхування орендованих будинків, охорона, сигналізація, ремонт, вивіз сміття, тощо)",Оренда нерухомості,139292,Чернігівська обласна організація,40842758,Чернігівська область,Оплата за оренду приміщення зг. дог.25-17від 2017-03-01 Без ПДВ,26004000013238,current,2880.00,"ТОВ ""Новація Груп""",35305783,юридична особа
ГРОМАДЯНСЬКА ПОЗИЦІЯ,"Київ, вулиця Антоновича, 127",70,2017-08-23,984852,Банківські послуги,Інші витрати,139291,Чернігівська обласна організація,40842758,Чернігівська область,"Плата за переказ в нац. Вал. За плат. Док. На папер. Носіях, отр. В опер. Час, в межах України зг. Дог. І тариф.банку Без ПДВ",26004000013238,current,10.00,"АТ ""Укрексімбанк""",00032112,юридична особа
ГРОМАДЯНСЬКА ПОЗИЦІЯ,"Дніпропетровська область, Дніпровський район, Дослідне",66,2017-08-20,Н0820Р8Я9С,Повернення внесків приватних внесків (донорам),Повернення приватних внесків (донорам),139236,Дніпропетровська обласна організація,37006888,Дніпропетровська область,Повернення помилково перечисленних коштів,26005050226940,current,10.00,Лутаєнко Віктор Миколайович,,фізична особа
ГРОМАДЯНСЬКА ПОЗИЦІЯ,"Київ, вулиця Антоновича, 127",70,2017-08-16,704943,Банківські послуги,Інші витрати,139290,Чернігівська обласна організація,40842758,Чернігівська область,Плата за розрахункове обслуговування поточного рахунку у національній валюті за згідно Договору і тарифів Банку за період серпень 2017р. Без ПДВ,26004000013238,current,30.00,"АТ ""Укрексімбанк""",00032112,юридична особа
ГРОМАДЯНСЬКА ПОЗИЦІЯ,"Кіровоградська область, Кропивницький, вулиця Шевченка, 54",60,2017-08-09,5,Інші податки,Податкові платежі,138991,Кіровоградська обласна організація,37297586,Кіровоградська область,Відшкодування за користування земельною ділянкою,26007300684913,current,61.67,"КП ""Поліграфія""",23098585,юридична особа
ГРОМАДЯНСЬКА ПОЗИЦІЯ,"Кіровоградська область, Кропивницький, вулиця Шевченка, 54",79,2017-08-09,4,"Оренда будинків і приміщень та експлуатаційні витрати (прибирання, страхування орендованих будинків, охорона, сигналізація, ремонт, вивіз сміття, тощо)",Оренда нерухомості,138990,Кіровоградська обласна організація,37297586,Кіровоградська область,орендна плата за липень 2017 року,26007300684913,current,1397.17,"КП ""Поліграфія""",23098585,юридична особа
ГРОМАДЯНСЬКА ПОЗИЦІЯ,"Кіровоградська область, Кропивницький, вулиця Шевченка, 54",79,2017-08-09,3,"Оренда будинків і приміщень та експлуатаційні витрати (прибирання, страхування орендованих будинків, охорона, сигналізація, ремонт, вивіз сміття, тощо)",Оренда нерухомості,138989,Кіровоградська обласна організація,37297586,Кіровоградська область,орендна плата за червень 2017 року,26007300684913,current,1375.16,"КП ""Поліграфія""",23098585,юридична особа
ГРОМАДЯНСЬКА ПОЗИЦІЯ,"Дніпропетровська область, Дніпро́",66,2017-08-07,Н0807У43НЯ,Повернення внесків приватних внесків (донорам),Повернення приватних внесків (донорам),139235,Дніпропетровська обласна організація,37006888,Дніпропетровська область,Повернення помилково перечисленних коштів,26005050226940,current,100.00,Бобовніков Андрій Євгенович,,фізична особа
ГРОМАДЯНСЬКА ПОЗИЦІЯ,"Київ, вулиця Антоновича, 127",70,2017-08-02,147381,Банківські послуги,Інші витрати,139839,Центральний офіс,33492420,Україна,Послуги банку,26009000000569,current,30.00,"АТ ""Укрексімбанк""",00032112,юридична особа
ГРОМАДЯНСЬКА ПОЗИЦІЯ,"Київ, вулиця Михайла Грушевського, 1Д",70,2017-08-02,8200АБЯ41 У,Банківські послуги,Інші витрати,139247,Дніпропетровська обласна організація,37006888,Дніпропетровська область,Комісія за дебетовий платіж,26005050226940,current,3.00,"ПАТ КБ ""Приватбанк""",14360570,юридична особа
ГРОМАДЯНСЬКА ПОЗИЦІЯ,"Київ, вулиця Михайла Грушевського, 1Д",70,2017-08-01,AS77v3g7up,Банківські послуги,Інші витрати,138996,Черкаська обласна організація,37239608,Черкаська область,"Комісія за обслуговування рахунку за липень 2017р. Згідно договору банківського рахунку від 2017-03-27, без ПДВ",26001051537726,current,100.00,"ПАТ КБ ""Приватбанк""",14360570,юридична особа
ГРОМАДЯНСЬКА ПОЗИЦІЯ,"Київ, вулиця Антоновича, 127",70,2017-07-31,140059,Банківські послуги,Інші витрати,139838,Центральний офіс,33492420,Україна,Послуги банку,26009000000569,current,96.00,"АТ ""Укрексімбанк""",00032112,юридична особа
ГРОМАДЯНСЬКА ПОЗИЦІЯ,"Київ, вулиця Госпітальна, 12Г",70,2017-07-31,62555852,Банківські послуги,Інші витрати,139263,Тернопільська обласна організація,37016189,Тернопільська область,Комісія за розрахункове обслуговування рахунку,26002300597395,current,20.00,"АТ ""Ощадбанк""",00032129,юридична особа
ГРОМАДЯНСЬКА ПОЗИЦІЯ,"Київ, вулиця Госпітальна, 12Г",70,2017-07-31,214469474,Банківські послуги,Інші витрати,139231,Харківська обласна організація,37188240,Харківська область,Абонплата,26004300641612,current,49.00,"АТ ""Ощадбанк""",00032129,юридична особа
ГРОМАДЯНСЬКА ПОЗИЦІЯ,"Київ, вулиця Госпітальна, 12Г",70,2017-07-31,69297456,Банківські послуги,Інші витрати,139210,Закарпатська обласна організація,37296975,Закарпатська область,Комісія банку,26003000588433,current,7.42,"АТ ""Ощадбанк""",00032129,юридична особа
ГРОМАДЯНСЬКА ПОЗИЦІЯ,"Київ, вулиця Госпітальна, 12Г",70,2017-07-31,76562620,Банківські послуги,Інші витрати,139136,Чернівецька обласна організація,37273083,Чернівецька область,Списання щомісячної плати за обслуговування ТП Моя справа за липень 2017р,26005300480754,current,49.00,"АТ ""Ощадбанк""",00032129,юридична особа
ГРОМАДЯНСЬКА ПОЗИЦІЯ,"Київ, вулиця Миколи Лєскова, 9",70,2017-07-28,bn,Банківські послуги,Інші витрати,139159,Львівська обласна організація,37277596,Львівська область,Комісія за користування пакетом,26005314012,current,100.00,"АТ ""Райффайзен банк Аваль""",14305909,юридична особа
ГРОМАДЯНСЬКА ПОЗИЦІЯ,"Київ, вулиця Миколи Лєскова, 9",70,2017-07-28,bn,Банківські послуги,Інші витрати,139158,Львівська обласна організація,37277596,Львівська область,Комісія за надання виписки,26005314012,current,50.00,"АТ ""Райффайзен банк Аваль""",14305909,юридична особа
ГРОМАДЯНСЬКА ПОЗИЦІЯ,"Київ, вулиця Антоновича, 127",70,2017-07-27,41,Банківські послуги,Інші витрати,139837,Центральний офіс,33492420,Україна,Послуги банку,26009000000569,current,38.64,"АТ ""Укрексімбанк""",00032112,юридична особа
ГРОМАДЯНСЬКА ПОЗИЦІЯ,"Київ, вулиця Академіка Туполєва, 28А",63,2017-07-27,40,Податок на доходи,Податкові платежі,139836,Центральний офіс,33492420,Україна,Податки до держбюджету,26009000000569,current,72.00,УДКСУ у Шевченківському районі м. Києва,37995466,юридична особа
ГРОМАДЯНСЬКА ПОЗИЦІЯ,"Київ, вулиця Академіка Туполєва, 28А",63,2017-07-27,39,Податок на доходи,Податкові платежі,139835,Центральний офіс,33492420,Україна,Податки до держбюджету,26009000000569,current,900.00,УДКСУ у Шевченківському районі м. Києва,37995466,юридична особа
ГРОМАДЯНСЬКА ПОЗИЦІЯ,Київ,60,2017-07-27,38,Інші податки,Податкові платежі,139834,Центральний офіс,33492420,Україна,Податки до держбюджету,26009000000569,current,1600.00,ДПІ у Шевченківському районі у м. Києві,38728711,юридична особа
ГРОМАДЯНСЬКА ПОЗИЦІЯ,Київ,48,2017-07-27,37,Публікування матеріалів у мережі Інтернет,Реклама в інтернеті,139833,Центральний офіс,33492420,Україна,Оплата послуг,26009000000569,current,1200.00,"ТОВ ""ГІГАЦЕНТР""",37956851,юридична особа
ГРОМАДЯНСЬКА ПОЗИЦІЯ,"Київ, вулиця Магнітогорська, 1",76,2017-07-27,36,Послуги зв’язку,Послуги зв’язку,139832,Центральний офіс,33492420,Україна,Оплата послуг,26009000000569,current,174.60,"ТОВ ""Воля-кабель""",30777913,юридична особа
ГРОМАДЯНСЬКА ПОЗИЦІЯ,Київ,48,2017-07-27,35,Публікування матеріалів у мережі Інтернет,Реклама в інтернеті,139831,Центральний офіс,33492420,Україна,Оплата послуг,26009000000569,current,800.00,"ТОВ ""ГІГАТРАНС""",34603204,юридична особа
ГРОМАДЯНСЬКА ПОЗИЦІЯ,"Київ, вулиця Антоновича, 127",70,2017-07-27,1122736,Банківські послуги,Інші витрати,139830,Центральний офіс,33492420,Україна,Послуги банку,26009000000569,current,10.00,"АТ ""Укрексімбанк""",00032112,юридична особа
ГРОМАДЯНСЬКА ПОЗИЦІЯ,"Київ, вулиця Антоновича, 127",70,2017-07-27,1122167,Банківські послуги,Інші витрати,139829,Центральний офіс,33492420,Україна,Послуги банку,26009000000569,current,2.50,"АТ ""Укрексімбанк""",00032112,юридична особа
ГРОМАДЯНСЬКА ПОЗИЦІЯ,"Київ, вулиця Антоновича, 127",70,2017-07-27,1122166,Банківські послуги,Інші витрати,139828,Центральний офіс,33492420,Україна,Послуги банку,26009000000569,current,2.50,"АТ ""Укрексімбанк""",00032112,юридична особа
ГРОМАДЯНСЬКА ПОЗИЦІЯ,"Київ, вулиця Антоновича, 127",70,2017-07-27,1122163,Банківські послуги,Інші витрати,139827,Центральний офіс,33492420,Україна,Послуги банку,26009000000569,current,2.50,"АТ ""Укрексімбанк""",00032112,юридична особа
ГРОМАДЯНСЬКА ПОЗИЦІЯ,"Київ, вулиця Антоновича, 127",70,2017-07-27,1121942,Банківські послуги,Інші витрати,139826,Центральний офіс,33492420,Україна,Послуги банку,26009000000569,current,10.00,"АТ ""Укрексімбанк""",00032112,юридична особа
ГРОМАДЯНСЬКА ПОЗИЦІЯ,"Київ, вулиця Антоновича, 127",70,2017-07-27,1121941,Банківські послуги,Інші витрати,139825,Центральний офіс,33492420,Україна,Послуги банку,26009000000569,current,10.00,"АТ ""Укрексімбанк""",00032112,юридична особа
ГРОМАДЯНСЬКА ПОЗИЦІЯ,"Київ, вулиця Антоновича, 127",70,2017-07-27,1121938,Банківські послуги,Інші витрати,139824,Центральний офіс,33492420,Україна,Послуги банку,26009000000569,current,10.00,"АТ ""Укрексімбанк""",00032112,юридична особа
ГРОМАДЯНСЬКА ПОЗИЦІЯ,,84,2017-07-27,41,"Заробітна плата, премії","Заробітна плата, лікарняні, вагітності, відрядження, компенсації",139812,Центральний офіс,33492420,Україна,ЗП за липень 2017р.,26009000000569,current,2576.00,Царьов Ігор Анатолійович,,фізична особа
ГРОМАДЯНСЬКА ПОЗИЦІЯ,,84,2017-07-27,41,"Заробітна плата, премії","Заробітна плата, лікарняні, вагітності, відрядження, компенсації",139811,Центральний офіс,33492420,Україна,ЗП за липень 2017р.,26009000000569,current,644.00,Комарова Ганна Георгіївна,,фізична особа
ГРОМАДЯНСЬКА ПОЗИЦІЯ,,84,2017-07-27,41,"Заробітна плата, премії","Заробітна плата, лікарняні, вагітності, відрядження, компенсації",139810,Центральний офіс,33492420,Україна,ЗП за липень 2017р.,26009000000569,current,644.00,Павлик Зоя Борисівна,,фізична особа
ГРОМАДЯНСЬКА ПОЗИЦІЯ,,58,2017-07-26,2,"Виготовлення друкованих матеріалів (плакатів, листівок, буклетів та інших агітаційних матеріалів)",Друкована агітація,139224,Харківська обласна організація,37188240,Харківська область,Поліграфічна продукція без ПДВ згідно рахунку № ЛН 0000026 від 25 липня 2017 р.,26004300641612,current,4600.00,Лошкаєва Наталя Вячеславівна,,фізична особа
ГРОМАДЯНСЬКА ПОЗИЦІЯ,"Дніпропетровська область, Дніпровський район, Дослідне",66,2017-07-20,Н07209ЯЛЛ.1,Повернення внесків приватних внесків (донорам),Повернення приватних внесків (донорам),139237,Дніпропетровська обласна організація,37006888,Дніпропетровська область,Повернення помилково перечисленних коштів,26005050226940,current,10.00,Лутаєнко Віктор Миколайович,,фізична особа
ГРОМАДЯНСЬКА ПОЗИЦІЯ,"Київ, вулиця Госпітальна, 12Г",70,2017-07-13,68344406,Банківські послуги,Інші витрати,139209,Закарпатська обласна організація,37296975,Закарпатська область,Комісія банку,26003000588433,current,336.50,"АТ ""Ощадбанк""",00032129,юридична особа
ГРОМАДЯНСЬКА ПОЗИЦІЯ,"Київ, вулиця Госпітальна, 12Г",70,2017-07-13,68344405,Банківські послуги,Інші витрати,139208,Закарпатська обласна організація,37296975,Закарпатська область,Комісія банку,26003000588433,current,60.00,"АТ ""Ощадбанк""",00032129,юридична особа
ГРОМАДЯНСЬКА ПОЗИЦІЯ,"Київ, вулиця Антоновича, 127",70,2017-07-12,159226,Банківські послуги,Інші витрати,139823,Центральний офіс,33492420,Україна,Послуги банку,26009000000569,current,207.35,"АТ ""Укрексімбанк""",00032112,юридична особа
ГРОМАДЯНСЬКА ПОЗИЦІЯ,"Чернігівська область, Чернігів",79,2017-07-12,5,"Оренда будинків і приміщень та експлуатаційні витрати (прибирання, страхування орендованих будинків, охорона, сигналізація, ремонт, вивіз сміття, тощо)",Оренда нерухомості,139289,Чернігівська обласна організація,40842758,Чернігівська область,Оплата за оренду приміщення зг. дог.25-17від 2017-03-01 Без ПДВ,26004000013238,current,2880.00,"ТОВ ""Новація Груп""",35305783,юридична особа
ГРОМАДЯНСЬКА ПОЗИЦІЯ,"Київ, вулиця Антоновича, 127",70,2017-07-12,506531,Банківські послуги,Інші витрати,139288,Чернігівська обласна організація,40842758,Чернігівська область,"плата за надання довідки пов.з РКО в нац.та ін. вал.(клоп.кл): архів.дані за пер. Від 5 бан. Днів до 1р, згідно Договору і таририфів Банку Без ПДВ",26004000013238,current,100.00,"АТ ""Укрексімбанк""",00032112,юридична особа
ГРОМАДЯНСЬКА ПОЗИЦІЯ,"Київ, вулиця Антоновича, 127",70,2017-07-12,481757,Банківські послуги,Інші витрати,139287,Чернігівська обласна організація,40842758,Чернігівська область,"Плата за переказ в нац. Вал. За плат. Док. На папер. Носіях, отр. В опер. Час, в межах України зг. Дог. І тариф.банку Без ПДВ",26004000013238,current,10.00,"АТ ""Укрексімбанк""",00032112,юридична особа
ГРОМАДЯНСЬКА ПОЗИЦІЯ,"Закарпатська область, Ужгород, пл. Поштова, 3",61,2017-07-12,11,Військовий збір,Податкові платежі,139207,Закарпатська обласна організація,37296975,Закарпатська область,Військовий збір,26003000588433,current,48.00,УДКСУ у м. Ужгороді,38015610,юридична особа
ГРОМАДЯНСЬКА ПОЗИЦІЯ,"Закарпатська область, Ужгород, вулиця Загорська, 10",62,2017-07-12,7,Сплата ЄСВ,Податкові платежі,139206,Закарпатська обласна організація,37296975,Закарпатська область,ЄСВ,26003000588433,current,704.00,Ужгородська ОДПІ ГУ ДФС в Закарпатській області,39595916,юридична особа
ГРОМАДЯНСЬКА ПОЗИЦІЯ,"Закарпатська область, Ужгород, пл. Поштова, 3",63,2017-07-12,8,Податок на доходи,Податкові платежі,139205,Закарпатська обласна організація,37296975,Закарпатська область,ПДФО,26003000588433,current,576.00,УДКСУ у м. Ужгороді,38015610,юридична особа
ГРОМАДЯНСЬКА ПОЗИЦІЯ,"Закарпатська область, Ужгород, вулиця Загорська, 10",62,2017-07-12,6,Сплата ЄСВ,Податкові платежі,139204,Закарпатська обласна організація,37296975,Закарпатська область,ЄСВ,26003000588433,current,704.00,Ужгородська ОДПІ ГУ ДФС в Закарпатській області,39595916,юридична особа
ГРОМАДЯНСЬКА ПОЗИЦІЯ,"Закарпатська область, Ужгород, пл. Поштова, 3",61,2017-07-12,10,Військовий збір,Податкові платежі,139203,Закарпатська обласна організація,37296975,Закарпатська область,Військовий збір,26003000588433,current,48.00,УДКСУ у м. Ужгороді,38015610,юридична особа
ГРОМАДЯНСЬКА ПОЗИЦІЯ,"Закарпатська область, Ужгород, пл. Поштова, 3",63,2017-07-12,9,Податок на доходи,Податкові платежі,139202,Закарпатська обласна організація,37296975,Закарпатська область,ПДФО,26003000588433,current,576.00,УДКСУ у м. Ужгороді,38015610,юридична особа
ГРОМАДЯНСЬКА ПОЗИЦІЯ,"Київ, вулиця Госпітальна, 12Г",70,2017-07-12,АЗ2559254,Банківські послуги,Інші витрати,139201,Закарпатська обласна організація,37296975,Закарпатська область,Комісія банку,26003000588433,current,25.76,"АТ ""Ощадбанк""",00032129,юридична особа
ГРОМАДЯНСЬКА ПОЗИЦІЯ,"Київ, вулиця Госпітальна, 12Г",70,2017-07-12,АЗ2559255,Банківські послуги,Інші витрати,139200,Закарпатська обласна організація,37296975,Закарпатська область,Комісія банку,26003000588433,current,25.76,"АТ ""Ощадбанк""",00032129,юридична особа
ГРОМАДЯНСЬКА ПОЗИЦІЯ,"Київ, вулиця Госпітальна, 12Г",70,2017-07-12,68343063,Банківські послуги,Інші витрати,139199,Закарпатська обласна організація,37296975,Закарпатська область,Комісія банку,26003000588433,current,8.38,"АТ ""Ощадбанк""",00032129,юридична особа
ГРОМАДЯНСЬКА ПОЗИЦІЯ,"Київ, вулиця Госпітальна, 12Г",70,2017-07-12,68342913,Банківські послуги,Інші витрати,139198,Закарпатська обласна організація,37296975,Закарпатська область,Комісія банку,26003000588433,current,8.18,"АТ ""Ощадбанк""",00032129,юридична особа
ГРОМАДЯНСЬКА ПОЗИЦІЯ,,84,2017-07-12,АЗ2559254,"Заробітна плата, премії","Заробітна плата, лікарняні, вагітності, відрядження, компенсації",139181,Закарпатська обласна організація,37296975,Закарпатська область,Заробітна плата,26003000588433,current,2576.00,Цендра Роман Іванович,,фізична особа
ГРОМАДЯНСЬКА ПОЗИЦІЯ,,84,2017-07-12,АЗ2559255,"Заробітна плата, премії","Заробітна плата, лікарняні, вагітності, відрядження, компенсації",139180,Закарпатська обласна організація,37296975,Закарпатська область,Заробітна плата,26003000588433,current,2576.00,Цендра Роман Іванович,,фізична особа
ГРОМАДЯНСЬКА ПОЗИЦІЯ,"Тернопільська область, Тернопіль, вулиця Євгена Коновальця, 4",79,2017-07-11,87,"Оренда будинків і приміщень та експлуатаційні витрати (прибирання, страхування орендованих будинків, охорона, сигналізація, ремонт, вивіз сміття, тощо)",Оренда нерухомості,139262,Тернопільська обласна організація,37016189,Тернопільська область,Оплата за оренду офісного приміщення,26002300597395,current,1500.00,"ТОВ ""Торговий Дім ""Універсальний""",31080395,юридична особа
ГРОМАДЯНСЬКА ПОЗИЦІЯ,"Тернопільська область, Тернопіль, вулиця Євгена Коновальця, 4",79,2017-07-11,86,"Оренда будинків і приміщень та експлуатаційні витрати (прибирання, страхування орендованих будинків, охорона, сигналізація, ремонт, вивіз сміття, тощо)",Оренда нерухомості,139261,Тернопільська обласна організація,37016189,Тернопільська область,Оплата за оренду офісного приміщення,26002300597395,current,1500.00,"ТОВ ""Торговий Дім ""Універсальний""",31080395,юридична особа
ГРОМАДЯНСЬКА ПОЗИЦІЯ,"Київ, вулиця Антоновича, 127",70,2017-07-10,402289,Банківські послуги,Інші витрати,139286,Чернігівська обласна організація,40842758,Чернігівська область,Плата за розрахункове обслуговування поточного рахунку у національній валюті за згідно Договору і тарифів Банку за період липень 2017р. Без ПДВ,26004000013238,current,30.00,"АТ ""Укрексімбанк""",00032112,юридична особа
ГРОМАДЯНСЬКА ПОЗИЦІЯ,"Київ, вулиця Антоновича, 127",70,2017-07-06,34,Банківські послуги,Інші витрати,139822,Центральний офіс,33492420,Україна,Послуги банку,26009000000569,current,50.00,"АТ ""Укрексімбанк""",00032112,юридична особа
ГРОМАДЯНСЬКА ПОЗИЦІЯ,"Київ, вулиця Антоновича, 127",70,2017-07-06,34,Банківські послуги,Інші витрати,139821,Центральний офіс,33492420,Україна,Послуги банку,26009000000569,current,522.39,"АТ ""Укрексімбанк""",00032112,юридична особа
ГРОМАДЯНСЬКА ПОЗИЦІЯ,"Київ, вулиця Антоновича, 127",70,2017-07-03,102121,Банківські послуги,Інші витрати,139819,Центральний офіс,33492420,Україна,Послуги банку,26009000000569,current,30.00,"АТ ""Укрексімбанк""",00032112,юридична особа
ГРОМАДЯНСЬКА ПОЗИЦІЯ,"Київ, вулиця Михайла Грушевського, 1Д",70,2017-07-03,AS76u50eup,Банківські послуги,Інші витрати,139049,Волинська обласна організація,37204512,Волинська область,"Комiсiя за обслуговування рахунку червень 2017р. згiдно договору банкiвського рахунку вiд 2015-08-03, без ПДВ",2600805509013,current,24.22,"ПАТ КБ ""Приватбанк""",14360570,юридична особа
ГРОМАДЯНСЬКА ПОЗИЦІЯ,"Київ, вулиця Михайла Грушевського, 1Д",70,2017-07-03,LHH3R00074,Банківські послуги,Інші витрати,138995,Черкаська обласна організація,37239608,Черкаська область,погашення заборгованості за розрахунково касове обслуговування згідно угоди РКО №б/н від2017-03-27,26001051537726,current,100.00,"ПАТ КБ ""Приватбанк""",14360570,юридична особа
ГРОМАДЯНСЬКА ПОЗИЦІЯ,"Київ, вулиця Антоновича, 127",70,2017-06-30,132105,Банківські послуги,Інші витрати,139809,Центральний офіс,33492420,Україна,Послуги банку,26009000000569,current,96.00,"АТ ""Укрексімбанк""",00032112,юридична особа
ГРОМАДЯНСЬКА ПОЗИЦІЯ,"Волинська область, Луцьк, вулиця Драгоманова, 1А",79,2017-06-30,19,"Оренда будинків і приміщень та експлуатаційні витрати (прибирання, страхування орендованих будинків, охорона, сигналізація, ремонт, вивіз сміття, тощо)",Оренда нерухомості,139048,Волинська обласна організація,37204512,Волинська область,"Рахунок на оплату N 223 вiд 31 травня 2017. За оренду нежитлових примiщеннь червень 2017року. У сумi 2671.40 грн., ПДВ - 20 % 534.28 грн.",2600805509013,current,3205.68,"ТОВ ""ФРЕШ ТРЕЙД""",39808792,юридична особа
ГРОМАДЯНСЬКА ПОЗИЦІЯ,"Волинська область, Луцьк, вулиця Драгоманова, 1А",79,2017-06-30,18,"Оренда будинків і приміщень та експлуатаційні витрати (прибирання, страхування орендованих будинків, охорона, сигналізація, ремонт, вивіз сміття, тощо)",Оренда нерухомості,139047,Волинська обласна організація,37204512,Волинська область,"Рахунок на оплату N 175 вiд 30 квiтня 2017. За оренду нежитлових примiщеннь травень 2017року. У сумi 2762.70 грн., ПДВ - 20 % 552.54 грн.",2600805509013,current,3315.24,"ТОВ ""ФРЕШ ТРЕЙД""",39808792,юридична особа
ГРОМАДЯНСЬКА ПОЗИЦІЯ,"Київ, вулиця Госпітальна, 12Г",70,2017-06-30,91006858,Банківські послуги,Інші витрати,138988,Кіровоградська обласна організація,37297586,Кіровоградська область,щомісячна плата за обслуговування за червень 2017 року,26007300684913,current,49.00,"АТ ""Ощадбанк""",00032129,юридична особа
ГРОМАДЯНСЬКА ПОЗИЦІЯ,"Київ, вулиця Миколи Лєскова, 9",70,2017-06-29,bn,Банківські послуги,Інші витрати,139157,Львівська обласна організація,37277596,Львівська область,Комісія за користування пакетом,26005314012,current,100.00,"АТ ""Райффайзен банк Аваль""",14305909,юридична особа
ГРОМАДЯНСЬКА ПОЗИЦІЯ,"Київ, вулиця Миколи Лєскова, 9",70,2017-06-29,bn,Банківські послуги,Інші витрати,139156,Львівська обласна організація,37277596,Львівська область,Комісія за надання виписки,26005314012,current,50.00,"АТ ""Райффайзен банк Аваль""",14305909,юридична особа
ГРОМАДЯНСЬКА ПОЗИЦІЯ,"Київ, вулиця Антоновича, 127",70,2017-06-27,30,Банківські послуги,Інші витрати,139808,Центральний офіс,33492420,Україна,Послуги банку,26009000000569,current,38.64,"АТ ""Укрексімбанк""",00032112,юридична особа
ГРОМАДЯНСЬКА ПОЗИЦІЯ,"Київ, вулиця Академіка Туполєва, 28А",63,2017-06-27,29,Податок на доходи,Податкові платежі,139807,Центральний офіс,33492420,Україна,Податки до держбюджету,26009000000569,current,72.00,УДКСУ у Шевченківському районі м. Києва,37995466,юридична особа
ГРОМАДЯНСЬКА ПОЗИЦІЯ,"Київ, вулиця Академіка Туполєва, 28А",63,2017-06-27,28,Податок на доходи,Податкові платежі,139806,Центральний офіс,33492420,Україна,Податки до держбюджету,26009000000569,current,900.00,УДКСУ у Шевченківському районі м. Києва,37995466,юридична особа
ГРОМАДЯНСЬКА ПОЗИЦІЯ,Київ,60,2017-06-27,27,Інші податки,Податкові платежі,139805,Центральний офіс,33492420,Україна,Податки до держбюджету,26009000000569,current,1600.00,ДПІ у Шевченківському районі у м. Києві,38728711,юридична особа
ГРОМАДЯНСЬКА ПОЗИЦІЯ,Київ,48,2017-06-27,26,Публікування матеріалів у мережі Інтернет,Реклама в інтернеті,139804,Центральний офіс,33492420,Україна,Оплата послуг,26009000000569,current,1200.00,"ТОВ ""ГІГАЦЕНТР""",37956851,юридична особа
ГРОМАДЯНСЬКА ПОЗИЦІЯ,"Київ, вулиця Магнітогорська, 1",76,2017-06-27,25,Послуги зв’язку,Послуги зв’язку,139803,Центральний офіс,33492420,Україна,Оплата послуг,26009000000569,current,174.60,"ТОВ ""Воля-кабель""",30777913,юридична особа
ГРОМАДЯНСЬКА ПОЗИЦІЯ,Київ,48,2017-06-27,24,Публікування матеріалів у мережі Інтернет,Реклама в інтернеті,139802,Центральний офіс,33492420,Україна,Оплата послуг,26009000000569,current,800.00,"ТОВ ""ГІГАТРАНС""",34603204,юридична особа
ГРОМАДЯНСЬКА ПОЗИЦІЯ,"Київ, вулиця Антоновича, 127",70,2017-06-27,_21,Банківські послуги,Інші витрати,139801,Центральний офіс,33492420,Україна,Послуги банку,26009000000569,current,2.50,"АТ ""Укрексімбанк""",00032112,юридична особа
ГРОМАДЯНСЬКА ПОЗИЦІЯ,"Київ, вулиця Антоновича, 127",70,2017-06-27,_20,Банківські послуги,Інші витрати,139800,Центральний офіс,33492420,Україна,Послуги банку,26009000000569,current,2.50,"АТ ""Укрексімбанк""",00032112,юридична особа
ГРОМАДЯНСЬКА ПОЗИЦІЯ,"Київ, вулиця Антоновича, 127",70,2017-06-27,_19,Банківські послуги,Інші витрати,139799,Центральний офіс,33492420,Україна,Послуги банку,26009000000569,current,2.50,"АТ ""Укрексімбанк""",00032112,юридична особа
ГРОМАДЯНСЬКА ПОЗИЦІЯ,"Київ, вулиця Антоновича, 127",70,2017-06-27,_18,Банківські послуги,Інші витрати,139798,Центральний офіс,33492420,Україна,Послуги банку,26009000000569,current,2.50,"АТ ""Укрексімбанк""",00032112,юридична особа
ГРОМАДЯНСЬКА ПОЗИЦІЯ,"Київ, вулиця Антоновича, 127",70,2017-06-27,_17,Банківські послуги,Інші витрати,139797,Центральний офіс,33492420,Україна,Послуги банку,26009000000569,current,2.50,"АТ ""Укрексімбанк""",00032112,юридична особа
ГРОМАДЯНСЬКА ПОЗИЦІЯ,"Київ, вулиця Антоновича, 127",70,2017-06-27,_16,Банківські послуги,Інші витрати,139796,Центральний офіс,33492420,Україна,Послуги банку,26009000000569,current,2.50,"АТ ""Укрексімбанк""",00032112,юридична особа
ГРОМАДЯНСЬКА ПОЗИЦІЯ,"Київ, вулиця Антоновича, 127",70,2017-06-27,_15,Банківські послуги,Інші витрати,139795,Центральний офіс,33492420,Україна,Послуги банку,26009000000569,current,2.50,"АТ ""Укрексімбанк""",00032112,юридична особа
ГРОМАДЯНСЬКА ПОЗИЦІЯ,"Київ, вулиця Антоновича, 127",70,2017-06-27,,Банківські послуги,Інші витрати,139794,Центральний офіс,33492420,Україна,Послуги банку,26009000000569,current,2.50,"АТ ""Укрексімбанк""",00032112,юридична особа
ГРОМАДЯНСЬКА ПОЗИЦІЯ,,79,2017-06-27,31,"Оренда будинків і приміщень та експлуатаційні витрати (прибирання, страхування орендованих будинків, охорона, сигналізація, ремонт, вивіз сміття, тощо)",Оренда нерухомості,139752,Центральний офіс,33492420,Україна,Оренда приміщення,26009000000569,current,12000.00,Михайличенко Алла Олексіївна,,фізична особа
ГРОМАДЯНСЬКА ПОЗИЦІЯ,,84,2017-06-27,30,"Заробітна плата, премії","Заробітна плата, лікарняні, вагітності, відрядження, компенсації",139751,Центральний офіс,33492420,Україна,ЗП за червень 2017р.,26009000000569,current,2576.00,Царьов Ігор Анатолійович,,фізична особа
ГРОМАДЯНСЬКА ПОЗИЦІЯ,,84,2017-06-27,30,"Заробітна плата, премії","Заробітна плата, лікарняні, вагітності, відрядження, компенсації",139750,Центральний офіс,33492420,Україна,ЗП за червень 2017р.,26009000000569,current,644.00,Комарова Ганна Георгіївна,,фізична особа
ГРОМАДЯНСЬКА ПОЗИЦІЯ,,84,2017-06-27,30,"Заробітна плата, премії","Заробітна плата, лікарняні, вагітності, відрядження, компенсації",139749,Центральний офіс,33492420,Україна,ЗП за червень 2017р.,26009000000569,current,644.00,Павлик Зоя Борисівна,,фізична особа
ГРОМАДЯНСЬКА ПОЗИЦІЯ,"Чернігівська область, Чернігів",79,2017-06-14,4,"Оренда будинків і приміщень та експлуатаційні витрати (прибирання, страхування орендованих будинків, охорона, сигналізація, ремонт, вивіз сміття, тощо)",Оренда нерухомості,139285,Чернігівська обласна організація,40842758,Чернігівська область,Оплата за оренду приміщення зг. дог.25-17від 2017-03-01 Без ПДВ,26004000013238,current,2880.00,"ТОВ ""Новація Груп""",35305783,юридична особа
ГРОМАДЯНСЬКА ПОЗИЦІЯ,"Київ, вулиця Антоновича, 127",70,2017-06-14,568923,Банківські послуги,Інші витрати,139284,Чернігівська обласна організація,40842758,Чернігівська область,"Плата за переказ в нац. Вал. За плат. Док. На папер. Носіях, отр. В опер. Час, в межах України зг. Дог. І тариф.банку Без ПДВ",26004000013238,current,10.00,"АТ ""Укрексімбанк""",00032112,юридична особа
ГРОМАДЯНСЬКА ПОЗИЦІЯ,"Київ, вулиця Антоновича, 127",70,2017-06-12,467064,Банківські послуги,Інші витрати,139283,Чернігівська обласна організація,40842758,Чернігівська область,Плата за розрахункове обслуговування поточного рахунку у національній валюті за згідно Договору і тарифів Банку за період червень 2017р. Без ПДВ,26004000013238,current,30.00,"АТ ""Укрексімбанк""",00032112,юридична особа
ГРОМАДЯНСЬКА ПОЗИЦІЯ,"Київ, вулиця Антоновича, 127",70,2017-06-10,407699,Банківські послуги,Інші витрати,139793,Центральний офіс,33492420,Україна,Послуги банку,26009000000569,current,30.00,"АТ ""Укрексімбанк""",00032112,юридична особа
ГРОМАДЯНСЬКА ПОЗИЦІЯ,"Київ, вулиця Михайла Грушевського, 1Д",70,2017-06-08,TZ008BBV4T,Банківські послуги,Інші витрати,139046,Волинська обласна організація,37204512,Волинська область,"Комiсiя за обслуговування рахункiв згiдно з договором банкiвського рахунку вiд 2015-08-03, без ПДВ.",2600805509013,current,34.86,"ПАТ КБ ""Приватбанк""",14360570,юридична особа
ГРОМАДЯНСЬКА ПОЗИЦІЯ,"Волинська область, Луцьк, вулиця Словацького, 2",69,2017-06-08,17,Організація заходів та інші організаційні послуги,Організація заходів та інші організаційні послуги,139045,Волинська обласна організація,37204512,Волинська область,Рахунок N 1537 вiд 2017-07-08. За оренду конференц. залу. Без ПДВ,2600805509013,current,320.00,"ТОВ ""ЦЕНТР ГОТЕЛЬНОГО СЕРВІСУ""",41117101,юридична особа
ГРОМАДЯНСЬКА ПОЗИЦІЯ,"Волинська область, Луцьк, вулиця Стрілецька, 4А",63,2017-06-07,21,Податок на доходи,Податкові платежі,139059,Волинська обласна організація,37204512,Волинська область,*:101::::податок з доходiв найманих працiвникiв з заробiтної плати за серпень 2017 р. Без ПДВ,2600805509013,current,900.00,УДКСУ у м. Луцьку,38009628,юридична особа
ГРОМАДЯНСЬКА ПОЗИЦІЯ,"Волинська область, Луцьк, вулиця Глушець, 49",52,2017-06-07,16,Інша реклама (без класифікації),Реклама (без класифікації),139044,Волинська обласна організація,37204512,Волинська область,Рахунок N 67 вiд 27 травня 2017. Оплата за рекламно-iнформацiйнi послуги.,2600805509013,current,2700.00,"РГ ""Волинь пост""",37940532,юридична особа
ГРОМАДЯНСЬКА ПОЗИЦІЯ,"Кіровоградська область, Кропивницький, вулиця Шевченка, 54",79,2017-06-02,2,"Оренда будинків і приміщень та експлуатаційні витрати (прибирання, страхування орендованих будинків, охорона, сигналізація, ремонт, вивіз сміття, тощо)",Оренда нерухомості,138987,Кіровоградська обласна організація,37297586,Кіровоградська область,орендна плата за травень 2017 року,26007300684913,current,1357.51,"КП ""Поліграфія""",23098585,юридична особа
ГРОМАДЯНСЬКА ПОЗИЦІЯ,"Київ, вулиця Михайла Грушевського, 1Д",70,2017-06-01,AS75v7cwmp,Банківські послуги,Інші витрати,139043,Волинська обласна організація,37204512,Волинська область,"Комiсiя за обслуговування рахунку травень 2017р. згiдно договору банкiвського рахунку вiд 2015-08-03, без ПДВ",2600805509013,current,65.14,"ПАТ КБ ""Приватбанк""",14360570,юридична особа
ГРОМАДЯНСЬКА ПОЗИЦІЯ,"Київ, вулиця Антоновича, 127",70,2017-05-31,143537,Банківські послуги,Інші витрати,139792,Центральний офіс,33492420,Україна,Послуги банку,26009000000569,current,96.00,"АТ ""Укрексімбанк""",00032112,юридична особа
ГРОМАДЯНСЬКА ПОЗИЦІЯ,"Київ, вулиця Госпітальна, 12Г",70,2017-05-31,202569114,Банківські послуги,Інші витрати,139230,Харківська обласна організація,37188240,Харківська область,Абонплата,26004300641612,current,49.00,"АТ ""Ощадбанк""",00032129,юридична особа
ГРОМАДЯНСЬКА ПОЗИЦІЯ,"Київ, вулиця Госпітальна, 12Г",70,2017-05-31,89085858,Банківські послуги,Інші витрати,138986,Кіровоградська обласна організація,37297586,Кіровоградська область,щомісячна плата за обслуговування за травень 2017 року,26007300684913,current,49.00,"АТ ""Ощадбанк""",00032129,юридична особа
ГРОМАДЯНСЬКА ПОЗИЦІЯ,"Київ, вулиця Антоновича, 127",70,2017-05-30,22,Банківські послуги,Інші витрати,139791,Центральний офіс,33492420,Україна,Послуги банку,26009000000569,current,38.64,"АТ ""Укрексімбанк""",00032112,юридична особа
ГРОМАДЯНСЬКА ПОЗИЦІЯ,"Київ, вулиця Академіка Туполєва, 28А",63,2017-05-30,21,Податок на доходи,Податкові платежі,139790,Центральний офіс,33492420,Україна,Податки до держбюджету,26009000000569,current,72.00,УДКСУ у Шевченківському районі м. Києва,37995466,юридична особа
ГРОМАДЯНСЬКА ПОЗИЦІЯ,"Київ, вулиця Академіка Туполєва, 28А",63,2017-05-30,20,Податок на доходи,Податкові платежі,139789,Центральний офіс,33492420,Україна,Податки до держбюджету,26009000000569,current,900.00,УДКСУ у Шевченківському районі м. Києва,37995466,юридична особа
ГРОМАДЯНСЬКА ПОЗИЦІЯ,Київ,60,2017-05-30,19,Інші податки,Податкові платежі,139788,Центральний офіс,33492420,Україна,Податки до держбюджету,26009000000569,current,1600.00,ДПІ у Шевченківському районі у м. Києві,38728711,юридична особа
ГРОМАДЯНСЬКА ПОЗИЦІЯ,Київ,48,2017-05-30,18,Публікування матеріалів у мережі Інтернет,Реклама в інтернеті,139787,Центральний офіс,33492420,Україна,Оплата послуг,26009000000569,current,1200.00,"ТОВ ""ГІГАЦЕНТР""",37956851,юридична особа
ГРОМАДЯНСЬКА ПОЗИЦІЯ,"Київ, вулиця Магнітогорська, 1",76,2017-05-30,17,Послуги зв’язку,Послуги зв’язку,139786,Центральний офіс,33492420,Україна,Оплата послуг,26009000000569,current,174.60,"ТОВ ""Воля-кабель""",30777913,юридична особа
ГРОМАДЯНСЬКА ПОЗИЦІЯ,Київ,48,2017-05-30,16,Публікування матеріалів у мережі Інтернет,Реклама в інтернеті,139785,Центральний офіс,33492420,Україна,Оплата послуг,26009000000569,current,800.00,"ТОВ ""ГІГАТРАНС""",34603204,юридична особа
ГРОМАДЯНСЬКА ПОЗИЦІЯ,"Київ, вулиця Антоновича, 127",70,2017-05-30,_14,Банківські послуги,Інші витрати,139784,Центральний офіс,33492420,Україна,Послуги банку,26009000000569,current,2.50,"АТ ""Укрексімбанк""",00032112,юридична особа
ГРОМАДЯНСЬКА ПОЗИЦІЯ,"Київ, вулиця Антоновича, 127",70,2017-05-30,_13,Банківські послуги,Інші витрати,139783,Центральний офіс,33492420,Україна,Послуги банку,26009000000569,current,2.50,"АТ ""Укрексімбанк""",00032112,юридична особа
ГРОМАДЯНСЬКА ПОЗИЦІЯ,"Київ, вулиця Антоновича, 127",70,2017-05-30,_12,Банківські послуги,Інші витрати,139782,Центральний офіс,33492420,Україна,Послуги банку,26009000000569,current,2.50,"АТ ""Укрексімбанк""",00032112,юридична особа
ГРОМАДЯНСЬКА ПОЗИЦІЯ,"Київ, вулиця Антоновича, 127",70,2017-05-30,_11,Банківські послуги,Інші витрати,139781,Центральний офіс,33492420,Україна,Послуги банку,26009000000569,current,2.50,"АТ ""Укрексімбанк""",00032112,юридична особа
ГРОМАДЯНСЬКА ПОЗИЦІЯ,"Київ, вулиця Антоновича, 127",70,2017-05-30,_10,Банківські послуги,Інші витрати,139780,Центральний офіс,33492420,Україна,Послуги банку,26009000000569,current,2.50,"АТ ""Укрексімбанк""",00032112,юридична особа
ГРОМАДЯНСЬКА ПОЗИЦІЯ,"Київ, вулиця Антоновича, 127",70,2017-05-30,_9,Банківські послуги,Інші витрати,139779,Центральний офіс,33492420,Україна,Послуги банку,26009000000569,current,2.50,"АТ ""Укрексімбанк""",00032112,юридична особа
ГРОМАДЯНСЬКА ПОЗИЦІЯ,"Київ, вулиця Антоновича, 127",70,2017-05-30,_8,Банківські послуги,Інші витрати,139778,Центральний офіс,33492420,Україна,Послуги банку,26009000000569,current,2.50,"АТ ""Укрексімбанк""",00032112,юридична особа
ГРОМАДЯНСЬКА ПОЗИЦІЯ,"Київ, вулиця Антоновича, 127",70,2017-05-30,,Банківські послуги,Інші витрати,139777,Центральний офіс,33492420,Україна,Послуги банку,26009000000569,current,2.50,"АТ ""Укрексімбанк""",00032112,юридична особа
ГРОМАДЯНСЬКА ПОЗИЦІЯ,,84,2017-05-30,22,"Заробітна плата, премії","Заробітна плата, лікарняні, вагітності, відрядження, компенсації",139748,Центральний офіс,33492420,Україна,ЗП за травень 2017р.,26009000000569,current,2576.00,Царьов Ігор Анатолійович,,фізична особа
ГРОМАДЯНСЬКА ПОЗИЦІЯ,,84,2017-05-30,22,"Заробітна плата, премії","Заробітна плата, лікарняні, вагітності, відрядження, компенсації",139747,Центральний офіс,33492420,Україна,ЗП за травень 2017р.,26009000000569,current,644.00,Комарова Ганна Георгіївна,,фізична особа
ГРОМАДЯНСЬКА ПОЗИЦІЯ,,84,2017-05-30,22,"Заробітна плата, премії","Заробітна плата, лікарняні, вагітності, відрядження, компенсації",139746,Центральний офіс,33492420,Україна,ЗП за травень 2017р.,26009000000569,current,644.00,Павлик Зоя Борисівна,,фізична особа
ГРОМАДЯНСЬКА ПОЗИЦІЯ,,79,2017-05-30,23,"Оренда будинків і приміщень та експлуатаційні витрати (прибирання, страхування орендованих будинків, охорона, сигналізація, ремонт, вивіз сміття, тощо)",Оренда нерухомості,139745,Центральний офіс,33492420,Україна,Оренда приміщення,26009000000569,current,12000.00,Михайличенко Алла Олексіївна,,фізична особа
ГРОМАДЯНСЬКА ПОЗИЦІЯ,"Київ, вулиця Миколи Лєскова, 9",70,2017-05-30,bn,Банківські послуги,Інші витрати,139155,Львівська обласна організація,37277596,Львівська область,Комісія за користування пакетом,26005314012,current,100.00,"АТ ""Райффайзен банк Аваль""",14305909,юридична особа
ГРОМАДЯНСЬКА ПОЗИЦІЯ,"Київ, вулиця Миколи Лєскова, 9",70,2017-05-30,bn,Банківські послуги,Інші витрати,139154,Львівська обласна організація,37277596,Львівська область,Комісія за надання виписки,26005314012,current,50.00,"АТ ""Райффайзен банк Аваль""",14305909,юридична особа
ГРОМАДЯНСЬКА ПОЗИЦІЯ,"Волинська область, Луцьк, вулиця Словацького, 9",51,2017-05-26,15,Оплата ефірного часу на ТБ,Телереклама,139042,Волинська обласна організація,37204512,Волинська область,"рахунок N220 вiд 24 травня 2017 - Вироблення аудiопродукцiї та надання ефiрного часу У сумi 4866.67 грн., ПДВ - 20 % 973.33 грн.",2600805509013,current,5840.00,"Філія ПАТ ""НСТУ ""Волинська регіональна дирекція""",40020530,юридична особа
ГРОМАДЯНСЬКА ПОЗИЦІЯ,"Київ, вулиця Михайла Грушевського, 1Д",70,2017-05-26,5QO04W0NKY,Банківські послуги,Інші витрати,139041,Волинська обласна організація,37204512,Волинська область,"Комiсiя за виконання платежiв в нацiональнiй валютi, згiдно з вiдкритою офертою банку N б/н вiд 2015-08-03 та тарифiв банку",2600805509013,current,3.00,"ПАТ КБ ""Приватбанк""",14360570,юридична особа
ГРОМАДЯНСЬКА ПОЗИЦІЯ,,50,2017-05-26,14,Оплата ефірного часу на радіо,Реклама на радіо,139003,Волинська обласна організація,37204512,Волинська область,рахунок N025 вiд 25-05-2017за Ефiр на радiо СiД ФМ Без ПДВ,2600805509013,current,6000.00,Макушевич Сергій Сергійович,,фізична особа
ГРОМАДЯНСЬКА ПОЗИЦІЯ,"Київ, вулиця Михайла Грушевського, 1Д",70,2017-05-25,LAF8300047,Банківські послуги,Інші витрати,139040,Волинська обласна організація,37204512,Волинська область,"Погашення простроченої заборгованостi за РКО, згiдно з вiдкритою офертою банку N б/н вiд 2015-08-03, без ПДВ.",2600805509013,current,51.86,"ПАТ КБ ""Приватбанк""",14360570,юридична особа
ГРОМАДЯНСЬКА ПОЗИЦІЯ,"Волинська область, Луцьк, вулиця Словацького, 2",69,2017-05-25,13,Організація заходів та інші організаційні послуги,Організація заходів та інші організаційні послуги,139039,Волинська обласна організація,37204512,Волинська область,Рах. N 1510 вiд 24-05-2017 За оренду конференц-залу Без ПДВ,2600805509013,current,640.00,"ТОВ ""ЦЕНТР ГОТЕЛЬНОГО СЕРВІСУ""",41117101,юридична особа
ГРОМАДЯНСЬКА ПОЗИЦІЯ,"Київ, вулиця Госпітальна, 12Г",70,2017-05-24,63958861,Банківські послуги,Інші витрати,139197,Закарпатська обласна організація,37296975,Закарпатська область,Комісія банку,26003000588433,current,0.29,"АТ ""Ощадбанк""",00032129,юридична особа
ГРОМАДЯНСЬКА ПОЗИЦІЯ,"Закарпатська область, Ужгород, пл. Поштова, 3",61,2017-05-24,6,Військовий збір,Податкові платежі,139196,Закарпатська обласна організація,37296975,Закарпатська область,Військовий збір,26003000588433,current,48.00,УДКСУ у м. Ужгороді,38015610,юридична особа
ГРОМАДЯНСЬКА ПОЗИЦІЯ,"Закарпатська область, Ужгород, вулиця Загорська, 10",62,2017-05-24,5,Сплата ЄСВ,Податкові платежі,139195,Закарпатська обласна організація,37296975,Закарпатська область,ЄСВ,26003000588433,current,704.00,Ужгородська ОДПІ ГУ ДФС в Закарпатській області,39595916,юридична особа
ГРОМАДЯНСЬКА ПОЗИЦІЯ,"Закарпатська область, Ужгород, пл. Поштова, 3",63,2017-05-24,4,Податок на доходи,Податкові платежі,139194,Закарпатська обласна організація,37296975,Закарпатська область,ПДФО,26003000588433,current,576.00,УДКСУ у м. Ужгороді,38015610,юридична особа
ГРОМАДЯНСЬКА ПОЗИЦІЯ,"Київ, вулиця Госпітальна, 12Г",70,2017-05-24,65815983,Банківські послуги,Інші витрати,139193,Закарпатська обласна організація,37296975,Закарпатська область,Комісія банку,26003000588433,current,35.00,"АТ ""Ощадбанк""",00032129,юридична особа
ГРОМАДЯНСЬКА ПОЗИЦІЯ,"Київ, вулиця Госпітальна, 12Г",70,2017-05-24,АЗ2559253,Банківські послуги,Інші витрати,139192,Закарпатська обласна організація,37296975,Закарпатська область,Комісія банку,26003000588433,current,25.76,"АТ ""Ощадбанк""",00032129,юридична особа
ГРОМАДЯНСЬКА ПОЗИЦІЯ,"Київ, вулиця Госпітальна, 12Г",70,2017-05-24,65815697,Банківські послуги,Інші витрати,139191,Закарпатська обласна організація,37296975,Закарпатська область,Комісія банку,26003000588433,current,7.95,"АТ ""Ощадбанк""",00032129,юридична особа
ГРОМАДЯНСЬКА ПОЗИЦІЯ,,84,2017-05-24,АЗ2559253,"Заробітна плата, премії","Заробітна плата, лікарняні, вагітності, відрядження, компенсації",139179,Закарпатська обласна організація,37296975,Закарпатська область,Заробітна плата,26003000588433,current,2576.00,Цендра Роман Іванович,,фізична особа
ГРОМАДЯНСЬКА ПОЗИЦІЯ,"Чернігівська область, Чернігів",79,2017-05-17,3,"Оренда будинків і приміщень та експлуатаційні витрати (прибирання, страхування орендованих будинків, охорона, сигналізація, ремонт, вивіз сміття, тощо)",Оренда нерухомості,139282,Чернігівська обласна організація,40842758,Чернігівська область,Оплата за оренду приміщення зг. дог.25-17від 2017-03-01 Без ПДВ,26004000013238,current,2880.00,"ТОВ ""Новація Груп""",35305783,юридична особа
ГРОМАДЯНСЬКА ПОЗИЦІЯ,"Київ, вулиця Антоновича, 127",70,2017-05-17,660300,Банківські послуги,Інші витрати,139281,Чернігівська обласна організація,40842758,Чернігівська область,"Плата за переказ в нац. Вал. За плат. Док. На папер. Носіях, отр. В опер. Час, в межах України зг. Дог. І тариф.банку Без ПДВ",26004000013238,current,10.00,"АТ ""Укрексімбанк""",00032112,юридична особа
ГРОМАДЯНСЬКА ПОЗИЦІЯ,"Київ, вулиця Антоновича, 127",70,2017-05-10,362252,Банківські послуги,Інші витрати,139776,Центральний офіс,33492420,Україна,Послуги банку,26009000000569,current,30.00,"АТ ""Укрексімбанк""",00032112,юридична особа
ГРОМАДЯНСЬКА ПОЗИЦІЯ,"Київ, вулиця Антоновича, 127",70,2017-05-10,361792,Банківські послуги,Інші витрати,139280,Чернігівська обласна організація,40842758,Чернігівська область,Плата за розрахункове обслуговування поточного рахунку у національній валюті за згідно Договору і тарифів Банку за період березень 2017р. Без ПДВ,26004000013238,current,30.00,"АТ ""Укрексімбанк""",00032112,юридична особа
ГРОМАДЯНСЬКА ПОЗИЦІЯ,"Кіровоградська область, Кропивницький, вулиця Шевченка, 54",79,2017-05-04,1,"Оренда будинків і приміщень та експлуатаційні витрати (прибирання, страхування орендованих будинків, охорона, сигналізація, ремонт, вивіз сміття, тощо)",Оренда нерухомості,138985,Кіровоградська обласна організація,37297586,Кіровоградська область,орендна плата за квітень 2017 року,26007300684913,current,1345.40,"КП ""Поліграфія""",23098585,юридична особа
ГРОМАДЯНСЬКА ПОЗИЦІЯ,"Київ, вулиця Михайла Грушевського, 1Д",70,2017-05-03,А874$5х01р,Банківські послуги,Інші витрати,139245,Дніпропетровська обласна організація,37006888,Дніпропетровська область,Комісія за обслуговування рахунку,26005050226940,current,100.00,"ПАТ КБ ""Приватбанк""",14360570,юридична особа
ГРОМАДЯНСЬКА ПОЗИЦІЯ,"Київ, вулиця Михайла Грушевського, 1Д",70,2017-05-03,AS74s7fiep,Банківські послуги,Інші витрати,139038,Волинська обласна організація,37204512,Волинська область,"Комiсiя за обслуговування рахунку березень 2017р. згiдно договору банкiвського рахунку вiд 2015-08-03, без ПДВ",2600805509013,current,48.14,"ПАТ КБ ""Приватбанк""",14360570,юридична особа
ГРОМАДЯНСЬКА ПОЗИЦІЯ,"Київ, вулиця Антоновича, 127",70,2017-04-28,118661,Банківські послуги,Інші витрати,139775,Центральний офіс,33492420,Україна,Послуги банку,26009000000569,current,96.00,"АТ ""Укрексімбанк""",00032112,юридична особа
ГРОМАДЯНСЬКА ПОЗИЦІЯ,"Київ, вулиця Антоновича, 127",70,2017-04-28,1540247,Банківські послуги,Інші витрати,139279,Чернігівська обласна організація,40842758,Чернігівська область,"плата за надання довідки пов.з РКО в нац.та ін. вал.(клоп.кл): архів.дані за пер. Від 5 бан. Днів до 1р, згідно Договору і таририфів Банку Без ПДВ",26004000013238,current,100.00,"АТ ""Укрексімбанк""",00032112,юридична особа
ГРОМАДЯНСЬКА ПОЗИЦІЯ,"Київ, вулиця Госпітальна, 12Г",70,2017-04-28,196067199,Банківські послуги,Інші витрати,139229,Харківська обласна організація,37188240,Харківська область,Абонплата,26004300641612,current,49.00,"АТ ""Ощадбанк""",00032129,юридична особа
ГРОМАДЯНСЬКА ПОЗИЦІЯ,"Волинська область, Луцьк, вулиця Драгоманова, 1А",79,2017-04-28,11,"Оренда будинків і приміщень та експлуатаційні витрати (прибирання, страхування орендованих будинків, охорона, сигналізація, ремонт, вивіз сміття, тощо)",Оренда нерухомості,139037,Волинська обласна організація,37204512,Волинська область,"Рахунок на оплату N 108 вiд 31 березня2017. За оренду нежитлових примiщеннь квiтень 2017року. У сумi 2999.22 грн., ПДВ - 20 % 599.85 грн.",2600805509013,current,3599.07,"ТОВ ""ФРЕШ ТРЕЙД""",39808792,юридична особа
ГРОМАДЯНСЬКА ПОЗИЦІЯ,"Київ, вулиця Михайла Грушевського, 1Д",70,2017-04-28,0331L23MWY,Банківські послуги,Інші витрати,139036,Волинська обласна організація,37204512,Волинська область,"Комiсiя за виконання платежiв в нацiональнiй валютi, згiдно з вiдкритою офертою банку N б/н вiд 2015-08-03 та тарифiв банку",2600805509013,current,3.00,"ПАТ КБ ""Приватбанк""",14360570,юридична особа
ГРОМАДЯНСЬКА ПОЗИЦІЯ,"Київ, вулиця Михайла Грушевського, 1Д",70,2017-04-28,4SO02T6WIY,Банківські послуги,Інші витрати,139035,Волинська обласна організація,37204512,Волинська область,"Погашення простроченої заборгованостi за РКО, згiдно з вiдкритою офертою банку N б/н вiд 2015-08-03, без ПДВ.",2600805509013,current,49.79,"ПАТ КБ ""Приватбанк""",14360570,юридична особа
ГРОМАДЯНСЬКА ПОЗИЦІЯ,,54,2017-04-28,12,Виготовлення відеозаписів,Реклама (без класифікації),139002,Волинська обласна організація,37204512,Волинська область,Рах N 2 вiд 27 квiтня 2017 р. (За Виготовлення вiдеозвiту депутатiв Рожищенської мiської ради) Без ПДВ,2600805509013,current,1800.00,Сомова Тетяна Василівна,,фізична особа
ГРОМАДЯНСЬКА ПОЗИЦІЯ,"Київ, вулиця Госпітальна, 12Г",70,2017-04-28,87001428,Банківські послуги,Інші витрати,138984,Кіровоградська обласна організація,37297586,Кіровоградська область,щомісячна плата за обслуговування за квітень 2017 року,26007300684913,current,49.00,"АТ ""Ощадбанк""",00032129,юридична особа
ГРОМАДЯНСЬКА ПОЗИЦІЯ,"Київ, вулиця Госпітальна, 12Г",70,2017-04-28,101106136,Банківські послуги,Інші витрати,138983,Кіровоградська обласна організація,37297586,Кіровоградська область,щомісячна плата за обслуговування за листопад 2017 року,26007300684913,current,49.00,"АТ ""Ощадбанк""",00032129,юридична особа
ГРОМАДЯНСЬКА ПОЗИЦІЯ,"Київ, вулиця Госпітальна, 12Г",70,2017-04-28,100585457,Банківські послуги,Інші витрати,138982,Кіровоградська обласна організація,37297586,Кіровоградська область,щомісячна плата за обслуговування за жовтень 2017 року,26007300684913,current,49.00,"АТ ""Ощадбанк""",00032129,юридична особа
ГРОМАДЯНСЬКА ПОЗИЦІЯ,"Київ, вулиця Магнітогорська, 1",76,2017-04-27,9,Послуги зв’язку,Послуги зв’язку,139774,Центральний офіс,33492420,Україна,Оплата послуг,26009000000569,current,174.60,"ТОВ ""Воля-кабель""",30777913,юридична особа
ГРОМАДЯНСЬКА ПОЗИЦІЯ,Київ,48,2017-04-27,8,Публікування матеріалів у мережі Інтернет,Реклама в інтернеті,139773,Центральний офіс,33492420,Україна,Оплата послуг,26009000000569,current,800.00,"ТОВ ""ГІГАТРАНС""",34603204,юридична особа
ГРОМАДЯНСЬКА ПОЗИЦІЯ,"Чернігівська область, Чернігів, вулиця Мстиславська, 17",79,2017-04-27,15,"Оренда будинків і приміщень та експлуатаційні витрати (прибирання, страхування орендованих будинків, охорона, сигналізація, ремонт, вивіз сміття, тощо)",Оренда нерухомості,139772,Центральний офіс,33492420,Україна,Оренда приміщення,26009000000569,current,13.48,Фонд комунального майна Чернігівської міської ради,14227121,юридична особа
ГРОМАДЯНСЬКА ПОЗИЦІЯ,"Київ, вулиця Антоновича, 127",70,2017-04-27,_7,Банківські послуги,Інші витрати,139771,Центральний офіс,33492420,Україна,Послуги банку,26009000000569,current,2.50,"АТ ""Укрексімбанк""",00032112,юридична особа
ГРОМАДЯНСЬКА ПОЗИЦІЯ,"Київ, вулиця Антоновича, 127",70,2017-04-27,_6,Банківські послуги,Інші витрати,139770,Центральний офіс,33492420,Україна,Послуги банку,26009000000569,current,2.50,"АТ ""Укрексімбанк""",00032112,юридична особа
ГРОМАДЯНСЬКА ПОЗИЦІЯ,"Київ, вулиця Антоновича, 127",70,2017-04-27,_5,Банківські послуги,Інші витрати,139769,Центральний офіс,33492420,Україна,Послуги банку,26009000000569,current,2.50,"АТ ""Укрексімбанк""",00032112,юридична особа
ГРОМАДЯНСЬКА ПОЗИЦІЯ,"Київ, вулиця Антоновича, 127",70,2017-04-27,_4,Банківські послуги,Інші витрати,139768,Центральний офіс,33492420,Україна,Послуги банку,26009000000569,current,2.50,"АТ ""Укрексімбанк""",00032112,юридична особа
ГРОМАДЯНСЬКА ПОЗИЦІЯ,"Київ, вулиця Антоновича, 127",70,2017-04-27,_3,Банківські послуги,Інші витрати,139767,Центральний офіс,33492420,Україна,Послуги банку,26009000000569,current,2.50,"АТ ""Укрексімбанк""",00032112,юридична особа
ГРОМАДЯНСЬКА ПОЗИЦІЯ,"Київ, вулиця Антоновича, 127",70,2017-04-27,_2,Банківські послуги,Інші витрати,139766,Центральний офіс,33492420,Україна,Послуги банку,26009000000569,current,2.50,"АТ ""Укрексімбанк""",00032112,юридична особа
ГРОМАДЯНСЬКА ПОЗИЦІЯ,"Київ, вулиця Антоновича, 127",70,2017-04-27,_1,Банківські послуги,Інші витрати,139765,Центральний офіс,33492420,Україна,Послуги банку,26009000000569,current,2.50,"АТ ""Укрексімбанк""",00032112,юридична особа
ГРОМАДЯНСЬКА ПОЗИЦІЯ,"Київ, вулиця Антоновича, 127",70,2017-04-27,,Банківські послуги,Інші витрати,139764,Центральний офіс,33492420,Україна,Послуги банку,26009000000569,current,2.50,"АТ ""Укрексімбанк""",00032112,юридична особа
ГРОМАДЯНСЬКА ПОЗИЦІЯ,"Київ, вулиця Антоновича, 127",70,2017-04-27,14,Банківські послуги,Інші витрати,139763,Центральний офіс,33492420,Україна,Послуги банку,26009000000569,current,38.64,"АТ ""Укрексімбанк""",00032112,юридична особа
ГРОМАДЯНСЬКА ПОЗИЦІЯ,"Київ, вулиця Академіка Туполєва, 28А",63,2017-04-27,13,Податок на доходи,Податкові платежі,139762,Центральний офіс,33492420,Україна,Податки до держбюджету,26009000000569,current,72.00,УДКСУ у Шевченківському районі м. Києва,37995466,юридична особа
ГРОМАДЯНСЬКА ПОЗИЦІЯ,"Київ, вулиця Академіка Туполєва, 28А",63,2017-04-27,12,Податок на доходи,Податкові платежі,139761,Центральний офіс,33492420,Україна,Податки до держбюджету,26009000000569,current,900.00,УДКСУ у Шевченківському районі м. Києва,37995466,юридична особа
ГРОМАДЯНСЬКА ПОЗИЦІЯ,Київ,60,2017-04-27,11,Інші податки,Податкові платежі,139760,Центральний офіс,33492420,Україна,Податки до держбюджету,26009000000569,current,1600.00,ДПІ у Шевченківському районі у м. Києві,38728711,юридична особа
ГРОМАДЯНСЬКА ПОЗИЦІЯ,Київ,48,2017-04-27,10,Публікування матеріалів у мережі Інтернет,Реклама в інтернеті,139759,Центральний офіс,33492420,Україна,Оплата послуг,26009000000569,current,1200.00,"ТОВ ""ГІГАЦЕНТР""",37956851,юридична особа
ГРОМАДЯНСЬКА ПОЗИЦІЯ,,84,2017-04-27,14,"Заробітна плата, премії","Заробітна плата, лікарняні, вагітності, відрядження, компенсації",139744,Центральний офіс,33492420,Україна,ЗП за квітень 2017р.,26009000000569,current,2576.00,Царьов Ігор Анатолійович,,фізична особа
ГРОМАДЯНСЬКА ПОЗИЦІЯ,,84,2017-04-27,14,"Заробітна плата, премії","Заробітна плата, лікарняні, вагітності, відрядження, компенсації",139743,Центральний офіс,33492420,Україна,ЗП за квітень 2017р.,26009000000569,current,644.00,Комарова Ганна Георгіївна,,фізична особа
ГРОМАДЯНСЬКА ПОЗИЦІЯ,,84,2017-04-27,14,"Заробітна плата, премії","Заробітна плата, лікарняні, вагітності, відрядження, компенсації",139742,Центральний офіс,33492420,Україна,ЗП за квітень 2017р.,26009000000569,current,644.00,Павлик Зоя Борисівна,,фізична особа
ГРОМАДЯНСЬКА ПОЗИЦІЯ,"Київ, вулиця Миколи Лєскова, 9",70,2017-04-27,bn,Банківські послуги,Інші витрати,139153,Львівська обласна організація,37277596,Львівська область,Комісія за користування пакетом,26005314012,current,100.00,"АТ ""Райффайзен банк Аваль""",14305909,юридична особа
ГРОМАДЯНСЬКА ПОЗИЦІЯ,"Київ, вулиця Миколи Лєскова, 9",70,2017-04-27,bn,Банківські послуги,Інші витрати,139152,Львівська обласна організація,37277596,Львівська область,Комісія за надання виписки,26005314012,current,50.00,"АТ ""Райффайзен банк Аваль""",14305909,юридична особа
ГРОМАДЯНСЬКА ПОЗИЦІЯ,"Київ, вулиця Антоновича, 127",70,2017-04-26,1425574,Банківські послуги,Інші витрати,139278,Чернігівська обласна організація,40842758,Чернігівська область,"плата за надання довідки пов.з РКО в нац.та ін. вал.(клоп.кл): архів.дані за пер. Від 5 бан. Днів до 1р, згідно Договору і таририфів Банку Без ПДВ",26004000013238,current,100.00,"АТ ""Укрексімбанк""",00032112,юридична особа
ГРОМАДЯНСЬКА ПОЗИЦІЯ,,49,2017-04-21,1,Публікування матеріалів у друкованих ЗМІ,Реклама в друкованих ЗМІ,139223,Харківська обласна організація,37188240,Харківська область,виготовлення газети,26004300641612,current,7850.00,Лементов Олег Леонідович,,фізична особа
ГРОМАДЯНСЬКА ПОЗИЦІЯ,"Київ, вулиця Антоновича, 127",70,2017-04-18,100637,Банківські послуги,Інші витрати,139758,Центральний офіс,33492420,Україна,Послуги банку,26009000000569,current,199.51,"АТ ""Укрексімбанк""",00032112,юридична особа
ГРОМАДЯНСЬКА ПОЗИЦІЯ,"Київ, вулиця Госпітальна, 12Г",70,2017-04-18,63968497,Банківські послуги,Інші витрати,139190,Закарпатська обласна організація,37296975,Закарпатська область,Комісія банку,26003000588433,current,41.21,"АТ ""Ощадбанк""",00032129,юридична особа
ГРОМАДЯНСЬКА ПОЗИЦІЯ,"Закарпатська область, Ужгород, вулиця Загорська, 10",62,2017-04-18,2,Сплата ЄСВ,Податкові платежі,139189,Закарпатська обласна організація,37296975,Закарпатська область,ЄСВ,26003000588433,current,704.00,Ужгородська ОДПІ ГУ ДФС в Закарпатській області,39595916,юридична особа
ГРОМАДЯНСЬКА ПОЗИЦІЯ,"Закарпатська область, Ужгород, пл. Поштова, 3",61,2017-04-18,1,Військовий збір,Податкові платежі,139188,Закарпатська обласна організація,37296975,Закарпатська область,Військовий збір,26003000588433,current,48.00,УДКСУ у м. Ужгороді,38015610,юридична особа
ГРОМАДЯНСЬКА ПОЗИЦІЯ,"Закарпатська область, Ужгород, пл. Поштова, 3",63,2017-04-18,3,Податок на доходи,Податкові платежі,139187,Закарпатська обласна організація,37296975,Закарпатська область,ПДФО,26003000588433,current,576.00,УДКСУ у м. Ужгороді,38015610,юридична особа
ГРОМАДЯНСЬКА ПОЗИЦІЯ,"Київ, вулиця Госпітальна, 12Г",70,2017-04-18,63960439,Банківські послуги,Інші витрати,139186,Закарпатська обласна організація,37296975,Закарпатська область,Комісія банку,26003000588433,current,35.00,"АТ ""Ощадбанк""",00032129,юридична особа
ГРОМАДЯНСЬКА ПОЗИЦІЯ,"Київ, вулиця Госпітальна, 12Г",70,2017-04-18,АЗ2559276,Банківські послуги,Інші витрати,139185,Закарпатська обласна організація,37296975,Закарпатська область,Комісія банку,26003000588433,current,25.76,"АТ ""Ощадбанк""",00032129,юридична особа
ГРОМАДЯНСЬКА ПОЗИЦІЯ,"Київ, вулиця Госпітальна, 12Г",70,2017-04-18,63958861,Банківські послуги,Інші витрати,139184,Закарпатська обласна організація,37296975,Закарпатська область,Комісія банку,26003000588433,current,8.03,"АТ ""Ощадбанк""",00032129,юридична особа
ГРОМАДЯНСЬКА ПОЗИЦІЯ,,84,2017-04-18,АЗ2559276,"Заробітна плата, премії","Заробітна плата, лікарняні, вагітності, відрядження, компенсації",139178,Закарпатська обласна організація,37296975,Закарпатська область,Заробітна плата,26003000588433,current,2576.00,Цендра Роман Іванович,,фізична особа
ГРОМАДЯНСЬКА ПОЗИЦІЯ,"Чернігівська область, Чернігів",79,2017-04-12,2,"Оренда будинків і приміщень та експлуатаційні витрати (прибирання, страхування орендованих будинків, охорона, сигналізація, ремонт, вивіз сміття, тощо)",Оренда нерухомості,139277,Чернігівська обласна організація,40842758,Чернігівська область,Оплата за оренду приміщення зг. Рах. 84 від 2017-04-03 Без ПДВ,26004000013238,current,2880.00,"ТОВ ""Новація Груп""",35305783,юридична особа
ГРОМАДЯНСЬКА ПОЗИЦІЯ,"Київ, вулиця Антоновича, 127",70,2017-04-12,643807,Банківські послуги,Інші витрати,139276,Чернігівська обласна організація,40842758,Чернігівська область,Плата за розрахункове обслуговування поточного рахунку у національній валюті за згідно Договору і тарифів Банку за період квітень 2017р. Без ПДВ,26004000013238,current,30.00,"АТ ""Укрексімбанк""",00032112,юридична особа
ГРОМАДЯНСЬКА ПОЗИЦІЯ,"Київ, вулиця Антоновича, 127",70,2017-04-12,632554,Банківські послуги,Інші витрати,139275,Чернігівська обласна організація,40842758,Чернігівська область,"Плата за переказ в нац. Вал. За плат. Док. На папер. Носіях, отр. В опер. Час, в межах України зг. Дог. І тариф.банку Без ПДВ",26004000013238,current,10.00,"АТ ""Укрексімбанк""",00032112,юридична особа
ГРОМАДЯНСЬКА ПОЗИЦІЯ,"Київ, вулиця Антоновича, 127",70,2017-04-11,7,Банківські послуги,Інші витрати,139757,Центральний офіс,33492420,Україна,Послуги банку,26009000000569,current,50.00,"АТ ""Укрексімбанк""",00032112,юридична особа
ГРОМАДЯНСЬКА ПОЗИЦІЯ,"Київ, вулиця Антоновича, 127",70,2017-04-11,7,Банківські послуги,Інші витрати,139756,Центральний офіс,33492420,Україна,Послуги банку,26009000000569,current,538.66,"АТ ""Укрексімбанк""",00032112,юридична особа
ГРОМАДЯНСЬКА ПОЗИЦІЯ,"Київ, вулиця Антоновича, 127",70,2017-04-03,99511,Банківські послуги,Інші витрати,139753,Центральний офіс,33492420,Україна,Послуги банку,26009000000569,current,30.00,"АТ ""Укрексімбанк""",00032112,юридична особа
ГРОМАДЯНСЬКА ПОЗИЦІЯ,"Київ, вулиця Михайла Грушевського, 1Д",70,2017-04-03,А873у76х3р,Банківські послуги,Інші витрати,139244,Дніпропетровська обласна організація,37006888,Дніпропетровська область,Комісія за обслуговування рахунку,26005050226940,current,100.00,"ПАТ КБ ""Приватбанк""",14360570,юридична особа
ГРОМАДЯНСЬКА ПОЗИЦІЯ,"Київ, вулиця Михайла Грушевського, 1Д",70,2017-04-03,AS73v76top,Банківські послуги,Інші витрати,139034,Волинська обласна організація,37204512,Волинська область,"Комiсiя за обслуговування рахунку березень 2017р. згiдно договору банкiвського рахунку вiд 2015-08-03, без ПДВ",2600805509013,current,50.21,"ПАТ КБ ""Приватбанк""",14360570,юридична особа
ГРОМАДЯНСЬКА ПОЗИЦІЯ,"Київ, вулиця Антоновича, 127",70,2017-03-31,84624,Банківські послуги,Інші витрати,139741,Центральний офіс,33492420,Україна,Послуги банку,26009000000569,current,96.00,"АТ ""Укрексімбанк""",00032112,юридична особа
ГРОМАДЯНСЬКА ПОЗИЦІЯ,,84,2017-03-31,61,"Заробітна плата, премії","Заробітна плата, лікарняні, вагітності, відрядження, компенсації",139686,Центральний офіс,33492420,Україна,ЗП за березень 2017р.,26009000000569,current,2576.00,Царьов Ігор Анатолійович,,фізична особа
ГРОМАДЯНСЬКА ПОЗИЦІЯ,,84,2017-03-31,61,"Заробітна плата, премії","Заробітна плата, лікарняні, вагітності, відрядження, компенсації",139685,Центральний офіс,33492420,Україна,ЗП за березень 2017р.,26009000000569,current,644.00,Комарова Ганна Георгіївна,,фізична особа
ГРОМАДЯНСЬКА ПОЗИЦІЯ,,84,2017-03-31,61,"Заробітна плата, премії","Заробітна плата, лікарняні, вагітності, відрядження, компенсації",139684,Центральний офіс,33492420,Україна,ЗП за березень 2017р.,26009000000569,current,644.00,Павлик Зоя Борисівна,,фізична особа
ГРОМАДЯНСЬКА ПОЗИЦІЯ,"Київ, вулиця Михайла Грушевського, 1Д",70,2017-03-31,3У00086М У,Банківські послуги,Інші витрати,139242,Дніпропетровська обласна організація,37006888,Дніпропетровська область,Комісія за дебетовий платіж,26005050226940,current,3.00,"ПАТ КБ ""Приватбанк""",14360570,юридична особа
ГРОМАДЯНСЬКА ПОЗИЦІЯ,"Київ, вулиця Госпітальна, 12Г",70,2017-03-31,190427128,Банківські послуги,Інші витрати,139228,Харківська обласна організація,37188240,Харківська область,Абонплата,26004300641612,current,49.00,"АТ ""Ощадбанк""",00032129,юридична особа
ГРОМАДЯНСЬКА ПОЗИЦІЯ,"Київ, вулиця Михайла Грушевського, 1Д",70,2017-03-31,0331L23MWY,Банківські послуги,Інші витрати,139033,Волинська обласна організація,37204512,Волинська область,"Комiсiя за виконання платежiв в нацiональнiй валютi, згiдно з вiдкритою офертою банку N б/н вiд 2015-08-03 та тарифiв банку",2600805509013,current,3.00,"ПАТ КБ ""Приватбанк""",14360570,юридична особа
ГРОМАДЯНСЬКА ПОЗИЦІЯ,"Київ, вулиця Михайла Грушевського, 1Д",70,2017-03-31,0331L23BYY,Банківські послуги,Інші витрати,139032,Волинська обласна організація,37204512,Волинська область,"Комiсiя за виконання платежiв в нацiональнiй валютi, згiдно з вiдкритою офертою банку N б/н вiд 2015-08-03 та тарифiв банку",2600805509013,current,3.00,"ПАТ КБ ""Приватбанк""",14360570,юридична особа
ГРОМАДЯНСЬКА ПОЗИЦІЯ,"Київ, вулиця Михайла Грушевського, 1Д",79,2017-03-31,9,"Оренда будинків і приміщень та експлуатаційні витрати (прибирання, страхування орендованих будинків, охорона, сигналізація, ремонт, вивіз сміття, тощо)",Оренда нерухомості,139031,Волинська обласна організація,37204512,Волинська область,Вiдшкодування комунальних за 02-17.,2600805509013,current,1112.38,"ПАТ КБ ""Приватбанк""",14360570,юридична особа
ГРОМАДЯНСЬКА ПОЗИЦІЯ,,80,2017-03-31,9,"Транспортні послуги (квитки, пасажирські перевезення і т.д.)","Транспортні послуги (квитки, пасажирські перевезення і т.д.)",139001,Волинська обласна організація,37204512,Волинська область,Транспортнi послуги (Луцьк-Рiвне-Луцьк),2600805509013,current,2800.00,Михалюк Юрій Петрович,,фізична особа
ГРОМАДЯНСЬКА ПОЗИЦІЯ,,58,2017-03-31,8,"Виготовлення друкованих матеріалів (плакатів, листівок, буклетів та інших агітаційних матеріалів)",Друкована агітація,139000,Волинська обласна організація,37204512,Волинська область,за Друк Листiвки А4,2600805509013,current,1302.00,Горошко Володимир Леонтійович,,фізична особа
ГРОМАДЯНСЬКА ПОЗИЦІЯ,"Чернігівська область, Чернігів, вулиця Мстиславська, 17",79,2017-03-30,62,"Оренда будинків і приміщень та експлуатаційні витрати (прибирання, страхування орендованих будинків, охорона, сигналізація, ремонт, вивіз сміття, тощо)",Оренда нерухомості,139740,Центральний офіс,33492420,Україна,Оренда приміщення,26009000000569,current,1362.62,Фонд комунального майна Чернігівської міської ради,14227121,юридична особа
ГРОМАДЯНСЬКА ПОЗИЦІЯ,"Київ, вулиця Академіка Туполєва, 28А",63,2017-03-30,59,Податок на доходи,Податкові платежі,139739,Центральний офіс,33492420,Україна,Податки до держбюджету,26009000000569,current,900.00,УДКСУ у Шевченківському районі м. Києва,37995466,юридична особа
ГРОМАДЯНСЬКА ПОЗИЦІЯ,"Київ, вулиця Академіка Туполєва, 28А",63,2017-03-30,60,Податок на доходи,Податкові платежі,139738,Центральний офіс,33492420,Україна,Податки до держбюджету,26009000000569,current,72.00,УДКСУ у Шевченківському районі м. Києва,37995466,юридична особа
ГРОМАДЯНСЬКА ПОЗИЦІЯ,Київ,60,2017-03-30,58,Інші податки,Податкові платежі,139737,Центральний офіс,33492420,Україна,Податки до держбюджету,26009000000569,current,1600.00,ДПІ у Шевченківському районі у м. Києві,38728711,юридична особа
ГРОМАДЯНСЬКА ПОЗИЦІЯ,"Київ, вулиця Антоновича, 127",70,2017-03-30,61,Банківські послуги,Інші витрати,139736,Центральний офіс,33492420,Україна,Послуги банку,26009000000569,current,38.64,"АТ ""Укрексімбанк""",00032112,юридична особа
ГРОМАДЯНСЬКА ПОЗИЦІЯ,"Київ, вулиця Магнітогорська, 1",76,2017-03-30,56,Послуги зв’язку,Послуги зв’язку,139735,Центральний офіс,33492420,Україна,Оплата послуг,26009000000569,current,174.60,"ТОВ ""Воля-кабель""",30777913,юридична особа
ГРОМАДЯНСЬКА ПОЗИЦІЯ,"Київ, вулиця Антоновича, 127",70,2017-03-30,1447518,Банківські послуги,Інші витрати,139734,Центральний офіс,33492420,Україна,Послуги банку,26009000000569,current,2.50,"АТ ""Укрексімбанк""",00032112,юридична особа
ГРОМАДЯНСЬКА ПОЗИЦІЯ,"Київ, вулиця Антоновича, 127",70,2017-03-30,1447347,Банківські послуги,Інші витрати,139733,Центральний офіс,33492420,Україна,Послуги банку,26009000000569,current,2.50,"АТ ""Укрексімбанк""",00032112,юридична особа
ГРОМАДЯНСЬКА ПОЗИЦІЯ,"Київ, вулиця Антоновича, 127",70,2017-03-30,1445963,Банківські послуги,Інші витрати,139732,Центральний офіс,33492420,Україна,Послуги банку,26009000000569,current,2.50,"АТ ""Укрексімбанк""",00032112,юридична особа
ГРОМАДЯНСЬКА ПОЗИЦІЯ,"Київ, вулиця Антоновича, 127",70,2017-03-30,1445953,Банківські послуги,Інші витрати,139731,Центральний офіс,33492420,Україна,Послуги банку,26009000000569,current,2.50,"АТ ""Укрексімбанк""",00032112,юридична особа
ГРОМАДЯНСЬКА ПОЗИЦІЯ,"Київ, вулиця Антоновича, 127",70,2017-03-30,1445952,Банківські послуги,Інші витрати,139730,Центральний офіс,33492420,Україна,Послуги банку,26009000000569,current,2.50,"АТ ""Укрексімбанк""",00032112,юридична особа
ГРОМАДЯНСЬКА ПОЗИЦІЯ,"Київ, вулиця Антоновича, 127",70,2017-03-30,1445951,Банківські послуги,Інші витрати,139729,Центральний офіс,33492420,Україна,Послуги банку,26009000000569,current,2.50,"АТ ""Укрексімбанк""",00032112,юридична особа
ГРОМАДЯНСЬКА ПОЗИЦІЯ,"Київ, вулиця Антоновича, 127",70,2017-03-30,1445950,Банківські послуги,Інші витрати,139728,Центральний офіс,33492420,Україна,Послуги банку,26009000000569,current,2.50,"АТ ""Укрексімбанк""",00032112,юридична особа
ГРОМАДЯНСЬКА ПОЗИЦІЯ,"Київ, вулиця Антоновича, 127",70,2017-03-30,1445949,Банківські послуги,Інші витрати,139727,Центральний офіс,33492420,Україна,Послуги банку,26009000000569,current,2.50,"АТ ""Укрексімбанк""",00032112,юридична особа
ГРОМАДЯНСЬКА ПОЗИЦІЯ,Київ,48,2017-03-30,57,Публікування матеріалів у мережі Інтернет,Реклама в інтернеті,139726,Центральний офіс,33492420,Україна,Оплата послуг,26009000000569,current,1200.00,"ТОВ ""ГІГАЦЕНТР""",37956851,юридична особа
ГРОМАДЯНСЬКА ПОЗИЦІЯ,Київ,48,2017-03-30,55,Публікування матеріалів у мережі Інтернет,Реклама в інтернеті,139725,Центральний офіс,33492420,Україна,Оплата послуг,26009000000569,current,800.00,"ТОВ ""ГІГАТРАНС""",34603204,юридична особа
ГРОМАДЯНСЬКА ПОЗИЦІЯ,"Київ, вулиця Миколи Лєскова, 9",70,2017-03-30,bn,Банківські послуги,Інші витрати,139151,Львівська обласна організація,37277596,Львівська область,Комісія за користування пакетом,26005314012,current,100.00,"АТ ""Райффайзен банк Аваль""",14305909,юридична особа
ГРОМАДЯНСЬКА ПОЗИЦІЯ,"Київ, вулиця Миколи Лєскова, 9",70,2017-03-30,bn,Банківські послуги,Інші витрати,139150,Львівська обласна організація,37277596,Львівська область,Комісія за надання виписки,26005314012,current,50.00,"АТ ""Райффайзен банк Аваль""",14305909,юридична особа
ГРОМАДЯНСЬКА ПОЗИЦІЯ,"Київ, вулиця Госпітальна, 12Г",70,2017-03-16,187135321,Банківські послуги,Інші витрати,139227,Харківська обласна організація,37188240,Харківська область,Абонплата,26004300641612,current,49.00,"АТ ""Ощадбанк""",00032129,юридична особа
ГРОМАДЯНСЬКА ПОЗИЦІЯ,"Чернігівська область, Чернігів",79,2017-03-15,1,"Оренда будинків і приміщень та експлуатаційні витрати (прибирання, страхування орендованих будинків, охорона, сигналізація, ремонт, вивіз сміття, тощо)",Оренда нерухомості,139274,Чернігівська обласна організація,40842758,Чернігівська область,Оплата за оренду приміщення зг. Рах. 61 від 2017-03-01 Без ПДВ,26004000013238,current,5760.00,"ТОВ ""Новація Груп""",35305783,юридична особа
ГРОМАДЯНСЬКА ПОЗИЦІЯ,"Київ, вулиця Антоновича, 127",70,2017-03-15,711252,Банківські послуги,Інші витрати,139273,Чернігівська обласна організація,40842758,Чернігівська область,"Плата за переказ в нац. Вал. За плат. Док. На папер. Носіях, отр. В опер. Час, в межах України зг. Дог. І тариф.банку Без ПДВ",26004000013238,current,10.00,"АТ ""Укрексімбанк""",00032112,юридична особа
ГРОМАДЯНСЬКА ПОЗИЦІЯ,"Київ, вулиця Антоновича, 127",70,2017-03-14,668853,Банківські послуги,Інші витрати,139272,Чернігівська обласна організація,40842758,Чернігівська область,Плата за розрахункове обслуговування поточного рахунку у національній валюті за згідно Договору і тарифів Банку за період березень 2017р. Без ПДВ,26004000013238,current,30.00,"АТ ""Укрексімбанк""",00032112,юридична особа
ГРОМАДЯНСЬКА ПОЗИЦІЯ,"Київ, вулиця Михайла Грушевського, 1Д",70,2017-03-10,ARб/н,Банківські послуги,Інші витрати,139030,Волинська обласна організація,37204512,Волинська область,"Погашення простроченої заборгованостi за РКО, згiдно з вiдкритою офертою банку N б/н вiд 2015-08-03",2600805509013,current,124.81,"ПАТ КБ ""Приватбанк""",14360570,юридична особа
ГРОМАДЯНСЬКА ПОЗИЦІЯ,"Київ, вулиця Михайла Грушевського, 1Д",70,2017-03-09,39O009SAMY,Банківські послуги,Інші витрати,139029,Волинська обласна організація,37204512,Волинська область,"Комiсiя за виконання платежiв в нацiональнiй валютi, згiдно з вiдкритою офертою банку N б/н вiд 2015-08-03 та тарифiв банку",2600805509013,current,3.00,"ПАТ КБ ""Приватбанк""",14360570,юридична особа
ГРОМАДЯНСЬКА ПОЗИЦІЯ,"Київ, вулиця Михайла Грушевського, 1Д",70,2017-03-09,39O009SAMX,Банківські послуги,Інші витрати,139028,Волинська обласна організація,37204512,Волинська область,"Комiсiя за викон. платежу 7 вiд 2017-03-09, 800.00 в нац. валютi в пiсляоперацiйний час, згiдно з вiдкритою офертою банку № б/н вiд 2015-08-03",2600805509013,current,1.60,"ПАТ КБ ""Приватбанк""",14360570,юридична особа
ГРОМАДЯНСЬКА ПОЗИЦІЯ,,58,2017-03-09,7,"Виготовлення друкованих матеріалів (плакатів, листівок, буклетів та інших агітаційних матеріалів)",Друкована агітація,138999,Волинська обласна організація,37204512,Волинська область,За Iнформацiйний банер (2200х3000),2600805509013,current,800.00,Грицан Сергій Адамович,,фізична особа
ГРОМАДЯНСЬКА ПОЗИЦІЯ,"Київ, вулиця Антоновича, 127",70,2017-03-03,152203,Банківські послуги,Інші витрати,139724,Центральний офіс,33492420,Україна,Послуги банку,26009000000569,current,2.50,"АТ ""Укрексімбанк""",00032112,юридична особа
ГРОМАДЯНСЬКА ПОЗИЦІЯ,"Київ, вулиця Антоновича, 127",70,2017-03-03,184388,Банківські послуги,Інші витрати,139723,Центральний офіс,33492420,Україна,Послуги банку,26009000000569,current,30.00,"АТ ""Укрексімбанк""",00032112,юридична особа
ГРОМАДЯНСЬКА ПОЗИЦІЯ,Київ,48,2017-03-03,54,Публікування матеріалів у мережі Інтернет,Реклама в інтернеті,139722,Центральний офіс,33492420,Україна,Оплата послуг,26009000000569,current,800.00,"ТОВ ""ГІГАТРАНС""",34603204,юридична особа
ГРОМАДЯНСЬКА ПОЗИЦІЯ,"Київ, вулиця Академіка Туполєва, 28А",63,2017-02-28,49,Податок на доходи,Податкові платежі,139721,Центральний офіс,33492420,Україна,Податки до держбюджету,26009000000569,current,900.00,УДКСУ у Шевченківському районі м. Києва,37995466,юридична особа
ГРОМАДЯНСЬКА ПОЗИЦІЯ,"Київ, вулиця Академіка Туполєва, 28А",63,2017-02-28,48,Податок на доходи,Податкові платежі,139720,Центральний офіс,33492420,Україна,Податки до держбюджету,26009000000569,current,72.00,УДКСУ у Шевченківському районі м. Києва,37995466,юридична особа
ГРОМАДЯНСЬКА ПОЗИЦІЯ,Київ,60,2017-02-28,50,Інші податки,Податкові платежі,139719,Центральний офіс,33492420,Україна,Податки до держбюджету,26009000000569,current,1600.00,ДПІ у Шевченківському районі у м. Києві,38728711,юридична особа
ГРОМАДЯНСЬКА ПОЗИЦІЯ,"Київ, вулиця Антоновича, 127",70,2017-02-28,52,Банківські послуги,Інші витрати,139718,Центральний офіс,33492420,Україна,Послуги банку,26009000000569,current,38.64,"АТ ""Укрексімбанк""",00032112,юридична особа
ГРОМАДЯНСЬКА ПОЗИЦІЯ,"Київ, вулиця Магнітогорська, 1",76,2017-02-28,51,Послуги зв’язку,Послуги зв’язку,139717,Центральний офіс,33492420,Україна,Оплата послуг,26009000000569,current,174.60,"ТОВ ""Воля-кабель""",30777913,юридична особа
ГРОМАДЯНСЬКА ПОЗИЦІЯ,"Київ, вулиця Антоновича, 127",70,2017-02-28,82777,Банківські послуги,Інші витрати,139716,Центральний офіс,33492420,Україна,Послуги банку,26009000000569,current,96.00,"АТ ""Укрексімбанк""",00032112,юридична особа
ГРОМАДЯНСЬКА ПОЗИЦІЯ,"Київ, вулиця Антоновича, 127",70,2017-02-28,12716774,Банківські послуги,Інші витрати,139715,Центральний офіс,33492420,Україна,Послуги банку,26009000000569,current,2.50,"АТ ""Укрексімбанк""",00032112,юридична особа
ГРОМАДЯНСЬКА ПОЗИЦІЯ,"Київ, вулиця Антоновича, 127",70,2017-02-28,1271651,Банківські послуги,Інші витрати,139714,Центральний офіс,33492420,Україна,Послуги банку,26009000000569,current,2.50,"АТ ""Укрексімбанк""",00032112,юридична особа
ГРОМАДЯНСЬКА ПОЗИЦІЯ,"Київ, вулиця Антоновича, 127",70,2017-02-28,1271582,Банківські послуги,Інші витрати,139713,Центральний офіс,33492420,Україна,Послуги банку,26009000000569,current,2.50,"АТ ""Укрексімбанк""",00032112,юридична особа
ГРОМАДЯНСЬКА ПОЗИЦІЯ,"Київ, вулиця Антоновича, 127",70,2017-02-28,1271342,Банківські послуги,Інші витрати,139712,Центральний офіс,33492420,Україна,Послуги банку,26009000000569,current,2.50,"АТ ""Укрексімбанк""",00032112,юридична особа
ГРОМАДЯНСЬКА ПОЗИЦІЯ,"Київ, вулиця Антоновича, 127",70,2017-02-28,1271341,Банківські послуги,Інші витрати,139711,Центральний офіс,33492420,Україна,Послуги банку,26009000000569,current,2.50,"АТ ""Укрексімбанк""",00032112,юридична особа
ГРОМАДЯНСЬКА ПОЗИЦІЯ,"Київ, вулиця Антоновича, 127",70,2017-02-28,1271340,Банківські послуги,Інші витрати,139710,Центральний офіс,33492420,Україна,Послуги банку,26009000000569,current,2.50,"АТ ""Укрексімбанк""",00032112,юридична особа
ГРОМАДЯНСЬКА ПОЗИЦІЯ,"Київ, вулиця Антоновича, 127",70,2017-02-28,1271339,Банківські послуги,Інші витрати,139709,Центральний офіс,33492420,Україна,Послуги банку,26009000000569,current,2.50,"АТ ""Укрексімбанк""",00032112,юридична особа
ГРОМАДЯНСЬКА ПОЗИЦІЯ,"Київ, вулиця Антоновича, 127",70,2017-02-28,1271338,Банківські послуги,Інші витрати,139708,Центральний офіс,33492420,Україна,Послуги банку,26009000000569,current,2.50,"АТ ""Укрексімбанк""",00032112,юридична особа
ГРОМАДЯНСЬКА ПОЗИЦІЯ,Київ,48,2017-02-28,46,Публікування матеріалів у мережі Інтернет,Реклама в інтернеті,139707,Центральний офіс,33492420,Україна,Оплата послуг,26009000000569,current,1200.00,"ТОВ ""ГІГАЦЕНТР""",37956851,юридична особа
ГРОМАДЯНСЬКА ПОЗИЦІЯ,Київ,48,2017-02-28,47,Публікування матеріалів у мережі Інтернет,Реклама в інтернеті,139706,Центральний офіс,33492420,Україна,Оплата послуг,26009000000569,current,800.00,"ТОВ ""ГІГАТРАНС""",34603204,юридична особа
ГРОМАДЯНСЬКА ПОЗИЦІЯ,,84,2017-02-28,52,"Заробітна плата, премії","Заробітна плата, лікарняні, вагітності, відрядження, компенсації",139683,Центральний офіс,33492420,Україна,ЗП за лютий 2017р.,26009000000569,current,2576.00,Царьов Ігор Анатолійович,,фізична особа
ГРОМАДЯНСЬКА ПОЗИЦІЯ,,84,2017-02-28,52,"Заробітна плата, премії","Заробітна плата, лікарняні, вагітності, відрядження, компенсації",139682,Центральний офіс,33492420,Україна,ЗП за лютий 2017р.,26009000000569,current,644.00,Комарова Ганна Георгіївна,,фізична особа
ГРОМАДЯНСЬКА ПОЗИЦІЯ,,84,2017-02-28,52,"Заробітна плата, премії","Заробітна плата, лікарняні, вагітності, відрядження, компенсації",139681,Центральний офіс,33492420,Україна,ЗП за лютий 2017р.,26009000000569,current,644.00,Павлик Зоя Борисівна,,фізична особа
ГРОМАДЯНСЬКА ПОЗИЦІЯ,,79,2017-02-28,53,"Оренда будинків і приміщень та експлуатаційні витрати (прибирання, страхування орендованих будинків, охорона, сигналізація, ремонт, вивіз сміття, тощо)",Оренда нерухомості,139680,Центральний офіс,33492420,Україна,Оренда приміщення,26009000000569,current,8000.00,Михайличенко Алла Олексіївна,,фізична особа
ГРОМАДЯНСЬКА ПОЗИЦІЯ,"Київ, вулиця Госпітальна, 12Г",70,2017-02-28,55203081_1,Банківські послуги,Інші витрати,139260,Тернопільська обласна організація,37016189,Тернопільська область,Комісія за розрахункове обслуговування рахунку,26002300597395,current,10.00,"АТ ""Ощадбанк""",00032129,юридична особа
ГРОМАДЯНСЬКА ПОЗИЦІЯ,"Київ, вулиця Госпітальна, 12Г",70,2017-02-28,55203081,Банківські послуги,Інші витрати,139259,Тернопільська обласна організація,37016189,Тернопільська область,Комісія за розрахункове обслуговування рахунку,26002300597395,current,10.00,"АТ ""Ощадбанк""",00032129,юридична особа
ГРОМАДЯНСЬКА ПОЗИЦІЯ,"Київ, вулиця Миколи Лєскова, 9",70,2017-02-27,bn,Банківські послуги,Інші витрати,139149,Львівська обласна організація,37277596,Львівська область,Комісія за користування пакетом,26005314012,current,100.00,"АТ ""Райффайзен банк Аваль""",14305909,юридична особа
ГРОМАДЯНСЬКА ПОЗИЦІЯ,"Київ, вулиця Миколи Лєскова, 9",70,2017-02-27,bn,Банківські послуги,Інші витрати,139148,Львівська обласна організація,37277596,Львівська область,Комісія за надання виписки,26005314012,current,50.00,"АТ ""Райффайзен банк Аваль""",14305909,юридична особа
ГРОМАДЯНСЬКА ПОЗИЦІЯ,"Тернопільська область, Тернопіль",79,2017-02-21,85,"Оренда будинків і приміщень та експлуатаційні витрати (прибирання, страхування орендованих будинків, охорона, сигналізація, ремонт, вивіз сміття, тощо)",Оренда нерухомості,139258,Тернопільська обласна організація,37016189,Тернопільська область,Оплата за оренду офісного приміщення,26002300597395,current,1500.00,"ТОВ ""Торговий Дім ""Універсальний""",31080395,юридична особа
ГРОМАДЯНСЬКА ПОЗИЦІЯ,"Волинська область, Володимир-Волинський, вулиця Луцька, 211",73,2017-02-20,5,Придбання меблів,Придбання меблів,139027,Волинська обласна організація,37204512,Волинська область,За меблi,2600805509013,current,2084.00,ТОВ “Гербор-холдінг “,30088756,юридична особа
ГРОМАДЯНСЬКА ПОЗИЦІЯ,"Волинська область, Луцьк, вулиця Драгоманова, 1А",79,2017-02-20,6,"Оренда будинків і приміщень та експлуатаційні витрати (прибирання, страхування орендованих будинків, охорона, сигналізація, ремонт, вивіз сміття, тощо)",Оренда нерухомості,139026,Волинська обласна організація,37204512,Волинська область,За оренду нежитлових примiщеннь лютий-березень 2017року.,2600805509013,current,4043.83,"ТОВ ""ФРЕШ ТРЕЙД""",39808792,юридична особа
ГРОМАДЯНСЬКА ПОЗИЦІЯ,"Київ, вулиця Михайла Грушевського, 1Д",70,2017-02-20,LAF8300047,Банківські послуги,Інші витрати,139025,Волинська обласна організація,37204512,Волинська область,Погашення заборгованостi за розрахунково-касове обслуговування згiдно угоди РКО N б/н вiд 2015-08-03,2600805509013,current,72.17,"ПАТ КБ ""Приватбанк""",14360570,юридична особа
ГРОМАДЯНСЬКА ПОЗИЦІЯ,"Київ, вулиця Антоновича, 127",70,2017-02-10,437789,Банківські послуги,Інші витрати,139705,Центральний офіс,33492420,Україна,Послуги банку,26009000000569,current,30.00,"АТ ""Укрексімбанк""",00032112,юридична особа
ГРОМАДЯНСЬКА ПОЗИЦІЯ,"Київ, вулиця Антоновича, 127",70,2017-01-31,50188,Банківські послуги,Інші витрати,139704,Центральний офіс,33492420,Україна,Послуги банку,26009000000569,current,96.00,"АТ ""Укрексімбанк""",00032112,юридична особа
ГРОМАДЯНСЬКА ПОЗИЦІЯ,"Київ, вулиця Госпітальна, 12Г",70,2017-01-31,53830882,Банківські послуги,Інші витрати,139257,Тернопільська обласна організація,37016189,Тернопільська область,Комісія за розрахункове обслуговування рахунку,26002300597395,current,20.00,"АТ ""Ощадбанк""",00032129,юридична особа
ГРОМАДЯНСЬКА ПОЗИЦІЯ,,58,2017-01-31,84,"Виготовлення друкованих матеріалів (плакатів, листівок, буклетів та інших агітаційних матеріалів)",Друкована агітація,139254,Тернопільська обласна організація,37016189,Тернопільська область,Оплата за друк інформаційного бюлетня,26002300597395,current,32000.00,Глогусь Тетяна Іванівна,,фізична особа
ГРОМАДЯНСЬКА ПОЗИЦІЯ,"Чернігівська область, Чернігів, вулиця Мстиславська, 17",79,2017-01-30,44,"Оренда будинків і приміщень та експлуатаційні витрати (прибирання, страхування орендованих будинків, охорона, сигналізація, ремонт, вивіз сміття, тощо)",Оренда нерухомості,139703,Центральний офіс,33492420,Україна,Оренда приміщення,26009000000569,current,1356.91,Фонд комунального майна Чернігівської міської ради,14227121,юридична особа
ГРОМАДЯНСЬКА ПОЗИЦІЯ,"Київ, вулиця Академіка Туполєва, 28А",63,2017-01-30,41,Податок на доходи,Податкові платежі,139702,Центральний офіс,33492420,Україна,Податки до держбюджету,26009000000569,current,900.00,УДКСУ у Шевченківському районі м. Києва,37995466,юридична особа
ГРОМАДЯНСЬКА ПОЗИЦІЯ,"Київ, вулиця Академіка Туполєва, 28А",63,2017-01-30,40,Податок на доходи,Податкові платежі,139701,Центральний офіс,33492420,Україна,Податки до держбюджету,26009000000569,current,72.00,УДКСУ у Шевченківському районі м. Києва,37995466,юридична особа
ГРОМАДЯНСЬКА ПОЗИЦІЯ,Київ,60,2017-01-30,42,Інші податки,Податкові платежі,139700,Центральний офіс,33492420,Україна,Податки до держбюджету,26009000000569,current,1600.00,ДПІ у Шевченківському районі у м. Києві,38728711,юридична особа
ГРОМАДЯНСЬКА ПОЗИЦІЯ,"Київ, вулиця Магнітогорська, 1",76,2017-01-30,45,Послуги зв’язку,Послуги зв’язку,139699,Центральний офіс,33492420,Україна,Оплата послуг,26009000000569,current,174.60,"ТОВ ""Воля-кабель""",30777913,юридична особа
ГРОМАДЯНСЬКА ПОЗИЦІЯ,"Київ, вулиця Антоновича, 127",70,2017-01-30,43,Банківські послуги,Інші витрати,139698,Центральний офіс,33492420,Україна,Послуги банку,26009000000569,current,38.64,"АТ ""Укрексімбанк""",00032112,юридична особа
ГРОМАДЯНСЬКА ПОЗИЦІЯ,"Київ, вулиця Антоновича, 127",70,2017-01-30,1025724,Банківські послуги,Інші витрати,139697,Центральний офіс,33492420,Україна,Послуги банку,26009000000569,current,2.50,"АТ ""Укрексімбанк""",00032112,юридична особа
ГРОМАДЯНСЬКА ПОЗИЦІЯ,"Київ, вулиця Антоновича, 127",70,2017-01-30,1025654,Банківські послуги,Інші витрати,139696,Центральний офіс,33492420,Україна,Послуги банку,26009000000569,current,2.50,"АТ ""Укрексімбанк""",00032112,юридична особа
ГРОМАДЯНСЬКА ПОЗИЦІЯ,"Київ, вулиця Антоновича, 127",70,2017-01-30,1025651,Банківські послуги,Інші витрати,139695,Центральний офіс,33492420,Україна,Послуги банку,26009000000569,current,2.50,"АТ ""Укрексімбанк""",00032112,юридична особа
ГРОМАДЯНСЬКА ПОЗИЦІЯ,"Київ, вулиця Антоновича, 127",70,2017-01-30,1025645,Банківські послуги,Інші витрати,139694,Центральний офіс,33492420,Україна,Послуги банку,26009000000569,current,2.50,"АТ ""Укрексімбанк""",00032112,юридична особа
ГРОМАДЯНСЬКА ПОЗИЦІЯ,"Київ, вулиця Антоновича, 127",70,2017-01-30,1025644,Банківські послуги,Інші витрати,139693,Центральний офіс,33492420,Україна,Послуги банку,26009000000569,current,2.50,"АТ ""Укрексімбанк""",00032112,юридична особа
ГРОМАДЯНСЬКА ПОЗИЦІЯ,"Київ, вулиця Антоновича, 127",70,2017-01-30,1025643,Банківські послуги,Інші витрати,139692,Центральний офіс,33492420,Україна,Послуги банку,26009000000569,current,2.50,"АТ ""Укрексімбанк""",00032112,юридична особа
ГРОМАДЯНСЬКА ПОЗИЦІЯ,"Київ, вулиця Антоновича, 127",70,2017-01-30,1025641,Банківські послуги,Інші витрати,139691,Центральний офіс,33492420,Україна,Послуги банку,26009000000569,current,2.50,"АТ ""Укрексімбанк""",00032112,юридична особа
ГРОМАДЯНСЬКА ПОЗИЦІЯ,"Київ, вулиця Антоновича, 127",70,2017-01-30,1025640,Банківські послуги,Інші витрати,139690,Центральний офіс,33492420,Україна,Послуги банку,26009000000569,current,2.50,"АТ ""Укрексімбанк""",00032112,юридична особа
ГРОМАДЯНСЬКА ПОЗИЦІЯ,Київ,48,2017-01-30,39,Публікування матеріалів у мережі Інтернет,Реклама в інтернеті,139689,Центральний офіс,33492420,Україна,Оплата послуг,26009000000569,current,800.00,"ТОВ ""ГІГАТРАНС""",34603204,юридична особа
ГРОМАДЯНСЬКА ПОЗИЦІЯ,Київ,48,2017-01-30,38,Публікування матеріалів у мережі Інтернет,Реклама в інтернеті,139688,Центральний офіс,33492420,Україна,Оплата послуг,26009000000569,current,1200.00,"ТОВ ""ГІГАЦЕНТР""",37956851,юридична особа
ГРОМАДЯНСЬКА ПОЗИЦІЯ,,84,2017-01-30,43,"Заробітна плата, премії","Заробітна плата, лікарняні, вагітності, відрядження, компенсації",139679,Центральний офіс,33492420,Україна,ЗП за січень 2017р.,26009000000569,current,2576.00,Царьов Ігор Анатолійович,,фізична особа
ГРОМАДЯНСЬКА ПОЗИЦІЯ,,84,2017-01-30,43,"Заробітна плата, премії","Заробітна плата, лікарняні, вагітності, відрядження, компенсації",139678,Центральний офіс,33492420,Україна,ЗП за січень 2017р.,26009000000569,current,644.00,Комарова Ганна Георгіївна,,фізична особа
ГРОМАДЯНСЬКА ПОЗИЦІЯ,,84,2017-01-30,43,"Заробітна плата, премії","Заробітна плата, лікарняні, вагітності, відрядження, компенсації",139677,Центральний офіс,33492420,Україна,ЗП за січень 2017р.,26009000000569,current,644.00,Павлик Зоя Борисівна,,фізична особа
ГРОМАДЯНСЬКА ПОЗИЦІЯ,"Київ, вулиця Миколи Лєскова, 9",70,2017-01-30,bn,Банківські послуги,Інші витрати,139147,Львівська обласна організація,37277596,Львівська область,Комісія за користування пакетом,26005314012,current,100.00,"АТ ""Райффайзен банк Аваль""",14305909,юридична особа
ГРОМАДЯНСЬКА ПОЗИЦІЯ,"Київ, вулиця Миколи Лєскова, 9",70,2017-01-30,bn,Банківські послуги,Інші витрати,139146,Львівська обласна організація,37277596,Львівська область,Комісія за надання виписки,26005314012,current,50.00,"АТ ""Райффайзен банк Аваль""",14305909,юридична особа
ГРОМАДЯНСЬКА ПОЗИЦІЯ,"Тернопільська область, Тернопіль",79,2017-01-25,83,"Оренда будинків і приміщень та експлуатаційні витрати (прибирання, страхування орендованих будинків, охорона, сигналізація, ремонт, вивіз сміття, тощо)",Оренда нерухомості,139256,Тернопільська обласна організація,37016189,Тернопільська область,Оплата за оренду офісного приміщення,26002300597395,current,1500.00,"ТОВ ""Торговий Дім ""Універсальний""",31080395,юридична особа
ГРОМАДЯНСЬКА ПОЗИЦІЯ,,84,2017-01-20,60,"Заробітна плата, премії","Заробітна плата, лікарняні, вагітності, відрядження, компенсації",139222,Івано-Франківська обласна організація,36733960,Івано-Франківська область,Заробітна плата,26000052516833,current,1436.02,Ревтюк Христина Василівна,,фізична особа
ГРОМАДЯНСЬКА ПОЗИЦІЯ,"Київ, вулиця Антоновича, 127",70,2017-01-04,РКО10576,Банківські послуги,Інші витрати,139687,Центральний офіс,33492420,Україна,Послуги банку,26009000000569,current,30.00,"АТ ""Укрексімбанк""",00032112,юридична особа
ГРОМАДЯНСЬКА ПОЗИЦІЯ,"Київ, вулиця Михайла Грушевського, 1Д",70,2017-01-04,А86ои6їк5р,Банківські послуги,Інші витрати,139241,Дніпропетровська обласна організація,37006888,Дніпропетровська область,Комісія за обслуговування рахунку,26005050226940,current,100.00,"ПАТ КБ ""Приватбанк""",14360570,юридична особа
